Workbook

Sheet Intro
G1: One-shot Introduction to Economic Mobility via Microsoft Excel
G2: by
G3: Humberto Barreto
G4: hbarreto@depauw,edu
A6: In general, mobility means moving around, so when we discuss economic mobility, we are imagining people moving up and down the income distribution.
A7: It's great when low-income children grow up to be successful, wealthy adults. This is called intergenerational mobility.
A9: This Excel workbook is completely self-contained and all you have to do is read (scrolling down as needed), follow instructions (especially obey the CLICK commands), and pay close attention.
A11: Software Requirements:
B12: You need Microsoft EXCEL, WINDOWS DESKTOP version 2007 or greater to get full functionality from this file.
C13: The file can be opened with Mac Excel, but it uses Visual Basic code that may not be fully supported on a Mac.
C14: This file will NOT work with a browser-version of Excel because it contains macros. You must open it with a DESKTOP-version of Excel.
B16: You must be sure to Enable Content or the buttons and code in this macro-enabled workbook will not work.
A18: Let's see if you are ready to go -- CLICK the button below.
A21: If the button above does not display a message on your screen when you click it, please close the workbook and open it again, making sure that you Enable Content.
B22: Search "enable macros" in Excel's Help for more information on how to do this.
B23: You can also click the link below for help from the internet:
B24: www.google.com/search?q=excel+enable+macros
A26: Once you get the Click to Test button (above) to work, you are ready to begin.
A28: You will reveal new sheets in the workbook as you proceed through the material. Your job is to read carefully and pay attention to the charts and think about what you are doing.
A30: Keep an eye out for bold, red text -- it always means you are supposed to do something!
A32: Also, answer the questions as best you can -- they are not meant to test you, but to keep you focused and engaged. The answer is usually pretty easy or revealed right after the question.
A34: CLICK on the button below to proceed to the Chetty sheet when you are ready.

Sheet Chetty (hidden)
A1: Raj Chetty has studied economic mobility and we will explore and explain some key results from a specific paper published in 2014.
A3: One way to grasp the core issue is by thinking about the American dream.
A4: You have probably heard this phrase before, but maybe not. Take a moment to think about it and give the question below a try.
A5: Q1) What is your definition of the American dream? CLICK in the text box below and write a few words to answer this question.
A11: When you are finished, CLICK the Next Screen button below.
A52: You might have written about being rich or successful. Maybe you mentioned owning your own home or starting your own business. Hard work might be in there.
A53: My parents brought me to the United States as a baby from Cuba and their definition of the American dream involved individual liberty and freedom of expression.
A54: My mom and dad really stressed education as a way to achieve the American dream -- I was the youngest of six children and all of us graduated from college!
A55: One part of the American dream that is especially important involves moving up -- this is certainly true for my parents.
A56: They were poor immigrants and they desperately wanted their children to be better off than they were.
A57: This is what economic mobility is all about -- to what extent do people move up and down in relative economic position as they live their lives?
A59: Like my mom and dad, Chetty is especially interested in children's economic success compared to that of their parents. This is a type of economic mobility called intergenerational mobility.
A60: It would stink to be in a society where being born to a low-income family means you and your children are destined to be forever poor.
A61: We want everyone to have economic opportunity so that they and their kids can break out of poverty and become middle-income or rich adults.
A62: America as the land of opportunity -- starting at the bottom and working your way to the top -- is at the heart of the American dream.
A64: Think of a ladder, with people sorted by income, lowest at the bottom and highest at the top.
A65: Now think of two ladders, one for parents and the another for their children, like this:
D69: There is zero intergenerational mobility here because the children (on the right) occupy the exact same positions as their parents (on the left).
D70: This society is rigid and wherever you are born is where you will stay.
D71: This is the exact opposite of the American dream!
A74: Below is a society with economic mobility:
D78: The American dream is achieved by e -- born poor to E, but rises to the top as an adult.
D79: Also, there is a lot of movement between the two generations.
D80: This is high intergenerational mobility.
A83: No mobility is clearly bad, but what exactly is a good amount of mobility?
A84: To answer this question, we need a numerical measure of some kind. There are many statistics and computations to choose from.
A85: Perhaps the easiest focuses directly on the outcomes of children (e) born to low-income parents (E).
A86: Imagine if you had information on the income of 100 adults and (this part is crazy) the income of their parents when those 100 adults were kids.
A87: You could figure out how many of the highest income adults came from poor families -- and this would be a way to measure intergenerational mobility.
A88: This is Chetty's strategy.
A90: Chetty (and his co-authors, Nathaniel Hendren, Patrick Kline, and Emmanuel Saez) published a paper titled. "WHERE IS THE LAND OF OPPORTUNITY? THE GEOGRAPHY OF INTERGENERATIONAL MOBILITY IN THE UNITED STATES" in 2014.
A91: https://academic.oup.com/qje/article/129/4/1553/1853754 | G91: (This link is open-access.)
A92: From tax records (over 40 million observations), they collected incomes of people who were US citizens and roughly 30 years old in 2010 (birth cohorts from 1980 to 1982).
A93: Then they went back and got parental (average family) income when the children were born. They also got geographical location and other information.
A95: To repeat, there are many ways to measure mobility and they tried several alternatives, but one of them was to focus on computing the percentage of rich adults that were born to poor parents.
A97: In the quotation below, the language is sophisticated because Chetty and his co-authors are writing to an academic audience in an economics journal.
A98: Quintiles are fifths (like deciles are tenths). We take all of the incomes and sort them from lowest to highest (remember the ladder).
A99: There is a minimum and maximum income. The median is the income where 50% make less and 50% more (so it is the 50th percentile).
A100: The median splits the incomes into two groups (half are below and the other half above the median), but we can also chop the distribution into fewer groups. Sometimes quartiles (4 groups) are used, but Chetty used quintiles (5 groups).
A101: If your income is in the first quintile, you are in the bottom fifth of the ladder. The third quintile means you are in the middle of the income distribution and the richest people are in the fifth (top) quintile.
B103: "Table II presents a quintile transition matrix: the probability that a child is in quintile m of the child income distribution conditional on his parent being in quintile n of the parent income distribution.
B104: One statistic of particular interest in this matrix is the probability of moving from the bottom quintile to the top quintile, a simple measure of success that we return to later.
B105: This probability is 7.5% in the United States, compared with 11.7% in Denmark (Boserup, Kopczuk, and Kreiner 2013) and 13.4% in Canada (Corak and Heisz 1999).
B106: In this sense, the chances of achieving the American dream are considerably higher for children in Denmark and Canada than those in the United States." (p. 1578)
M112: If you forget if the top is the 1st or the 5th quintile, remember that | U112: Do the row and columns add up to 100%? YES! (with a little rounding error)
M113: the 1st percentile is really low and the 99th percentile is really high. | U113: 0.337 | V113: 0.242 | W113: 0.178 | X113: 0.134 | Y113: 0.109 | Z113: =SUM(U113:Y113) -> 1
M114: In the table, notice that 33.7% of adults born to poor parents were | U114: 0.28 | V114: 0.242 | W114: 0.198 | X114: 0.16 | Y114: 0.119 | Z114: =SUM(U114:Y114) -> 0.999
M115: themselves poor -- row 1, column 1. They were unable to escape poverty. | U115: 0.184 | V115: 0.217 | W115: 0.221 | X115: 0.209 | Y115: 0.17 | Z115: 1.001
M116: 5, 5 are rich adults born to rich parents. This percentage, 36.5%, is high | U116: 0.123 | V116: 0.176 | W116: 0.22 | X116: 0.244 | Y116: 0.236 | Z116: 0.999
M117: because it's easier to be rich if you are born rich. | U117: 0.075 | V117: 0.123 | W117: 0.183 | X117: 0.254 | Y117: 0.365 | Z117: 1
M118: 1, 5 are poor adults born to rich parents. Only 10.9% of poor adults | U118: =SUM(U113:U117) -> 0.999 | V118: =SUM(V113:V117) -> 1 | W118: 1 | X118: 1.001 | Y118: 0.999
M119: were children of rich parents.
U120: =(U113+V114+W115+X116+Y117)/5 -> 0.2818 | V120: immobility ratio -- fraction of the mass that falls on the diagonal
A123: Another data point for your consideration is that the bottom-to-top transition probability in England and Wales is 9.7% (see Table 3 on p. 89 in the link below for the full transition matrix).
B124: Source: | C124: https://onlinelibrary.wiley.com/doi/pdf/10.1111/sjoe.12511
A126: We will delve deeper into the exact meaning of the bottom-to-top transition probability and what Table II is telling us, but for now, let me point out that these numbers are a bit shocking.
A127: I mean, this measure of mobility says that Canada has almost twice the mobility of the United States!
A128: Also, Chetty's results show that the American dream is more likely in the three countries mentioned than in the United States, although we will see that there is huge variation across the US in the bottom-to-top measure of mobility.
A130: To understand the meaning of this 7.5% number, we need to see how it is computed and what values are high or low.
A131: Our strategy will be to simulate incomes of parents and children so we can understand the transition matrix and especially the circled value of 7.5%, which is our measure of economic mobility.
A133: Before we begin, answer this question (you are certainly free to scroll up and reread if that helps you):
A134: Q2) What is the definition of economic mobility? Click in the text box below and write a few words to answer this question.
A141: When you are finished, CLICK the Next Screen button below.

Sheet LadderGraphics (hidden)
B2: A | D2: a | F2: A | H2: e
B3: B | D3: b | F3: B | H3: d
B4: C | D4: c | F4: C | H4: b
B5: D | D5: d | F5: D | H5: a
B6: E | D6: e | F6: E | H6: c

Sheet Income (hidden)
A1: This sheet explains Excel's random number generator, RAND(), but also points out that it cannot be used to simulate incomes.
A3: We start with Excel's RAND() function. Try it now -- CLICK in a cell below and enter the formula =RAND()
A7: PRESS F9 repeatedly to see the number in your cell bounce around.
A8: RAND() is how Excel produces random numbers in the interval from 0 to 1.
A10: Random number generation is a complicated, fascinating area of study that we will not dive into.
A11: We just want a quick overview so we can simulate incomes to explain Chetty's transition probabilities.
A13: CLICK the Next Screen button below.
A52: Here are 10 uniformly distributed random numbers
A53: CLICK in a few cells in the range B54 to B63 to see they all have the same formula: =RAND()
B54: =RAND() -> 0.4105156345
B55: =RAND() -> 0.8035399744
B56: 0.6314054174
B57: 0.3815966034
B58: 0.7087287296 | J58: PRESS F9 repeatedly to see the numbers bounce around.
B59: 0.6052979326
B60: 0.1141583382 | J60: Excel's RAND() function generates a random number that is uniformly distributed on the interval [0,1], so we are equally likely to get numbers anywhere from 0 to 1, with an average of 0.5.
B61: 0.4592358135
B62: 0.4606568624 | J62: These charts are called histograms. They show how many values fall into each bin.
B63: 0.3065618203 | J63: The numbers in the rectangles show many values are in that bin (the range shown on the x axis).
A65: We could multiply each RAND() by say $200,000 to get random incomes from 0 to 200,000 with an average of $100,000, like this:
A66: CLICK in a few cells in the range B67 to B76 to see they all have the same formula: =200000*RAND()
B67: =200000*RAND() -> 66376.00911
B68: =200000*RAND() -> 7977.828576 | J68: Multiplying RAND() by a constant, x>1, stetches the distribution from 0 to 1 (with no multiplier) to 0 to x.
B69: 108186.6402 | J69: The average is 0.5*x, so, in our case, 0.5*200,000 = 100,000.
B70: 48902.84571
B71: 101156.4264 | J71: Each time you press F9 and recalculate the sheet, you get ten new incomes that are equally distributed in the range from 0 to $200,000.
B72: 75688.71877
B73: 51468.29051 | J73: The average of the ten numbers (in the cell below) bounces around $100,000:
B74: 158011.0421 | J74: =AVERAGE(B67:B76) -> 83662.11067
B75: 110753.6912
B76: 108099.6141 | J76: PRESS F9 repeatedly to confirm that the average is around 100K.
A78: This is looking pretty good for our simulation, except that the distribution is not realistic. Average US household income really is around $100,000 (in 2023), but something else is way off.
A80: Can you figure out what is the problem with just using =200000*RAND() to get incomes that mimic the real-world distribution of income?
A81: HINT: What does the distribution of income in the real world look like?
A83: Q3) Why can't we use =200000*RAND() to generate random incomes? CLICK in the text box below and write a few words to answer this question.
A89: By the way, Chetty used parent and child's family income because he had tax data, but household income is pretty similar. See footnote 16 on p. 1566 for more on this technical point.
A91: When you are finished, CLICK the Next Screen button below.
A140: The problem with just using RAND() multiplied by a number is that income is NOT uniformly distributed -- it has a really long tail.
A141: In fact, most workers earn in the neighborhood of tens of thousands of dollars and some workers make as much as $100,000.
A142: A smaller number of people make over $100,000 and even fewer make up to $200,000.
A143: But it doesn't stop there.
A144: Some people earn up to a million dollars and a few people make even more, millions and millions of dollars.
A145: Here's what the histogram for personal income in the United States actually looks like
J151: The tail is exceptionally long -- a tiny percentage of people make a million dollars in income in a year (that's five times the length of the x axis).
J152: But it doesn't stop there. In this sample (the 2021 Annual Social and Economic Supplement (ASEC) of the Current Population Survey (CPS)), the highest earner made $2,950,301.
J153: I don't know who the highest income earner in the US was in 2021 (probably some tech titan or hedge-fund manager), but it was more that a measly $3 million!
J155: In the chart, the super long tail is all scrunched up and produces the step up in the $180,000 and over category.
J156: In fact, the tail is so long that if you tried to show it, the chart becomes unreadable:
A164: The Lesson: RAND() cannot generate a histogram like above. RAND() can only produce a rectangular histogram.
A165: RAND() generates values are EQUALLY spread out; it will never have a long tail like the histogram above.
A166: Thus, RAND() cannot be used to simulate incomes.
A168: So RAND() can never give us a tail like we need to simulate incomes, but guess what?
A169: We can put RAND() inside another function to mimic the long tail!
M170: Remember, this is income for a sample of a few hundred thousand people in 2021.
A171: CLICK the Next Screen button below. | M171: The actual highest income in the United States in 2021 is surely much higher than that
M172: because it is extremely unlikely that the survey included the richest person in the US.

Sheet LogNorm (hidden)
A1: This sheet explains how we can use RAND() inside the function LOGNORM.INV to generate random incomes that mimic real world incomes.
A3: But first, let's make sure we all agree that RAND() alone will not work because it cannot give us a distribution like this:
A20: The graph above shows that household income in the United States has a median of roughly $70,000, while the average is about $100,000.
A21: It also makes clear that household income is not normally distributed (like a bell-shaped curve), but instead has a really long tail.
A22: The tail is so long that we use an overflow bin for all incomes over $500,000. In this sample (with roughly 60,000 households), the highest income is over $2 million.
A23: While Excel's RAND() function cannot produce the distribution above, LOGNORM.INV can do it.
A25: Check out how LOGNORM.INV works by clicking on cell A26
A26: =_xlfn.LOGNORM.INV(RAND(),1,1) -> 6.532299122
A28: PRESS F9 repeatedly to see the number in cell A26 bounce around.
A30: Unlike RAND(), which bounced between 0 and 1, cell A26 bounces above 1 quite often.
A32: Also, unlike RAND(), we have to give LOGNORM.INV two parameters (in addition to RAND), usually called mu (m) and sigma (s).
A34: Mu and sigma are not the center and spread of the random numbers, but they do determine these key properties of the log-normal distribution.
A36: Click on cell A37 and change mu from 1 to 11.
A37: =_xlfn.LOGNORM.INV(RAND(),1,1) -> 5.941512938
A38: PRESS F9 repeatedly to see the number in cell A37 bounce around.
A39: Wow, after changing mu from 1 to 11, the random numbers are way bigger -- and sometimes really huge.
A41: There are formulas to determine the expected value and standard deviation (SD) of the random numbers:
A42: 11 | B42: mu
A43: 1 | B43: sigma
A44: =EXP(A42+A43^2/2) -> 98715.77101 | B44: expected value
A45: =SQRT((EXP(A43^2)-1)*EXP(2*A42+A43^2)) -> 129399.8404 | B45: SD
A47: The formulas don't matter all that much to us right now. The real question is what does a histogram of log-normally distributed random numbers look like?
A49: CLICK in a few cells in the range B50 to B149 to see they all have the same formula: =LOGNORM.INV(RAND(),11,1)
B50: =_xlfn.LOGNORM.INV(RAND(),11,1) -> 13588.18478
B51: =_xlfn.LOGNORM.INV(RAND(),11,1) -> 64286.74634
B52: 75292.27193
B53: 19509.41725
B54: 94537.59797 | J54: PRESS F9 repeatedly to see the numbers bounce around.
B55: 342379.6192
B56: 50748.92098 | J56: Wow, with LOGNORM incomes, you sometimes get a really long tail, with a value way far out to the right.
B57: 64858.4782 | J57: =MIN(B50:B149) -> 6658.298104 | K57: min
B58: 29301.66312 | J58: =MAX(B50:B149) -> 706564.7557 | K58: max
B59: 154826.8591 | J59: This is exactly what we need to generate random incomes because that is what the typical income distribution looks like.
B60: 19501.39349
B61: 55062.31884 | J61: Here is the average and median income for the 100 random draws from a log-normal(11,1):
B62: 383858.1687 | J62: =AVERAGE(B50:B149) -> 106457.3869 | K62: average income
B63: 71555.63195 | J63: =MEDIAN(B50:B149) -> 64460.44446 | K63: median income
B64: 227610.89
B65: 49399.0801 | J65: Q4) What is the relationship between the average and median income? Why? CLICK in the text box below and write a few words to answer this question.
B66: 187811.5685
B67: 598016.1699
B68: 108582.1786
B69: 12388.30305
B70: 50265.00916
B71: 42371.11957
B72: 173884.3474
B73: 150624.0712 | J73: When you are finished, CLICK the Next Screen button below.
B74: 80867.41688
B75: 21353.48017
B76: 259379.4956
B77: 57395.98964
B78: 24074.77722
B79: 43200.71138
B80: 98628.232
B81: 15085.36426
B82: 48255.68244
B83: 94951.66344
B84: 32910.57885
B85: 74356.46294
B86: 248510.544
B87: 246452.2959
B88: 219613.3469
B89: 35098.98239
B90: 19263.13561
B91: 75089.60832
B92: 111911.2904
B93: 366563.0506
B94: 6658.298104
B95: 52423.21573
B96: 57221.92092
B97: 30384.61398
B98: 23821.14656
B99: 52432.3493
B100: 111176.7412
B101: 28059.64897
B102: 66951.46043
B103: 55752.05634
B104: 80662.78914
B105: 97412.11219
B106: 68584.34923
B107: 69411.41473
B108: 98700.81868
B109: 37422.19917
B110: 97699.37949
B111: 40858.47533
B112: 56122.39007
B113: 9085.195741
B114: 339277.0795
B115: =_xlfn.LOGNORM.INV(RAND(),11,1) -> 82905.07267
B116: 68980.27379
B117: 74202.11725
B118: 44438.02736
B119: 23718.05253
B120: 10071.00599
B121: 63331.21448
B122: 193510.6158
B123: 284742.4478
B124: 56523.87344
B125: 33124.6124
B126: 133728.9776
B127: 545985.4602
B128: 11414.98929
B129: 67466.93932
B130: 19028.91667
B131: 43267.15687
B132: 31140.39287
B133: 133134.7122
B134: 60018.30306
B135: 31060.58076
B136: 34053.77575
B137: 30092.97036
B138: 64634.14259
B139: 38873.74241
B140: 162964.0198
B141: 294843.5259
B142: 73713.21446
B143: 12852.24902
B144: 79655.91449
B145: 231436.0138
B146: 9419.873651
B147: 188517.8007
B148: 706564.7557
B149: 12983.17926

Sheet Mobility (hidden)
A1: This sheet implements a model of intergenerational mobility. | R1: Cell M9 (same as S20) is the key number we are interested in.
R2: The QUINTILE TRANSITION MATRIX is like the one that Chetty produced and we added a graph below it to display the data in a different way.
A3: Columns B and H use LOGNORM.INV to draw 1,000 log-normally distributed incomes. | R3: The numbers are one realization of the random process -- like rolling a 3 and 5 with two dice.
A4: Columns C and I compute the RANK of each income, with 1 as the highest. | R4: PRESS F9 to see the numbers bounce. Each time you hit F9, you get a new transition probabilities because you get new incomes (in col B and H).
A5: Column D uses an IF statement to determine if the income is in the bottom (1st) quintile. | R5: We will use Monte Carlo simulation to get a handle on the center and spread of the bottom-to-top transition probability
A6: Column J uses an IF statement to determine if the income is in the top (5th) quintile. | R6: Select cell M9 (click once on it, do not be in it like when you are editing a formula), then click the MCSim button and click Proceed.
A7: Column M finds if the child's parent was in the bottom quintile AND the child is now in the top quintile. | K7: PRESS F9 repeatedly to see the numbers bounce around. | S7: Upon completion, you will be taken to a new sheet with simulation results. Look at your results and return here.
B8: Cell M9, in green, is the bottom-to-top transition percentage. | M8: =COUNTIF(M11:M1010,">=0") -> 200 | N8: check
M9: =SUM(M11:M1010)/200 -> 0.195 | N9: % of bottom who moved up to top | X9: Q5) Is your average bottom-to-top transition probability of roughly 20% low or high mobility? Why? CLICK in the text box below and write a few words to answer this question.
A10: Parent | B10: Income ($) | C10: Rank | D10: Bottom Quintile? | G10: Child | H10: Income ($) | I10: Rank | J10: Top Quintile? | M10: Moved From Bottom to Top?
A11: 1 | B11: =_xlfn.LOGNORM.INV(RAND(),11,1) -> 194783.9287 | C11: =RANK(B11,$B$11:$B$1010,0) -> 136 | D11: =IF(C11>800,1,0) -> 0 | G11: 1 | H11: =_xlfn.LOGNORM.INV(RAND(),11,1) -> 15988.32873 | I11: =RANK(H11,$H$11:$H$1010,0) -> 895 | J11: =IF(I11<=200,1,0) -> 0 | M11: =IF(D11=1,IF(J11=1,1,0),"") -> 
A12: 2 | B12: =_xlfn.LOGNORM.INV(RAND(),11,1) -> 94039.60311 | C12: =RANK(B12,$B$11:$B$1010,0) -> 335 | D12: =IF(C12>800,1,0) -> 0 | G12: 2 | H12: =_xlfn.LOGNORM.INV(RAND(),11,1) -> 9888.350499 | I12: =RANK(H12,$H$11:$H$1010,0) -> 969 | J12: =IF(I12<=200,1,0) -> 0 | M12: =IF(D12=1,IF(J12=1,1,0),"") ->  | R12: QUINTILE TRANSITION MATRIX
A13: 3 | B13: 79599.7521 | C13: 390 | D13: 0 | G13: 3 | H13: 5891.042057 | I13: 989 | J13: 0 | N13: Cells M11:M1010 use two IF | S13: 5th quintile is top (richest) fifth like 99th percentile is top 1%.
A14: 4 | B14: 11045.75983 | C14: 955 | D14: 1 | G14: 4 | H14: 11333.13093 | I14: 954 | J14: 0 | M14: 0 | N14: statements to produce a 1 | S14: Parent
A15: 5 | B15: 23931.17965 | C15: 815 | D15: 1 | G15: 5 | H15: 246754.8088 | I15: 81 | J15: 1 | M15: 1 | N15: only when it is BOTH true that | R15: Child | S15: 1 | T15: 2 | U15: 3 | V15: 4 | W15: 5
A16: 6 | B16: 110707.8518 | C16: 278 | D16: 0 | G16: 6 | H16: 201601.4528 | I16: 111 | J16: 1 | N16: the parent was poor and the | R16: 1 | S16: =tmatrix(C11:C1010,I11:I1010) -> 0.2 | T16: 0.155 | U16: 0.18 | V16: 0.22 | W16: 0.245 | X16: =SUM(S16:W16) -> 1
A17: 7 | B17: 20064.56941 | C17: 860 | D17: 1 | G17: 7 | H17: 108598.2783 | I17: 284 | J17: 0 | M17: 0 | N17: child is rich. | R17: 2 | S17: 0.205 | T17: 0.215 | U17: 0.2 | V17: 0.18 | W17: 0.2 | X17: =SUM(S17:W17) -> 1 | Z17: When you are finished, CLICK the Next Screen button below.
A18: 8 | B18: 26934.68561 | C18: 785 | D18: 0 | G18: 8 | H18: 115020.5817 | I18: 270 | J18: 0 | N18: The double quotations marks, "", | R18: 3 | S18: 0.195 | T18: 0.215 | U18: 0.185 | V18: 0.195 | W18: 0.21 | X18: 1
A19: 9 | B19: 45321.54486 | C19: 604 | D19: 0 | G19: 9 | H19: 41230.38162 | I19: 641 | J19: 0 | N19: which is what the cells evaluate to | R19: 4 | S19: 0.205 | T19: 0.22 | U19: 0.205 | V19: 0.21 | W19: 0.16 | X19: 1
A20: 10 | B20: 75227.87865 | C20: 418 | D20: 0 | G20: 10 | H20: 134374.7526 | I20: 213 | J20: 0 | N20: if either condition does not hold, | R20: 5 | S20: 0.195 | T20: 0.195 | U20: 0.23 | V20: 0.195 | W20: 0.185 | X20: 1
A21: 11 | B21: 15540.31169 | C21: 916 | D21: 1 | G21: 11 | H21: 12531.10152 | I21: 941 | J21: 0 | M21: 0 | N21: means Excel displays nothing (and | S21: =SUM(S16:S20) -> 1 | T21: =SUM(T16:T20) -> 1 | U21: 1 | V21: 1 | W21: 1
A22: 12 | B22: 251384.2396 | C22: 90 | D22: 0 | G22: 12 | H22: 35298.63556 | I22: 701 | J22: 0 | N22: the cell is blank) since there is
A23: 13 | B23: 263086.0464 | C23: 83 | D23: 0 | G23: 13 | H23: 83157.46254 | I23: 376 | J23: 0 | N23: nothing between the quotation marks.
A24: 14 | B24: 43122.4334 | C24: 629 | D24: 0 | G24: 14 | H24: 44220.07898 | I24: 609 | J24: 0
A25: 15 | B25: 43614.48344 | C25: 624 | D25: 0 | G25: 15 | H25: 79543.38389 | I25: 388 | J25: 0
A26: 16 | B26: 1506142.073 | C26: 1 | D26: 0 | G26: 16 | H26: 66845.99511 | I26: 446 | J26: 0
A27: 17 | B27: 5203.917438 | C27: 995 | D27: 1 | G27: 17 | H27: 22570.6095 | I27: 821 | J27: 0 | M27: 0
A28: 18 | B28: 75178.85258 | C28: 419 | D28: 0 | G28: 18 | H28: 908173.8804 | I28: 4 | J28: 1
A29: 19 | B29: 43251.04302 | C29: 626 | D29: 0 | G29: 19 | H29: 407153.0039 | I29: 29 | J29: 1
A30: 20 | B30: 150840.4265 | C30: 189 | D30: 0 | G30: 20 | H30: 37214.28448 | I30: 679 | J30: 0
A31: 21 | B31: 59087.58551 | C31: 497 | D31: 0 | G31: 21 | H31: 441004.8066 | I31: 25 | J31: 1
A32: 22 | B32: 58711.85133 | C32: 499 | D32: 0 | G32: 22 | H32: 64154.90372 | I32: 455 | J32: 0
A33: 23 | B33: 33012.52079 | C33: 727 | D33: 0 | G33: 23 | H33: 15203.66163 | I33: 904 | J33: 0
A34: 24 | B34: 32010.60269 | C34: 736 | D34: 0 | G34: 24 | H34: 240813.8611 | I34: 85 | J34: 1
A35: 25 | B35: 78130.81775 | C35: 400 | D35: 0 | G35: 25 | H35: 7139.897564 | I35: 982 | J35: 0
A36: 26 | B36: 203975.8097 | C36: 128 | D36: 0 | G36: 26 | H36: 5237.100696 | I36: 993 | J36: 0
A37: 27 | B37: 22240.2436 | C37: 834 | D37: 1 | G37: 27 | H37: 151043.2794 | I37: 178 | J37: 1 | M37: 1
A38: 28 | B38: 580054.0353 | C38: 9 | D38: 0 | G38: 28 | H38: 17649.73584 | I38: 873 | J38: 0
A39: 29 | B39: 15799.77939 | C39: 915 | D39: 1 | G39: 29 | H39: 191987.312 | I39: 120 | J39: 1 | M39: 1
A40: 30 | B40: 36405.01331 | C40: 682 | D40: 0 | G40: 30 | H40: 200428.8349 | I40: 114 | J40: 1
A41: 31 | B41: 46085.31305 | C41: 602 | D41: 0 | G41: 31 | H41: 37405.01638 | I41: 675 | J41: 0
A42: 32 | B42: 268806.1743 | C42: 78 | D42: 0 | G42: 32 | H42: 242204.6911 | I42: 83 | J42: 1
A43: 33 | B43: 142178.2089 | C43: 203 | D43: 0 | G43: 33 | H43: 14478.02735 | I43: 912 | J43: 0
A44: 34 | B44: 130102.0676 | C44: 228 | D44: 0 | G44: 34 | H44: 79922.56343 | I44: 387 | J44: 0
A45: 35 | B45: 42164.04445 | C45: 634 | D45: 0 | G45: 35 | H45: 32670.86183 | I45: 724 | J45: 0
A46: 36 | B46: 117882.1932 | C46: 261 | D46: 0 | G46: 36 | H46: 17002.42871 | I46: 883 | J46: 0
A47: 37 | B47: 27973.83168 | C47: 780 | D47: 0 | G47: 37 | H47: 120710.8611 | I47: 255 | J47: 0
A48: 38 | B48: 27445.07007 | C48: 784 | D48: 0 | G48: 38 | H48: 110099.0303 | I48: 279 | J48: 0
A49: 39 | B49: 170596.8023 | C49: 159 | D49: 0 | G49: 39 | H49: 50612.65772 | I49: 558 | J49: 0
A50: 40 | B50: 80276.24642 | C50: 385 | D50: 0 | G50: 40 | H50: 60520.55759 | I50: 484 | J50: 0
A51: 41 | B51: 273246.8511 | C51: 72 | D51: 0 | G51: 41 | H51: 64076.26783 | I51: 457 | J51: 0
A52: 42 | B52: 353368.1417 | C52: 36 | D52: 0 | G52: 42 | H52: 123715.7609 | I52: 243 | J52: 0
A53: 43 | B53: 271938.5003 | C53: 74 | D53: 0 | G53: 43 | H53: 93472.73308 | I53: 335 | J53: 0
A54: 44 | B54: 57774.91943 | C54: 514 | D54: 0 | G54: 44 | H54: 81607.93805 | I54: 380 | J54: 0
A55: 45 | B55: 59279.65612 | C55: 494 | D55: 0 | G55: 45 | H55: 149331.1756 | I55: 181 | J55: 1
A56: 46 | B56: 14524.64783 | C56: 927 | D56: 1 | G56: 46 | H56: 21456.36087 | I56: 830 | J56: 0 | M56: 0
A57: 47 | B57: 79439.26069 | C57: 392 | D57: 0 | G57: 47 | H57: 17526.44749 | I57: 876 | J57: 0
A58: 48 | B58: 46953.65062 | C58: 593 | D58: 0 | G58: 48 | H58: 955306.8193 | I58: 3 | J58: 1
A59: 49 | B59: 231077.0599 | C59: 101 | D59: 0 | G59: 49 | H59: 40798.0629 | I59: 647 | J59: 0
A60: 50 | B60: 39536.42976 | C60: 658 | D60: 0 | G60: 50 | H60: 213368.7441 | I60: 102 | J60: 1
A61: 51 | B61: 36673.51797 | C61: 679 | D61: 0 | G61: 51 | H61: 45568.224 | I61: 600 | J61: 0
A62: 52 | B62: 92272.4255 | C62: 342 | D62: 0 | G62: 52 | H62: 38313.58482 | I62: 669 | J62: 0
A63: 53 | B63: 36834.95735 | C63: 678 | D63: 0 | G63: 53 | H63: 11616.11558 | I63: 950 | J63: 0
A64: 54 | B64: 54796.81114 | C64: 542 | D64: 0 | G64: 54 | H64: 27091.97546 | I64: 765 | J64: 0
A65: 55 | B65: 14007.39276 | C65: 931 | D65: 1 | G65: 55 | H65: 18876.17866 | I65: 858 | J65: 0 | M65: 0
A66: 56 | B66: 62907.13431 | C66: 472 | D66: 0 | G66: 56 | H66: 39188.30088 | I66: 659 | J66: 0
A67: 57 | B67: 69060.81169 | C67: 443 | D67: 0 | G67: 57 | H67: 40328.49267 | I67: 649 | J67: 0
A68: 58 | B68: 284787.2648 | C68: 66 | D68: 0 | G68: 58 | H68: 95485.8676 | I68: 329 | J68: 0
A69: 59 | B69: 42208.20693 | C69: 633 | D69: 0 | G69: 59 | H69: 236791.5657 | I69: 88 | J69: 1
A70: 60 | B70: 25909.75193 | C70: 796 | D70: 0 | G70: 60 | H70: 24411.62517 | I70: 800 | J70: 0
A71: 61 | B71: 77088.74108 | C71: 409 | D71: 0 | G71: 61 | H71: 83750.90728 | I71: 373 | J71: 0
A72: 62 | B72: 1195715.692 | C72: 2 | D72: 0 | G72: 62 | H72: 15432.21798 | I72: 899 | J72: 0
A73: 63 | B73: 22670.92826 | C73: 828 | D73: 1 | G73: 63 | H73: 95523.00674 | I73: 328 | J73: 0 | M73: 0
A74: 64 | B74: 69227.87277 | C74: 441 | D74: 0 | G74: 64 | H74: 58594.38593 | I74: 499 | J74: 0
A75: 65 | B75: 99410.29632 | C75: 315 | D75: 0 | G75: 65 | H75: 31065.00045 | I75: 735 | J75: 0
A76: 66 | B76: =_xlfn.LOGNORM.INV(RAND(),11,1) -> 9568.449768 | C76: =RANK(B76,$B$11:$B$1010,0) -> 968 | D76: =IF(C76>800,1,0) -> 1 | G76: 66 | H76: =_xlfn.LOGNORM.INV(RAND(),11,1) -> 82919.98583 | I76: =RANK(H76,$H$11:$H$1010,0) -> 377 | J76: =IF(I76<=200,1,0) -> 0 | M76: =IF(D76=1,IF(J76=1,1,0),"") -> 0
A77: 67 | B77: 146692.1587 | C77: 197 | D77: 0 | G77: 67 | H77: 21862.77333 | I77: 828 | J77: 0
A78: 68 | B78: 35275.92363 | C78: 700 | D78: 0 | G78: 68 | H78: 8116.365855 | I78: 976 | J78: 0
A79: 69 | B79: 24299.67754 | C79: 809 | D79: 1 | G79: 69 | H79: 60590.95989 | I79: 483 | J79: 0 | M79: 0
A80: 70 | B80: 20473.39153 | C80: 852 | D80: 1 | G80: 70 | H80: 397573.4059 | I80: 31 | J80: 1 | M80: 1
A81: 71 | B81: 172805.2136 | C81: 155 | D81: 0 | G81: 71 | H81: 43974.18794 | I81: 611 | J81: 0
A82: 72 | B82: 178965.0781 | C82: 149 | D82: 0 | G82: 72 | H82: 70975.06153 | I82: 427 | J82: 0
A83: 73 | B83: 93102.85506 | C83: 339 | D83: 0 | G83: 73 | H83: 56809.08635 | I83: 511 | J83: 0
A84: 74 | B84: 270947.5471 | C84: 76 | D84: 0 | G84: 74 | H84: 27082.08372 | I84: 766 | J84: 0
A85: 75 | B85: 28874.68502 | C85: 768 | D85: 0 | G85: 75 | H85: 47826.18666 | I85: 583 | J85: 0
A86: 76 | B86: 56646.85348 | C86: 530 | D86: 0 | G86: 76 | H86: 72889.42512 | I86: 421 | J86: 0
A87: 77 | B87: 80311.40117 | C87: 384 | D87: 0 | G87: 77 | H87: 201576.8924 | I87: 112 | J87: 1
A88: 78 | B88: 58395.66358 | C88: 505 | D88: 0 | G88: 78 | H88: 75697.6451 | I88: 407 | J88: 0
A89: 79 | B89: 259786.9289 | C89: 85 | D89: 0 | G89: 79 | H89: 16289.38459 | I89: 890 | J89: 0
A90: 80 | B90: 450442.3169 | C90: 21 | D90: 0 | G90: 80 | H90: 16088.14148 | I90: 894 | J90: 0
A91: 81 | B91: 50532.00864 | C91: 569 | D91: 0 | G91: 81 | H91: 93290.50324 | I91: 336 | J91: 0
A92: 82 | B92: 34716.74676 | C92: 707 | D92: 0 | G92: 82 | H92: 116245.3404 | I92: 267 | J92: 0
A93: 83 | B93: 321579.3289 | C93: 48 | D93: 0 | G93: 83 | H93: 124219.843 | I93: 242 | J93: 0
A94: 84 | B94: 38761.55074 | C94: 665 | D94: 0 | G94: 84 | H94: 57147.78626 | I94: 510 | J94: 0
A95: 85 | B95: 194951.542 | C95: 135 | D95: 0 | G95: 85 | H95: 50948.82001 | I95: 555 | J95: 0
A96: 86 | B96: 37687.66236 | C96: 671 | D96: 0 | G96: 86 | H96: 47661.93979 | I96: 584 | J96: 0
A97: 87 | B97: 21227.48325 | C97: 845 | D97: 1 | G97: 87 | H97: 13146.82246 | I97: 931 | J97: 0 | M97: 0
A98: 88 | B98: 12358.96173 | C98: 947 | D98: 1 | G98: 88 | H98: 98663.91085 | I98: 317 | J98: 0 | M98: 0
A99: 89 | B99: 51590.29401 | C99: 560 | D99: 0 | G99: 89 | H99: 32235.10913 | I99: 728 | J99: 0
A100: 90 | B100: 39022.10489 | C100: 663 | D100: 0 | G100: 90 | H100: 133901.2305 | I100: 214 | J100: 0
A101: 91 | B101: 97460.68213 | C101: 325 | D101: 0 | G101: 91 | H101: 14823.50105 | I101: 909 | J101: 0
A102: 92 | B102: 71544.61061 | C102: 433 | D102: 0 | G102: 92 | H102: 12015.08122 | I102: 945 | J102: 0
A103: 93 | B103: 30529.56874 | C103: 748 | D103: 0 | G103: 93 | H103: 47521.92895 | I103: 585 | J103: 0
A104: 94 | B104: 38509.89967 | C104: 666 | D104: 0 | G104: 94 | H104: 38110.43062 | I104: 670 | J104: 0
A105: 95 | B105: 7373.495788 | C105: 979 | D105: 1 | G105: 95 | H105: 174000.7114 | I105: 142 | J105: 1 | M105: 1
A106: 96 | B106: 68506.48722 | C106: 445 | D106: 0 | G106: 96 | H106: 229809.8124 | I106: 93 | J106: 1
A107: 97 | B107: 44301.0052 | C107: 619 | D107: 0 | G107: 97 | H107: 18577.98265 | I107: 860 | J107: 0
A108: 98 | B108: 477834.1135 | C108: 20 | D108: 0 | G108: 98 | H108: 48944.37125 | I108: 574 | J108: 0
A109: 99 | B109: 8723.252112 | C109: 973 | D109: 1 | G109: 99 | H109: 88436.40699 | I109: 359 | J109: 0 | M109: 0
A110: 100 | B110: 357363.296 | C110: 34 | D110: 0 | G110: 100 | H110: 133346.5119 | I110: 217 | J110: 0
A111: 101 | B111: 97921.40233 | C111: 324 | D111: 0 | G111: 101 | H111: 23922.97855 | I111: 806 | J111: 0
A112: 102 | B112: 163046.1151 | C112: 169 | D112: 0 | G112: 102 | H112: 145775.499 | I112: 191 | J112: 1
A113: 103 | B113: 89186.15399 | C113: 349 | D113: 0 | G113: 103 | H113: 52552.32528 | I113: 542 | J113: 0
A114: 104 | B114: 263907.9473 | C114: 81 | D114: 0 | G114: 104 | H114: 147983.4208 | I114: 185 | J114: 1
A115: 105 | B115: 126772.7247 | C115: 236 | D115: 0 | G115: 105 | H115: 13517.55339 | I115: 926 | J115: 0
A116: 106 | B116: 32707.52027 | C116: 728 | D116: 0 | G116: 106 | H116: 15768.96129 | I116: 896 | J116: 0
A117: 107 | B117: 12696.90049 | C117: 944 | D117: 1 | G117: 107 | H117: 274338.9078 | I117: 68 | J117: 1 | M117: 1
A118: 108 | B118: 54354.51515 | C118: 545 | D118: 0 | G118: 108 | H118: 256657.377 | I118: 77 | J118: 1
A119: 109 | B119: 19665.15199 | C119: 867 | D119: 1 | G119: 109 | H119: 224215.5761 | I119: 96 | J119: 1 | M119: 1
A120: 110 | B120: 80018.84752 | C120: 387 | D120: 0 | G120: 110 | H120: 459852.4673 | I120: 21 | J120: 1
A121: 111 | B121: 81011.71847 | C121: 380 | D121: 0 | G121: 111 | H121: 54762.61473 | I121: 527 | J121: 0
A122: 112 | B122: 86587.07835 | C122: 353 | D122: 0 | G122: 112 | H122: 89952.18357 | I122: 356 | J122: 0
A123: 113 | B123: 21480.34929 | C123: 843 | D123: 1 | G123: 113 | H123: 40996.68873 | I123: 644 | J123: 0 | M123: 0
A124: 114 | B124: 108204.3511 | C124: 288 | D124: 0 | G124: 114 | H124: 74603.693 | I124: 411 | J124: 0
A125: 115 | B125: 114739.1993 | C125: 266 | D125: 0 | G125: 115 | H125: 38917.95341 | I125: 661 | J125: 0
A126: 116 | B126: 46742.21618 | C126: 595 | D126: 0 | G126: 116 | H126: 42067.48548 | I126: 632 | J126: 0
A127: 117 | B127: 52846.58572 | C127: 557 | D127: 0 | G127: 117 | H127: 80142.55497 | I127: 386 | J127: 0
A128: 118 | B128: 67489.74128 | C128: 450 | D128: 0 | G128: 118 | H128: 16302.32069 | I128: 889 | J128: 0
A129: 119 | B129: 22923.08291 | C129: 825 | D129: 1 | G129: 119 | H129: 60388.17381 | I129: 486 | J129: 0 | M129: 0
A130: 120 | B130: 19923.97412 | C130: 862 | D130: 1 | G130: 120 | H130: 564498.758 | I130: 8 | J130: 1 | M130: 1
A131: 121 | B131: 184104.3003 | C131: 143 | D131: 0 | G131: 121 | H131: 95565.3759 | I131: 327 | J131: 0
A132: 122 | B132: 49151.82792 | C132: 577 | D132: 0 | G132: 122 | H132: 44756.28111 | I132: 604 | J132: 0
A133: 123 | B133: 44166.16091 | C133: 621 | D133: 0 | G133: 123 | H133: 38462.67945 | I133: 667 | J133: 0
A134: 124 | B134: 154469.743 | C134: 183 | D134: 0 | G134: 124 | H134: 48464.03916 | I134: 577 | J134: 0
A135: 125 | B135: 15970.8173 | C135: 912 | D135: 1 | G135: 125 | H135: 15188.75646 | I135: 905 | J135: 0 | M135: 0
A136: 126 | B136: 17380.6505 | C136: 897 | D136: 1 | G136: 126 | H136: 62581.29036 | I136: 468 | J136: 0 | M136: 0
A137: 127 | B137: 26828.2689 | C137: 786 | D137: 0 | G137: 127 | H137: 147047.7723 | I137: 188 | J137: 1
A138: 128 | B138: 122251.6928 | C138: 253 | D138: 0 | G138: 128 | H138: 131402.2065 | I138: 221 | J138: 0
A139: 129 | B139: 29837.21094 | C139: 755 | D139: 0 | G139: 129 | H139: 419501.1858 | I139: 28 | J139: 1
A140: 130 | B140: =_xlfn.LOGNORM.INV(RAND(),11,1) -> 344496.7265 | C140: =RANK(B140,$B$11:$B$1010,0) -> 40 | D140: =IF(C140>800,1,0) -> 0 | G140: 130 | H140: =_xlfn.LOGNORM.INV(RAND(),11,1) -> 303849.0957 | I140: =RANK(H140,$H$11:$H$1010,0) -> 57 | J140: =IF(I140<=200,1,0) -> 1 | M140: =IF(D140=1,IF(J140=1,1,0),"") -> 
A141: 131 | B141: 56547.0949 | C141: 533 | D141: 0 | G141: 131 | H141: 266515.562 | I141: 72 | J141: 1
A142: 132 | B142: 70169.55766 | C142: 437 | D142: 0 | G142: 132 | H142: 280432.5346 | I142: 64 | J142: 1
A143: 133 | B143: 47731.69215 | C143: 586 | D143: 0 | G143: 133 | H143: 56589.71288 | I143: 514 | J143: 0
A144: 134 | B144: 64146.12283 | C144: 465 | D144: 0 | G144: 134 | H144: 2591.376549 | I144: 999 | J144: 0
A145: 135 | B145: 46063.39561 | C145: 603 | D145: 0 | G145: 135 | H145: 33386.45399 | I145: 716 | J145: 0
A146: 136 | B146: 20276.48548 | C146: 854 | D146: 1 | G146: 136 | H146: 32253.80045 | I146: 727 | J146: 0 | M146: 0
A147: 137 | B147: 201502.6448 | C147: 130 | D147: 0 | G147: 137 | H147: 125416.9292 | I147: 236 | J147: 0
A148: 138 | B148: 63159.20737 | C148: 471 | D148: 0 | G148: 138 | H148: 21295.17383 | I148: 832 | J148: 0
A149: 139 | B149: 26057.4481 | C149: 795 | D149: 0 | G149: 139 | H149: 3744.257989 | I149: 997 | J149: 0
A150: 140 | B150: 216643.1067 | C150: 113 | D150: 0 | G150: 140 | H150: 105908.0537 | I150: 290 | J150: 0
A151: 141 | B151: 209226.8865 | C151: 119 | D151: 0 | G151: 141 | H151: 230425.4687 | I151: 91 | J151: 1
A152: 142 | B152: 159778.5893 | C152: 174 | D152: 0 | G152: 142 | H152: 16752.58285 | I152: 885 | J152: 0
A153: 143 | B153: 7193.621799 | C153: 983 | D153: 1 | G153: 143 | H153: 33221.91721 | I153: 719 | J153: 0 | M153: 0
A154: 144 | B154: 33889.98092 | C154: 715 | D154: 0 | G154: 144 | H154: 16420.67602 | I154: 887 | J154: 0
A155: 145 | B155: 106459.8557 | C155: 297 | D155: 0 | G155: 145 | H155: 174652.6219 | I155: 141 | J155: 1
A156: 146 | B156: 76574.32642 | C156: 411 | D156: 0 | G156: 146 | H156: 61166.44486 | I156: 476 | J156: 0
A157: 147 | B157: 314295.0277 | C157: 53 | D157: 0 | G157: 147 | H157: 41058.71519 | I157: 643 | J157: 0
A158: 148 | B158: 33968.03606 | C158: 713 | D158: 0 | G158: 148 | H158: 124265.0013 | I158: 241 | J158: 0
A159: 149 | B159: 79160.96458 | C159: 394 | D159: 0 | G159: 149 | H159: 39056.63344 | I159: 660 | J159: 0
A160: 150 | B160: 57181.82144 | C160: 525 | D160: 0 | G160: 150 | H160: 27593.27026 | I160: 760 | J160: 0
A161: 151 | B161: 183437.052 | C161: 145 | D161: 0 | G161: 151 | H161: 47832.2329 | I161: 582 | J161: 0
A162: 152 | B162: 411453.22 | C162: 23 | D162: 0 | G162: 152 | H162: 26732.92583 | I162: 767 | J162: 0
A163: 153 | B163: 123282.6211 | C163: 251 | D163: 0 | G163: 153 | H163: 223586.1283 | I163: 99 | J163: 1
A164: 154 | B164: 280029.8 | C164: 70 | D164: 0 | G164: 154 | H164: 74404.72019 | I164: 412 | J164: 0
A165: 155 | B165: 13030.1295 | C165: 942 | D165: 1 | G165: 155 | H165: 77796.93448 | I165: 395 | J165: 0 | M165: 0
A166: 156 | B166: 71194.87239 | C166: 434 | D166: 0 | G166: 156 | H166: 203604.9803 | I166: 109 | J166: 1
A167: 157 | B167: 52959.19448 | C167: 554 | D167: 0 | G167: 157 | H167: 9416.546755 | I167: 971 | J167: 0
A168: 158 | B168: 39651.432 | C168: 655 | D168: 0 | G168: 158 | H168: 276815.6729 | I168: 66 | J168: 1
A169: 159 | B169: 57990.05804 | C169: 511 | D169: 0 | G169: 159 | H169: 67523.84739 | I169: 442 | J169: 0
A170: 160 | B170: 57187.02141 | C170: 524 | D170: 0 | G170: 160 | H170: 36522.13507 | I170: 687 | J170: 0
A171: 161 | B171: 162473.4417 | C171: 170 | D171: 0 | G171: 161 | H171: 12779.86833 | I171: 938 | J171: 0
A172: 162 | B172: 23242.27746 | C172: 819 | D172: 1 | G172: 162 | H172: 17017.26263 | I172: 882 | J172: 0 | M172: 0
A173: 163 | B173: 50839.33119 | C173: 568 | D173: 0 | G173: 163 | H173: 364263.5225 | I173: 37 | J173: 1
A174: 164 | B174: 102203.5875 | C174: 306 | D174: 0 | G174: 164 | H174: 31388.537 | I174: 732 | J174: 0
A175: 165 | B175: 103978.2419 | C175: 303 | D175: 0 | G175: 165 | H175: 480348.9605 | I175: 16 | J175: 1
A176: 166 | B176: 142775.7269 | C176: 202 | D176: 0 | G176: 166 | H176: 17064.51145 | I176: 881 | J176: 0
A177: 167 | B177: 310713.4709 | C177: 54 | D177: 0 | G177: 167 | H177: 14979.18175 | I177: 907 | J177: 0
A178: 168 | B178: 72278.23093 | C178: 431 | D178: 0 | G178: 168 | H178: 102676.0379 | I178: 298 | J178: 0
A179: 169 | B179: 21499.75055 | C179: 842 | D179: 1 | G179: 169 | H179: 29051.33953 | I179: 747 | J179: 0 | M179: 0
A180: 170 | B180: 41400.24964 | C180: 644 | D180: 0 | G180: 170 | H180: 81141.5482 | I180: 382 | J180: 0
A181: 171 | B181: 250611.2973 | C181: 91 | D181: 0 | G181: 171 | H181: 32270.19244 | I181: 726 | J181: 0
A182: 172 | B182: 350291.9777 | C182: 37 | D182: 0 | G182: 172 | H182: 162999.2916 | I182: 157 | J182: 1
A183: 173 | B183: 5786.99415 | C183: 990 | D183: 1 | G183: 173 | H183: 10921.101 | I183: 961 | J183: 0 | M183: 0
A184: 174 | B184: 225559.355 | C184: 107 | D184: 0 | G184: 174 | H184: 90907.34399 | I184: 349 | J184: 0
A185: 175 | B185: 177001.0452 | C185: 150 | D185: 0 | G185: 175 | H185: 20005.68067 | I185: 842 | J185: 0
A186: 176 | B186: 224659.0906 | C186: 108 | D186: 0 | G186: 176 | H186: 19149.37834 | I186: 854 | J186: 0
A187: 177 | B187: 19408.87909 | C187: 871 | D187: 1 | G187: 177 | H187: 15313.45728 | I187: 903 | J187: 0 | M187: 0
A188: 178 | B188: 43577.91686 | C188: 625 | D188: 0 | G188: 178 | H188: 54833.07181 | I188: 526 | J188: 0
A189: 179 | B189: 155401.02 | C189: 181 | D189: 0 | G189: 179 | H189: 313692.4964 | I189: 52 | J189: 1
A190: 180 | B190: 113272.5622 | C190: 273 | D190: 0 | G190: 180 | H190: 48032.69658 | I190: 580 | J190: 0
A191: 181 | B191: 22496.5136 | C191: 831 | D191: 1 | G191: 181 | H191: 16185.31823 | I191: 892 | J191: 0 | M191: 0
A192: 182 | B192: 5670.520893 | C192: 991 | D192: 1 | G192: 182 | H192: 57454.3407 | I192: 506 | J192: 0 | M192: 0
A193: 183 | B193: 22592.31164 | C193: 829 | D193: 1 | G193: 183 | H193: 59865.61017 | I193: 491 | J193: 0 | M193: 0
A194: 184 | B194: 292182.4456 | C194: 62 | D194: 0 | G194: 184 | H194: 25315.24992 | I194: 783 | J194: 0
A195: 185 | B195: 149223.7208 | C195: 193 | D195: 0 | G195: 185 | H195: 161612.3982 | I195: 162 | J195: 1
A196: 186 | B196: 369948.9932 | C196: 32 | D196: 0 | G196: 186 | H196: 18007.37045 | I196: 865 | J196: 0
A197: 187 | B197: 29348.19704 | C197: 761 | D197: 0 | G197: 187 | H197: 42788.46901 | I197: 623 | J197: 0
A198: 188 | B198: 63399.53559 | C198: 470 | D198: 0 | G198: 188 | H198: 136060.8091 | I198: 209 | J198: 0
A199: 189 | B199: 117280.4228 | C199: 262 | D199: 0 | G199: 189 | H199: 121291.1739 | I199: 254 | J199: 0
A200: 190 | B200: 9231.127748 | C200: 969 | D200: 1 | G200: 190 | H200: 38471.67289 | I200: 666 | J200: 0 | M200: 0
... 810 more rows

Sheet MCSimNoInherit (hidden)
A1: Results of Monte Carlo Simulation | AK1: 0 | AL1: $S$20
A2: Sample Number | B2: $S$20 | F2: Simulation Stats | AH2: 0 | AK2: 0.135 | AL2: 0
A3: 1 | B3: 0.205 | F3: 1000 | G3: repetitions | AH3: 0.1290322542 | AI3: 0 | AK3: 0.135 | AL3: 3
A4: 2 | B4: 0.24 | F4: 25.00000019 | G4: seconds | I4: Summary Statistics | L4: Notes | AH4: 0.2580645084 | AI4: 3 | AK4: 0.14 | AL4: 3
A5: 3 | B5: 0.2 | I5: Average | J5: 0.20095 | L5: %inherit = 0 | AH5: 0.3870967627 | AI5: 4 | AK5: 0.14 | AL5: 7
A6: 4 | B6: 0.22 | I6: SD | J6: 0.02534837352 | AH6: 0.5161290169 | AI6: 8 | AK6: 0.145 | AL6: 7
A7: 5 | B7: 0.215 | I7: Max | J7: 0.29 | AH7: 0.6451612711 | AI7: 4 | AK7: 0.145 | AL7: 6
A8: 6 | B8: 0.24 | I8: Min | J8: 0.135 | AH8: 0.7741935253 | AI8: 9 | AK8: 0.15 | AL8: 6
A9: 7 | B9: 0.195 | AH9: 0.9032257795 | AI9: 9 | AK9: 0.15 | AL9: 9
A10: 8 | B10: 0.18 | AH10: 1.032258034 | AI10: 12 | AK10: 0.155 | AL10: 9
A11: 9 | B11: 0.23 | AH11: 1.161290288 | AI11: 8 | AK11: 0.155 | AL11: 18
A12: 10 | B12: 0.225 | AH12: 1.290322542 | AI12: 3 | AK12: 0.16 | AL12: 18
A13: 11 | B13: 0.2 | AH13: 1.419354796 | AI13: 6 | AK13: 0.16 | AL13: 19
A14: 12 | B14: 0.185 | AH14: 1.548387051 | AI14: 7 | AK14: 0.165 | AL14: 19
A15: 13 | B15: 0.215 | AH15: 1.677419305 | AI15: 6 | AK15: 0.165 | AL15: 33
A16: 14 | B16: 0.18 | AH16: 1.806451559 | AI16: 6 | AK16: 0.17 | AL16: 33
A17: 15 | B17: 0.195 | AH17: 1.935483813 | AI17: 2 | AK17: 0.17 | AL17: 42
A18: 16 | B18: 0.22 | AH18: 2.064516068 | AI18: 5 | AK18: 0.175 | AL18: 42
A19: 17 | B19: 0.215 | AH19: 2.193548322 | AI19: 2 | AK19: 0.175 | AL19: 44
A20: 18 | B20: 0.18 | AH20: 2.322580576 | AI20: 3 | AK20: 0.18 | AL20: 44
A21: 19 | B21: 0.26 | AH21: 2.45161283 | AI21: 2 | AK21: 0.18 | AL21: 56
A22: 20 | B22: 0.255 | AH22: 2.580645084 | AI22: 1 | AK22: 0.185 | AL22: 56
A23: 21 | B23: 0.19 | AH23: 2.709677339 | AI23: 0 | AK23: 0.185 | AL23: 62
A24: 22 | B24: 0.21 | AH24: 2.838709593 | AI24: 0 | AK24: 0.19 | AL24: 62
A25: 23 | B25: 0.2 | AH25: 2.967741847 | AI25: 0 | AK25: 0.19 | AL25: 65
A26: 24 | B26: 0.19 | AH26: 3.096774101 | AI26: 0 | AK26: 0.195 | AL26: 65
A27: 25 | B27: 0.195 | AH27: 3.225806355 | AI27: 0 | AK27: 0.195 | AL27: 79
A28: 26 | B28: 0.23 | AH28: 3.35483861 | AI28: 0 | AK28: 0.2 | AL28: 79
A29: 27 | B29: 0.21 | AH29: 3.483870864 | AI29: 0 | AK29: 0.2 | AL29: 84
A30: 28 | B30: 0.165 | AH30: 3.612903118 | AI30: 0 | AK30: 0.205 | AL30: 84
A31: 29 | B31: 0.155 | AH31: 3.741935372 | AI31: 0 | AK31: 0.205 | AL31: 74
A32: 30 | B32: 0.21 | AH32: 3.870967627 | AI32: 0 | AK32: 0.21 | AL32: 74
A33: 31 | B33: 0.19 | AH33: 3.999999881 | AI33: 0 | AK33: 0.21 | AL33: 74
A34: 32 | B34: 0.19 | AK34: 0.215 | AL34: 74
A35: 33 | B35: 0.205 | AK35: 0.215 | AL35: 75
A36: 34 | B36: 0.21 | AK36: 0.22 | AL36: 75
A37: 35 | B37: 0.2 | AK37: 0.22 | AL37: 56
A38: 36 | B38: 0.155 | AK38: 0.225 | AL38: 56
A39: 37 | B39: 0.21 | AK39: 0.225 | AL39: 56
A40: 38 | B40: 0.23 | AK40: 0.23 | AL40: 56
A41: 39 | B41: 0.215 | AK41: 0.23 | AL41: 38
A42: 40 | B42: 0.205 | AK42: 0.235 | AL42: 38
A43: 41 | B43: 0.25 | AK43: 0.235 | AL43: 26
A44: 42 | B44: 0.195 | AK44: 0.24 | AL44: 26
A45: 43 | B45: 0.18 | AK45: 0.24 | AL45: 25
A46: 44 | B46: 0.27 | AK46: 0.245 | AL46: 25
A47: 45 | B47: 0.17 | AK47: 0.245 | AL47: 12
A48: 46 | B48: 0.16 | AK48: 0.25 | AL48: 12
A49: 47 | B49: 0.2 | AK49: 0.25 | AL49: 15
A50: 48 | B50: 0.205 | AK50: 0.255 | AL50: 15
A51: 49 | B51: 0.235 | AK51: 0.255 | AL51: 7
A52: 50 | B52: 0.235 | AK52: 0.26 | AL52: 7
A53: 51 | B53: 0.16 | AK53: 0.26 | AL53: 6
A54: 52 | B54: 0.18 | AK54: 0.265 | AL54: 6
A55: 53 | B55: 0.14 | AK55: 0.265 | AL55: 1
A56: 54 | B56: 0.2 | AK56: 0.27 | AL56: 1
A57: 55 | B57: 0.195 | AK57: 0.27 | AL57: 2
A58: 56 | B58: 0.16 | AK58: 0.275 | AL58: 2
A59: 57 | B59: 0.24 | AK59: 0.275 | AL59: 4
A60: 58 | B60: 0.18 | AK60: 0.28 | AL60: 4
A61: 59 | B61: 0.205 | AK61: 0.28 | AL61: 0
A62: 60 | B62: 0.22 | AK62: 0.285 | AL62: 0
A63: 61 | B63: 0.19 | AK63: 0.285 | AL63: 0
A64: 62 | B64: 0.205 | AK64: 0.29 | AL64: 0
A65: 63 | B65: 0.185 | AK65: 0.29 | AL65: 2
A66: 64 | B66: 0.245 | AK66: 0.295 | AL66: 2
A67: 65 | B67: 0.205 | AK67: 0.295 | AL67: 0
A68: 66 | B68: 0.22
A69: 67 | B69: 0.175
A70: 68 | B70: 0.18
A71: 69 | B71: 0.205
A72: 70 | B72: 0.25
A73: 71 | B73: 0.165
A74: 72 | B74: 0.22
A75: 73 | B75: 0.19
A76: 74 | B76: 0.25
A77: 75 | B77: 0.21
A78: 76 | B78: 0.17
A79: 77 | B79: 0.2
A80: 78 | B80: 0.225
A81: 79 | B81: 0.18
A82: 80 | B82: 0.195
A83: 81 | B83: 0.19
A84: 82 | B84: 0.19
A85: 83 | B85: 0.205
A86: 84 | B86: 0.23
A87: 85 | B87: 0.21
A88: 86 | B88: 0.17
A89: 87 | B89: 0.165
A90: 88 | B90: 0.22
A91: 89 | B91: 0.215
A92: 90 | B92: 0.205
A93: 91 | B93: 0.17
A94: 92 | B94: 0.235
A95: 93 | B95: 0.24
A96: 94 | B96: 0.185
A97: 95 | B97: 0.195
A98: 96 | B98: 0.2
A99: 97 | B99: 0.235
A100: 98 | B100: 0.2
A101: 99 | B101: 0.17
A102: 100 | B102: 0.225
A103: Only the first 100 repetitions are displayed on this worksheet.

Sheet MCSim50Inherit (hidden)
A1: Results of Monte Carlo Simulation | AK1: 0 | AL1: $M$9
A2: Sample Number | B2: $M$9 | F2: Simulation Stats | AH2: 0 | AK2: 0.045 | AL2: 0
A3: 1 | B3: 0.165 | F3: 1000 | G3: repetitions | AH3: 0.1290322542 | AI3: 0 | AK3: 0.045 | AL3: 1
A4: 2 | B4: 0.155 | F4: 21.99999948 | G4: seconds | I4: Summary Statistics | L4: Notes | AH4: 0.2580645084 | AI4: 3 | AK4: 0.05 | AL4: 1
A5: 3 | B5: 0.095 | I5: Average | J5: 0.116885 | L5: inherit=50% | AH5: 0.3870967627 | AI5: 4 | AK5: 0.05 | AL5: 1
A6: 4 | B6: 0.135 | I6: SD | J6: 0.02086401405 | AH6: 0.5161290169 | AI6: 8 | AK6: 0.055 | AL6: 1
A7: 5 | B7: 0.075 | I7: Max | J7: 0.18 | AH7: 0.6451612711 | AI7: 4 | AK7: 0.055 | AL7: 1
A8: 6 | B8: 0.125 | I8: Min | J8: 0.045 | AH8: 0.7741935253 | AI8: 9 | AK8: 0.06 | AL8: 1
A9: 7 | B9: 0.11 | AH9: 0.9032257795 | AI9: 9 | AK9: 0.06 | AL9: 1
A10: 8 | B10: 0.125 | AH10: 1.032258034 | AI10: 12 | AK10: 0.065 | AL10: 1
A11: 9 | B11: 0.115 | AH11: 1.161290288 | AI11: 8 | AK11: 0.065 | AL11: 0
A12: 10 | B12: 0.12 | AH12: 1.290322542 | AI12: 3 | AK12: 0.07 | AL12: 0
A13: 11 | B13: 0.105 | AH13: 1.419354796 | AI13: 6 | AK13: 0.07 | AL13: 6
A14: 12 | B14: 0.155 | AH14: 1.548387051 | AI14: 7 | AK14: 0.075 | AL14: 6
A15: 13 | B15: 0.105 | AH15: 1.677419305 | AI15: 6 | AK15: 0.075 | AL15: 10
A16: 14 | B16: 0.12 | AH16: 1.806451559 | AI16: 6 | AK16: 0.08 | AL16: 10
A17: 15 | B17: 0.095 | AH17: 1.935483813 | AI17: 2 | AK17: 0.08 | AL17: 22
A18: 16 | B18: 0.11 | AH18: 2.064516068 | AI18: 5 | AK18: 0.085 | AL18: 22
A19: 17 | B19: 0.09 | AH19: 2.193548322 | AI19: 2 | AK19: 0.085 | AL19: 30
A20: 18 | B20: 0.135 | AH20: 2.322580576 | AI20: 3 | AK20: 0.09 | AL20: 30
A21: 19 | B21: 0.105 | AH21: 2.45161283 | AI21: 2 | AK21: 0.09 | AL21: 49
A22: 20 | B22: 0.105 | AH22: 2.580645084 | AI22: 1 | AK22: 0.095 | AL22: 49
A23: 21 | B23: 0.15 | AH23: 2.709677339 | AI23: 0 | AK23: 0.095 | AL23: 62
A24: 22 | B24: 0.14 | AH24: 2.838709593 | AI24: 0 | AK24: 0.1 | AL24: 62
A25: 23 | B25: 0.115 | AH25: 2.967741847 | AI25: 0 | AK25: 0.1 | AL25: 70
A26: 24 | B26: 0.125 | AH26: 3.096774101 | AI26: 0 | AK26: 0.105 | AL26: 70
A27: 25 | B27: 0.095 | AH27: 3.225806355 | AI27: 0 | AK27: 0.105 | AL27: 83
A28: 26 | B28: 0.085 | AH28: 3.35483861 | AI28: 0 | AK28: 0.11 | AL28: 83
A29: 27 | B29: 0.115 | AH29: 3.483870864 | AI29: 0 | AK29: 0.11 | AL29: 86
A30: 28 | B30: 0.135 | AH30: 3.612903118 | AI30: 0 | AK30: 0.115 | AL30: 86
A31: 29 | B31: 0.15 | AH31: 3.741935372 | AI31: 0 | AK31: 0.115 | AL31: 97
A32: 30 | B32: 0.135 | AH32: 3.870967627 | AI32: 0 | AK32: 0.12 | AL32: 97
A33: 31 | B33: 0.15 | AH33: 3.999999881 | AI33: 0 | AK33: 0.12 | AL33: 102
A34: 32 | B34: 0.09 | AK34: 0.125 | AL34: 102
A35: 33 | B35: 0.105 | AK35: 0.125 | AL35: 80
A36: 34 | B36: 0.125 | AK36: 0.13 | AL36: 80
A37: 35 | B37: 0.1 | AK37: 0.13 | AL37: 71
A38: 36 | B38: 0.08 | AK38: 0.135 | AL38: 71
A39: 37 | B39: 0.125 | AK39: 0.135 | AL39: 63
A40: 38 | B40: 0.11 | AK40: 0.14 | AL40: 63
A41: 39 | B41: 0.095 | AK41: 0.14 | AL41: 55
A42: 40 | B42: 0.155 | AK42: 0.145 | AL42: 55
A43: 41 | B43: 0.095 | AK43: 0.145 | AL43: 35
A44: 42 | B44: 0.11 | AK44: 0.15 | AL44: 35
A45: 43 | B45: 0.11 | AK45: 0.15 | AL45: 29
A46: 44 | B46: 0.115 | AK46: 0.155 | AL46: 29
A47: 45 | B47: 0.095 | AK47: 0.155 | AL47: 17
A48: 46 | B48: 0.12 | AK48: 0.16 | AL48: 17
A49: 47 | B49: 0.08 | AK49: 0.16 | AL49: 12
A50: 48 | B50: 0.145 | AK50: 0.165 | AL50: 12
A51: 49 | B51: 0.15 | AK51: 0.165 | AL51: 7
A52: 50 | B52: 0.14 | AK52: 0.17 | AL52: 7
A53: 51 | B53: 0.14 | AK53: 0.17 | AL53: 4
A54: 52 | B54: 0.12 | AK54: 0.175 | AL54: 4
A55: 53 | B55: 0.09 | AK55: 0.175 | AL55: 1
A56: 54 | B56: 0.12 | AK56: 0.18 | AL56: 1
A57: 55 | B57: 0.135 | AK57: 0.18 | AL57: 5
A58: 56 | B58: 0.08 | AK58: 0.185 | AL58: 5
A59: 57 | B59: 0.08 | AK59: 0.185 | AL59: 0
A60: 58 | B60: 0.145 | AK60: 3.741935372 | AL60: 0
A61: 59 | B61: 0.11 | AK61: 3.870967627 | AL61: 0
A62: 60 | B62: 0.125 | AK62: 3.870967627 | AL62: 0
A63: 61 | B63: 0.115 | AK63: 3.999999881 | AL63: 0
A64: 62 | B64: 0.175 | AK64: 3.999999881 | AL64: 0
A65: 63 | B65: 0.125
A66: 64 | B66: 0.13
A67: 65 | B67: 0.1
A68: 66 | B68: 0.145
A69: 67 | B69: 0.095
A70: 68 | B70: 0.11
A71: 69 | B71: 0.06
A72: 70 | B72: 0.115
A73: 71 | B73: 0.125
A74: 72 | B74: 0.11
A75: 73 | B75: 0.11
A76: 74 | B76: 0.1
A77: 75 | B77: 0.105
A78: 76 | B78: 0.125
A79: 77 | B79: 0.135
A80: 78 | B80: 0.09
A81: 79 | B81: 0.12
A82: 80 | B82: 0.13
A83: 81 | B83: 0.12
A84: 82 | B84: 0.11
A85: 83 | B85: 0.13
A86: 84 | B86: 0.105
A87: 85 | B87: 0.13
A88: 86 | B88: 0.105
A89: 87 | B89: 0.13
A90: 88 | B90: 0.075
A91: 89 | B91: 0.17
A92: 90 | B92: 0.12
A93: 91 | B93: 0.125
A94: 92 | B94: 0.105
A95: 93 | B95: 0.095
A96: 94 | B96: 0.125
A97: 95 | B97: 0.07
A98: 96 | B98: 0.075
A99: 97 | B99: 0.115
A100: 98 | B100: 0.13
A101: 99 | B101: 0.11
A102: 100 | B102: 0.105
A103: Only the first 100 repetitions are displayed on this worksheet.

Sheet MCSim100Inherit (hidden)
A1: Results of Monte Carlo Simulation | AK1: 0 | AL1: $M$9
A2: Sample Number | B2: $M$9 | F2: Simulation Stats | AH2: 0 | AK2: 0.025 | AL2: 0
A3: 1 | B3: 0.06 | F3: 1000 | G3: repetitions | AH3: 0.1290322542 | AI3: 0 | AK3: 0.025 | AL3: 1
A4: 2 | B4: 0.08 | F4: 20.99999988 | G4: seconds | I4: Summary Statistics | L4: Notes | AH4: 0.2580645084 | AI4: 3 | AK4: 0.0275 | AL4: 1
A5: 3 | B5: 0.095 | I5: Average | J5: 0.07004 | L5: inherit=100% | AH5: 0.3870967627 | AI5: 4 | AK5: 0.0275 | AL5: 0
A6: 4 | B6: 0.11 | I6: SD | J6: 0.01735077662 | AH6: 0.5161290169 | AI6: 8 | AK6: 0.03 | AL6: 0
A7: 5 | B7: 0.065 | I7: Max | J7: 0.125 | AH7: 0.6451612711 | AI7: 4 | AK7: 0.03 | AL7: 5
A8: 6 | B8: 0.07 | I8: Min | J8: 0.025 | AH8: 0.7741935253 | AI8: 9 | AK8: 0.0325 | AL8: 5
A9: 7 | B9: 0.075 | AH9: 0.9032257795 | AI9: 9 | AK9: 0.0325 | AL9: 0
A10: 8 | B10: 0.085 | AH10: 1.032258034 | AI10: 12 | AK10: 0.035 | AL10: 0
A11: 9 | B11: 0.07 | AH11: 1.161290288 | AI11: 8 | AK11: 0.035 | AL11: 16
A12: 10 | B12: 0.075 | AH12: 1.290322542 | AI12: 3 | AK12: 0.0375 | AL12: 16
A13: 11 | B13: 0.06 | AH13: 1.419354796 | AI13: 6 | AK13: 0.0375 | AL13: 0
A14: 12 | B14: 0.075 | AH14: 1.548387051 | AI14: 7 | AK14: 0.04 | AL14: 0
A15: 13 | B15: 0.095 | AH15: 1.677419305 | AI15: 6 | AK15: 0.04 | AL15: 23
A16: 14 | B16: 0.07 | AH16: 1.806451559 | AI16: 6 | AK16: 0.0425 | AL16: 23
A17: 15 | B17: 0.085 | AH17: 1.935483813 | AI17: 2 | AK17: 0.0425 | AL17: 0
A18: 16 | B18: 0.055 | AH18: 2.064516068 | AI18: 5 | AK18: 0.045 | AL18: 0
A19: 17 | B19: 0.07 | AH19: 2.193548322 | AI19: 2 | AK19: 0.045 | AL19: 50
A20: 18 | B20: 0.08 | AH20: 2.322580576 | AI20: 3 | AK20: 0.0475 | AL20: 50
A21: 19 | B21: 0.05 | AH21: 2.45161283 | AI21: 2 | AK21: 0.0475 | AL21: 0
A22: 20 | B22: 0.08 | AH22: 2.580645084 | AI22: 1 | AK22: 0.05 | AL22: 0
A23: 21 | B23: 0.085 | AH23: 2.709677339 | AI23: 0 | AK23: 0.05 | AL23: 69
A24: 22 | B24: 0.07 | AH24: 2.838709593 | AI24: 0 | AK24: 0.0525 | AL24: 69
A25: 23 | B25: 0.065 | AH25: 2.967741847 | AI25: 0 | AK25: 0.0525 | AL25: 0
A26: 24 | B26: 0.085 | AH26: 3.096774101 | AI26: 0 | AK26: 0.055 | AL26: 0
A27: 25 | B27: 0.055 | AH27: 3.225806355 | AI27: 0 | AK27: 0.055 | AL27: 78
A28: 26 | B28: 0.045 | AH28: 3.35483861 | AI28: 0 | AK28: 0.0575 | AL28: 78
A29: 27 | B29: 0.075 | AH29: 3.483870864 | AI29: 0 | AK29: 0.0575 | AL29: 0
A30: 28 | B30: 0.08 | AH30: 3.612903118 | AI30: 0 | AK30: 0.06 | AL30: 0
A31: 29 | B31: 0.075 | AH31: 3.741935372 | AI31: 0 | AK31: 0.06 | AL31: 125
A32: 30 | B32: 0.105 | AH32: 3.870967627 | AI32: 0 | AK32: 0.0625 | AL32: 125
A33: 31 | B33: 0.1 | AH33: 3.999999881 | AI33: 0 | AK33: 0.0625 | AL33: 0
A34: 32 | B34: 0.07 | AK34: 0.065 | AL34: 0
A35: 33 | B35: 0.07 | AK35: 0.065 | AL35: 90
A36: 34 | B36: 0.085 | AK36: 0.0675 | AL36: 90
A37: 35 | B37: 0.07 | AK37: 0.0675 | AL37: 0
A38: 36 | B38: 0.07 | AK38: 0.07 | AL38: 0
A39: 37 | B39: 0.06 | AK39: 0.07 | AL39: 101
A40: 38 | B40: 0.065 | AK40: 0.0725 | AL40: 101
A41: 39 | B41: 0.1 | AK41: 0.0725 | AL41: 0
A42: 40 | B42: 0.105 | AK42: 0.075 | AL42: 0
A43: 41 | B43: 0.05 | AK43: 0.075 | AL43: 114
A44: 42 | B44: 0.065 | AK44: 0.0775 | AL44: 114
A45: 43 | B45: 0.085 | AK45: 0.0775 | AL45: 0
A46: 44 | B46: 0.04 | AK46: 0.08 | AL46: 0
A47: 45 | B47: 0.065 | AK47: 0.08 | AL47: 85
A48: 46 | B48: 0.065 | AK48: 0.0825 | AL48: 85
A49: 47 | B49: 0.05 | AK49: 0.0825 | AL49: 0
A50: 48 | B50: 0.055 | AK50: 0.085 | AL50: 0
A51: 49 | B51: 0.055 | AK51: 0.085 | AL51: 75
A52: 50 | B52: 0.06 | AK52: 0.0875 | AL52: 75
A53: 51 | B53: 0.08 | AK53: 0.0875 | AL53: 0
A54: 52 | B54: 0.09 | AK54: 0.09 | AL54: 0
A55: 53 | B55: 0.07 | AK55: 0.09 | AL55: 69
A56: 54 | B56: 0.06 | AK56: 0.0925 | AL56: 69
A57: 55 | B57: 0.075 | AK57: 0.0925 | AL57: 0
A58: 56 | B58: 0.065 | AK58: 0.095 | AL58: 0
A59: 57 | B59: 0.085 | AK59: 0.095 | AL59: 40
A60: 58 | B60: 0.06 | AK60: 0.0975 | AL60: 40
A61: 59 | B61: 0.065 | AK61: 0.0975 | AL61: 0
A62: 60 | B62: 0.07 | AK62: 0.1 | AL62: 0
A63: 61 | B63: 0.08 | AK63: 0.1 | AL63: 26
A64: 62 | B64: 0.09 | AK64: 0.1025 | AL64: 26
A65: 63 | B65: 0.085 | AK65: 0.1025 | AL65: 0
A66: 64 | B66: 0.1 | AK66: 0.105 | AL66: 0
A67: 65 | B67: 0.085 | AK67: 0.105 | AL67: 16
A68: 66 | B68: 0.085 | AK68: 0.1075 | AL68: 16
A69: 67 | B69: 0.045 | AK69: 0.1075 | AL69: 0
A70: 68 | B70: 0.055 | AK70: 0.11 | AL70: 0
A71: 69 | B71: 0.1 | AK71: 0.11 | AL71: 8
A72: 70 | B72: 0.05 | AK72: 0.1125 | AL72: 8
A73: 71 | B73: 0.04 | AK73: 0.1125 | AL73: 0
A74: 72 | B74: 0.045 | AK74: 0.115 | AL74: 0
A75: 73 | B75: 0.05 | AK75: 0.115 | AL75: 3
A76: 74 | B76: 0.06 | AK76: 0.1175 | AL76: 3
A77: 75 | B77: 0.085 | AK77: 0.1175 | AL77: 0
A78: 76 | B78: 0.035 | AK78: 0.12 | AL78: 0
A79: 77 | B79: 0.065 | AK79: 0.12 | AL79: 3
A80: 78 | B80: 0.09 | AK80: 0.1225 | AL80: 3
A81: 79 | B81: 0.065 | AK81: 0.1225 | AL81: 0
A82: 80 | B82: 0.06 | AK82: 0.125 | AL82: 0
A83: 81 | B83: 0.125 | AK83: 0.125 | AL83: 3
A84: 82 | B84: 0.055 | AK84: 0.1275 | AL84: 3
A85: 83 | B85: 0.08 | AK85: 0.1275 | AL85: 0
A86: 84 | B86: 0.075
A87: 85 | B87: 0.04
A88: 86 | B88: 0.065
A89: 87 | B89: 0.07
A90: 88 | B90: 0.07
A91: 89 | B91: 0.06
A92: 90 | B92: 0.095
A93: 91 | B93: 0.09
A94: 92 | B94: 0.07
A95: 93 | B95: 0.08
A96: 94 | B96: 0.06
A97: 95 | B97: 0.075
A98: 96 | B98: 0.06
A99: 97 | B99: 0.06
A100: 98 | B100: 0.055
A101: 99 | B101: 0.095
A102: 100 | B102: 0.05
A103: Only the first 100 repetitions are displayed on this worksheet.

Sheet MCSim90Inherit (hidden)
A1: Results of Monte Carlo Simulation | AK1: 0 | AL1: $M$9
A2: Sample Number | B2: $M$9 | F2: Simulation Stats | AH2: 0 | AK2: 0.025 | AL2: 0
A3: 1 | B3: 0.125 | F3: 1000 | G3: repetitions | AH3: 0.1290322542 | AI3: 0 | AK3: 0.025 | AL3: 3
A4: 2 | B4: 0.095 | F4: 22.99999972 | G4: seconds | I4: Summary Statistics | L4: Notes | AH4: 0.2580645084 | AI4: 3 | AK4: 0.0275 | AL4: 3
A5: 3 | B5: 0.06 | I5: Average | J5: 0.07735 | L5: inherit=90% | AH5: 0.3870967627 | AI5: 4 | AK5: 0.0275 | AL5: 0
A6: 4 | B6: 0.045 | I6: SD | J6: 0.01749381415 | AH6: 0.5161290169 | AI6: 8 | AK6: 0.03 | AL6: 0
A7: 5 | B7: 0.075 | I7: Max | J7: 0.145 | AH7: 0.6451612711 | AI7: 4 | AK7: 0.03 | AL7: 1
A8: 6 | B8: 0.07 | I8: Min | J8: 0.025 | AH8: 0.7741935253 | AI8: 9 | AK8: 0.0325 | AL8: 1
A9: 7 | B9: 0.115 | AH9: 0.9032257795 | AI9: 9 | AK9: 0.0325 | AL9: 0
A10: 8 | B10: 0.055 | AH10: 1.032258034 | AI10: 12 | AK10: 0.035 | AL10: 0
A11: 9 | B11: 0.085 | AH11: 1.161290288 | AI11: 8 | AK11: 0.035 | AL11: 8
A12: 10 | B12: 0.07 | AH12: 1.290322542 | AI12: 3 | AK12: 0.0375 | AL12: 8
A13: 11 | B13: 0.06 | AH13: 1.419354796 | AI13: 6 | AK13: 0.0375 | AL13: 0
A14: 12 | B14: 0.05 | AH14: 1.548387051 | AI14: 7 | AK14: 0.04 | AL14: 0
A15: 13 | B15: 0.045 | AH15: 1.677419305 | AI15: 6 | AK15: 0.04 | AL15: 6
A16: 14 | B16: 0.065 | AH16: 1.806451559 | AI16: 6 | AK16: 0.0425 | AL16: 6
A17: 15 | B17: 0.05 | AH17: 1.935483813 | AI17: 2 | AK17: 0.0425 | AL17: 0
A18: 16 | B18: 0.065 | AH18: 2.064516068 | AI18: 5 | AK18: 0.045 | AL18: 0
A19: 17 | B19: 0.055 | AH19: 2.193548322 | AI19: 2 | AK19: 0.045 | AL19: 16
A20: 18 | B20: 0.07 | AH20: 2.322580576 | AI20: 3 | AK20: 0.0475 | AL20: 16
A21: 19 | B21: 0.045 | AH21: 2.45161283 | AI21: 2 | AK21: 0.0475 | AL21: 0
A22: 20 | B22: 0.09 | AH22: 2.580645084 | AI22: 1 | AK22: 0.05 | AL22: 0
A23: 21 | B23: 0.08 | AH23: 2.709677339 | AI23: 0 | AK23: 0.05 | AL23: 35
A24: 22 | B24: 0.075 | AH24: 2.838709593 | AI24: 0 | AK24: 0.0525 | AL24: 35
A25: 23 | B25: 0.09 | AH25: 2.967741847 | AI25: 0 | AK25: 0.0525 | AL25: 0
A26: 24 | B26: 0.08 | AH26: 3.096774101 | AI26: 0 | AK26: 0.055 | AL26: 0
A27: 25 | B27: 0.045 | AH27: 3.225806355 | AI27: 0 | AK27: 0.055 | AL27: 50
A28: 26 | B28: 0.06 | AH28: 3.35483861 | AI28: 0 | AK28: 0.0575 | AL28: 50
A29: 27 | B29: 0.12 | AH29: 3.483870864 | AI29: 0 | AK29: 0.0575 | AL29: 0
A30: 28 | B30: 0.085 | AH30: 3.612903118 | AI30: 0 | AK30: 0.06 | AL30: 0
A31: 29 | B31: 0.08 | AH31: 3.741935372 | AI31: 0 | AK31: 0.06 | AL31: 82
A32: 30 | B32: 0.055 | AH32: 3.870967627 | AI32: 0 | AK32: 0.0625 | AL32: 82
A33: 31 | B33: 0.06 | AH33: 3.999999881 | AI33: 0 | AK33: 0.0625 | AL33: 0
A34: 32 | B34: 0.05 | AK34: 0.065 | AL34: 0
A35: 33 | B35: 0.075 | AK35: 0.065 | AL35: 88
A36: 34 | B36: 0.065 | AK36: 0.0675 | AL36: 88
A37: 35 | B37: 0.105 | AK37: 0.0675 | AL37: 0
A38: 36 | B38: 0.105 | AK38: 0.07 | AL38: 0
A39: 37 | B39: 0.055 | AK39: 0.07 | AL39: 114
A40: 38 | B40: 0.065 | AK40: 0.0725 | AL40: 114
A41: 39 | B41: 0.055 | AK41: 0.0725 | AL41: 0
A42: 40 | B42: 0.095 | AK42: 0.075 | AL42: 0
A43: 41 | B43: 0.07 | AK43: 0.075 | AL43: 107
A44: 42 | B44: 0.08 | AK44: 0.0775 | AL44: 107
A45: 43 | B45: 0.075 | AK45: 0.0775 | AL45: 0
A46: 44 | B46: 0.04 | AK46: 0.08 | AL46: 0
A47: 45 | B47: 0.095 | AK47: 0.08 | AL47: 112
A48: 46 | B48: 0.085 | AK48: 0.0825 | AL48: 112
A49: 47 | B49: 0.1 | AK49: 0.0825 | AL49: 0
A50: 48 | B50: 0.07 | AK50: 0.085 | AL50: 0
A51: 49 | B51: 0.1 | AK51: 0.085 | AL51: 107
A52: 50 | B52: 0.1 | AK52: 0.0875 | AL52: 107
A53: 51 | B53: 0.09 | AK53: 0.0875 | AL53: 0
A54: 52 | B54: 0.085 | AK54: 0.09 | AL54: 0
A55: 53 | B55: 0.035 | AK55: 0.09 | AL55: 89
A56: 54 | B56: 0.075 | AK56: 0.0925 | AL56: 89
A57: 55 | B57: 0.105 | AK57: 0.0925 | AL57: 0
A58: 56 | B58: 0.075 | AK58: 0.095 | AL58: 0
A59: 57 | B59: 0.035 | AK59: 0.095 | AL59: 62
A60: 58 | B60: 0.075 | AK60: 0.0975 | AL60: 62
A61: 59 | B61: 0.085 | AK61: 0.0975 | AL61: 0
A62: 60 | B62: 0.1 | AK62: 0.1 | AL62: 0
A63: 61 | B63: 0.08 | AK63: 0.1 | AL63: 47
A64: 62 | B64: 0.07 | AK64: 0.1025 | AL64: 47
A65: 63 | B65: 0.085 | AK65: 0.1025 | AL65: 0
A66: 64 | B66: 0.055 | AK66: 0.105 | AL66: 0
A67: 65 | B67: 0.085 | AK67: 0.105 | AL67: 28
A68: 66 | B68: 0.11 | AK68: 0.1075 | AL68: 28
A69: 67 | B69: 0.085 | AK69: 0.1075 | AL69: 0
A70: 68 | B70: 0.115 | AK70: 0.11 | AL70: 0
A71: 69 | B71: 0.05 | AK71: 0.11 | AL71: 18
A72: 70 | B72: 0.085 | AK72: 0.1125 | AL72: 18
A73: 71 | B73: 0.05 | AK73: 0.1125 | AL73: 0
A74: 72 | B74: 0.07 | AK74: 0.115 | AL74: 0
A75: 73 | B75: 0.07 | AK75: 0.115 | AL75: 10
A76: 74 | B76: 0.08 | AK76: 0.1175 | AL76: 10
A77: 75 | B77: 0.075 | AK77: 0.1175 | AL77: 0
A78: 76 | B78: 0.085 | AK78: 0.12 | AL78: 0
A79: 77 | B79: 0.08 | AK79: 0.12 | AL79: 7
A80: 78 | B80: 0.055 | AK80: 0.1225 | AL80: 7
A81: 79 | B81: 0.09 | AK81: 0.1225 | AL81: 0
A82: 80 | B82: 0.075 | AK82: 0.125 | AL82: 0
A83: 81 | B83: 0.055 | AK83: 0.125 | AL83: 5
A84: 82 | B84: 0.075 | AK84: 0.1275 | AL84: 5
A85: 83 | B85: 0.07 | AK85: 0.1275 | AL85: 0
A86: 84 | B86: 0.08 | AK86: 0.13 | AL86: 0
A87: 85 | B87: 0.065 | AK87: 0.13 | AL87: 3
A88: 86 | B88: 0.065 | AK88: 0.1325 | AL88: 3
A89: 87 | B89: 0.085 | AK89: 0.1325 | AL89: 0
A90: 88 | B90: 0.05 | AK90: 0.135 | AL90: 0
A91: 89 | B91: 0.09 | AK91: 0.135 | AL91: 1
A92: 90 | B92: 0.085 | AK92: 0.1375 | AL92: 1
A93: 91 | B93: 0.08 | AK93: 0.1375 | AL93: 0
A94: 92 | B94: 0.05 | AK94: 0.14 | AL94: 0
A95: 93 | B95: 0.09 | AK95: 0.14 | AL95: 0
A96: 94 | B96: 0.075 | AK96: 0.1425 | AL96: 0
A97: 95 | B97: 0.065 | AK97: 0.1425 | AL97: 1
A98: 96 | B98: 0.055 | AK98: 0.145 | AL98: 1
A99: 97 | B99: 0.105 | AK99: 0.145 | AL99: 0
A100: 98 | B100: 0.075
A101: 99 | B101: 0.095
A102: 100 | B102: 0.05
A103: Only the first 100 repetitions are displayed on this worksheet.

Sheet Inherit (hidden)
A1: This sheet enables inheritance so we can see how that affects intergenerational mobility. | R1: This concrete example with the inherit parameter will enable us to really understand the meaning of Chetty's 7.5% bottom-to-top transition probability.
R2: Table II has Chetty's results so you can easily compare the random-income transition probabilities to Chetty's numbers.
A3: Cell F11 is named "inherit" and it is used to generate the child's income by ADDING | R3: With inherit = 50%, simulation results show that the bottom-to-top transition probability is around 12% or so.
A4: a percentage of the parent's income (inheritance) to the child's income. | R4: Replicate this result by using the MCSim button below with cell F11 = 50%.
A5: You can easily confirm this by clicking on cell H11 (the cells below it are identical).
A6: It could be money, but inheritance could also be genes, education, and connections. | R6: Q6) Why does increasing the inherit parameter (cell F11) to 50% lower the bottom-to-top transition probability? | AD6: Q7) Approximately what value of the inherit parameter (cell F11) produces the observed US bottom-to-top transition probability of 7.5%?
A7: Initially, cell F11 is set at zero (so it is the same as the previous sheet), but you can change it to any value you want. | K7: PRESS F9 repeatedly to see the numbers bounce around.
A8: For example, change cell F11 to 50% and PRESS F9 repeatedly. Much lower bottom-to-top probability! | M8: =COUNTIF(M11:M1010,">=0") -> 200 | N8: check
B9: Cell F11, with yellow background, is a key parameter that controls how much income the parent passes to the child. | M9: =SUM(M11:M1010)/200 -> 0.215 | N9: % of bottom who moved up to top
A10: Parent | B10: Income ($) | C10: Rank | D10: Bottom Quintile? | F10: % inherit | G10: Child | H10: Income ($) | I10: Rank | J10: Top Quintile? | M10: Moved From Bottom to Top?
A11: 1 | B11: =_xlfn.LOGNORM.INV(RAND(),11,1) -> 153139.2181 | C11: =RANK(B11,$B$11:$B$1010,0) -> 175 | D11: =IF(C11>800,1,0) -> 0 | F11: 0 | G11: 1 | H11: =inherit*B11+_xlfn.LOGNORM.INV(RAND(),11,1) -> 12859.5677 | I11: =RANK(H11,$H$11:$H$1010,0) -> 940 | J11: =IF(I11<=200,1,0) -> 0 | M11: =IF(D11=1,IF(J11=1,1,0),"") -> 
A12: 2 | B12: 43396.37919 | C12: 610 | D12: 0 | G12: 2 | H12: 28930.26483 | I12: 763 | J12: 0 | R12: QUINTILE TRANSITION MATRIX | AH12: Set inherit to 1000% and press F9 a few times.
A13: 3 | B13: 31777.4 | C13: 734 | D13: 0 | F13: All of the cells | G13: 3 | H13: 12228.64674 | I13: 954 | J13: 0 | S13: 5th quintile is top (richest) fifth like 99th percentile is top 1%. | AH13: Q8) Explain what happens to the Quintile Transition Matrix with inherit=1000% and what this means in terms of intergenerational mobility.
A14: 4 | B14: 331019.5034 | C14: 49 | D14: 0 | F14: in column H | G14: 4 | H14: 79945.35999 | I14: 368 | J14: 0 | S14: Parent
A15: 5 | B15: 350244.1617 | C15: 40 | D15: 0 | F15: ADD | G15: 5 | H15: 849749.2881 | I15: 4 | J15: 1 | R15: Child | S15: 1 | T15: 2 | U15: 3 | V15: 4 | W15: 5 | AQ15: Passing on 1000% (or 11 times) your income is not at all realistic, even if we include genes and social connections in the transfer from parent to child.
A16: 6 | B16: 13259.59165 | C16: 938 | D16: 1 | F16: a percentage of | G16: 6 | H16: 409571.128 | I16: 28 | J16: 1 | M16: 1 | R16: 1 | S16: =tmatrix(C11:C1010,I11:I1010) -> 0.195 | T16: 0.24 | U16: 0.195 | V16: 0.19 | W16: 0.18 | X16: =SUM(S16:W16) -> 1 | AQ16: We use this completely unrealstic value just to see how the model reacts to it.
A17: 7 | B17: 59303.17615 | C17: 496 | D17: 0 | F17: parent's income | G17: 7 | H17: 78247.13683 | I17: 373 | J17: 0 | R17: 2 | S17: 0.22 | T17: 0.185 | U17: 0.21 | V17: 0.215 | W17: 0.17 | X17: =SUM(S17:W17) -> 1
A18: 8 | B18: 28647.70302 | C18: 771 | D18: 0 | F18: to child's income. | G18: 8 | H18: 235410.1854 | I18: 81 | J18: 1 | R18: 3 | S18: 0.16 | T18: 0.16 | U18: 0.215 | V18: 0.22 | W18: 0.245 | X18: =SUM(S18:W18) -> 1
A19: 9 | B19: 130543.8332 | C19: 221 | D19: 0 | F19: As cell F11 | G19: 9 | H19: 73927.46909 | I19: 392 | J19: 0 | R19: 4 | S19: 0.21 | T19: 0.16 | U19: 0.2 | V19: 0.215 | W19: 0.215 | X19: =SUM(S19:W19) -> 1
A20: 10 | B20: 81675.34351 | C20: 389 | D20: 0 | F20: increases, the | G20: 10 | H20: 25174.93303 | I20: 807 | J20: 0 | R20: 5 | S20: 0.215 | T20: 0.255 | U20: 0.18 | V20: 0.16 | W20: 0.19 | X20: =SUM(S20:W20) -> 1 | AH20: Set the inherit parameter (cell F11) to 90%, look at the top-right corner of the transition matrix (cell W16) while pressing F9 a few times.
A21: 11 | B21: 74017.83595 | C21: 412 | D21: 0 | F21: effect of parental | G21: 11 | H21: 38292.78469 | I21: 665 | J21: 0 | S21: =SUM(S16:S20) -> 1 | T21: =SUM(T16:T20) -> 1 | U21: =SUM(U16:U20) -> 1 | V21: =SUM(V16:V20) -> 1 | W21: =SUM(W16:W20) -> 1 | AH21: Q9) With inherit=90%, how does cell W16 compare to Chetty’s observed transition probability of 10.9% and what does this tell you?
A22: 12 | B22: 62722.73426 | C22: 468 | D22: 0 | F22: income on child's | G22: 12 | H22: 78185.66773 | I22: 374 | J22: 0
A23: 13 | B23: 59348.81107 | C23: 494 | D23: 0 | F23: income increases. | G23: 13 | H23: 51732.35286 | I23: 533 | J23: 0
A24: 14 | B24: 129273.2888 | C24: 226 | D24: 0 | G24: 14 | H24: 71905.67224 | I24: 406 | J24: 0
A25: 15 | B25: 124138.7206 | C25: 237 | D25: 0 | G25: 15 | H25: 24348.5164 | I25: 818 | J25: 0
A26: 16 | B26: 46760.21414 | C26: 589 | D26: 0 | G26: 16 | H26: 18489.31517 | I26: 885 | J26: 0
A27: 17 | B27: 90587.21583 | C27: 347 | D27: 0 | G27: 17 | H27: 109226.5404 | I27: 254 | J27: 0
A28: 18 | B28: 19970.79271 | C28: 865 | D28: 1 | G28: 18 | H28: 50429.24926 | I28: 547 | J28: 0 | M28: 0
A29: 19 | B29: 24609.72637 | C29: 817 | D29: 1 | G29: 19 | H29: 21415.4671 | I29: 855 | J29: 0 | M29: 0
A30: 20 | B30: 25817.10491 | C30: 804 | D30: 1 | G30: 20 | H30: 87928.06656 | I30: 330 | J30: 0 | M30: 0
A31: 21 | B31: 76065.8062 | C31: 406 | D31: 0 | G31: 21 | H31: 47816.86083 | I31: 571 | J31: 0
A32: 22 | B32: 18522.31736 | C32: 879 | D32: 1 | G32: 22 | H32: 31844.43672 | I32: 720 | J32: 0 | M32: 0
A33: 23 | B33: 38738.85276 | C33: 657 | D33: 0 | G33: 23 | H33: 95575.73198 | I33: 298 | J33: 0
A34: 24 | B34: 27502.71717 | C34: 780 | D34: 0 | G34: 24 | H34: 77955.67103 | I34: 376 | J34: 0
A35: 25 | B35: 55818.19196 | C35: 523 | D35: 0 | G35: 25 | H35: 22890.49417 | I35: 837 | J35: 0
A36: 26 | B36: 136284.0304 | C36: 203 | D36: 0 | G36: 26 | H36: 57401.31615 | I36: 498 | J36: 0
A37: 27 | B37: 24340.95297 | C37: 821 | D37: 1 | G37: 27 | H37: 192620.1748 | I37: 112 | J37: 1 | M37: 1
A38: 28 | B38: 28107.68674 | C38: 774 | D38: 0 | G38: 28 | H38: 39052.53067 | I38: 653 | J38: 0
A39: 29 | B39: 82558.21637 | C39: 384 | D39: 0 | G39: 29 | H39: 38705.10947 | I39: 658 | J39: 0 | S39: =(S16+T17+U18+V19+W20)/5 -> 0.2 | T39: immobility ratio -- fraction of the mass that falls on the diagonal
A40: 30 | B40: 68369.80462 | C40: 441 | D40: 0 | G40: 30 | H40: 26443.25052 | I40: 788 | J40: 0
A41: 31 | B41: 28798.4887 | C41: 768 | D41: 0 | G41: 31 | H41: 45488.15255 | I41: 591 | J41: 0
A42: 32 | B42: 301066.5428 | C42: 57 | D42: 0 | G42: 32 | H42: 102153.348 | I42: 277 | J42: 0
A43: 33 | B43: 32825.70624 | C43: 724 | D43: 0 | G43: 33 | H43: 199638.8855 | I43: 106 | J43: 1
A44: 34 | B44: 106521.1661 | C44: 292 | D44: 0 | G44: 34 | H44: 29175.38223 | I44: 758 | J44: 0
A45: 35 | B45: 310828.3627 | C45: 53 | D45: 0 | G45: 35 | H45: 70511.82819 | I45: 411 | J45: 0
A46: 36 | B46: 25150.96837 | C46: 811 | D46: 1 | G46: 36 | H46: 119492.7269 | I46: 227 | J46: 0 | M46: 0
A47: 37 | B47: 27889.84921 | C47: 776 | D47: 0 | G47: 37 | H47: 736941.4094 | I47: 7 | J47: 1
A48: 38 | B48: 41203.62312 | C48: 636 | D48: 0 | G48: 38 | H48: 287191.7022 | I48: 53 | J48: 1
A49: 39 | B49: 50588.15196 | C49: 555 | D49: 0 | G49: 39 | H49: 81914.94265 | I49: 355 | J49: 0
A50: 40 | B50: 412497.7635 | C50: 28 | D50: 0 | G50: 40 | H50: 113647.3274 | I50: 239 | J50: 0
A51: 41 | B51: 10609.25915 | C51: 965 | D51: 1 | G51: 41 | H51: 18812.30038 | I51: 883 | J51: 0 | M51: 0
A52: 42 | B52: 48343.86626 | C52: 575 | D52: 0 | G52: 42 | H52: 16553.94506 | I52: 907 | J52: 0
A53: 43 | B53: 272764.8489 | C53: 65 | D53: 0 | G53: 43 | H53: 1159754.632 | I53: 2 | J53: 1
A54: 44 | B54: 21311.94245 | C54: 850 | D54: 1 | G54: 44 | H54: 30748.85635 | I54: 736 | J54: 0 | M54: 0
A55: 45 | B55: 17746.36997 | C55: 887 | D55: 1 | G55: 45 | H55: 85310.57037 | I55: 339 | J55: 0 | M55: 0
A56: 46 | B56: 20703.02181 | C56: 854 | D56: 1 | G56: 46 | H56: 51402.15669 | I56: 539 | J56: 0 | M56: 0
A57: 47 | B57: 12464.02859 | C57: 946 | D57: 1 | G57: 47 | H57: 31334.06529 | I57: 731 | J57: 0 | M57: 0
A58: 48 | B58: 117255.3923 | C58: 251 | D58: 0 | G58: 48 | H58: 465643.282 | I58: 25 | J58: 1
A59: 49 | B59: 106973.5769 | C59: 291 | D59: 0 | G59: 49 | H59: 80747.98589 | I59: 363 | J59: 0
A60: 50 | B60: 25180.45769 | C60: 807 | D60: 1 | G60: 50 | H60: 26093.12166 | I60: 793 | J60: 0 | M60: 0
A61: 51 | B61: 118329.0767 | C61: 248 | D61: 0 | G61: 51 | H61: 4474.828219 | I61: 999 | J61: 0
A62: 52 | B62: 47745.35173 | C62: 580 | D62: 0 | G62: 52 | H62: 663815.707 | I62: 10 | J62: 1
A63: 53 | B63: 87040.89756 | C63: 355 | D63: 0 | G63: 53 | H63: 188081.9367 | I63: 118 | J63: 1
A64: 54 | B64: 21571.71816 | C64: 846 | D64: 1 | G64: 54 | H64: 54331.89545 | I64: 515 | J64: 0 | M64: 0
A65: 55 | B65: 50395.20008 | C65: 557 | D65: 0 | G65: 55 | H65: 44469.08908 | I65: 599 | J65: 0
A66: 56 | B66: 55845.00076 | C66: 522 | D66: 0 | G66: 56 | H66: 115682.2117 | I66: 236 | J66: 0
A67: 57 | B67: 394000.8988 | C67: 30 | D67: 0 | G67: 57 | H67: 121267.1814 | I67: 221 | J67: 0
A68: 58 | B68: 76746.85525 | C68: 405 | D68: 0 | G68: 58 | H68: 72450.07762 | I68: 404 | J68: 0
A69: 59 | B69: 63312.43386 | C69: 464 | D69: 0 | G69: 59 | H69: 9524.556558 | I69: 975 | J69: 0
A70: 60 | B70: 23775.1852 | C70: 826 | D70: 1 | G70: 60 | H70: 44000.86869 | I70: 604 | J70: 0 | M70: 0
A71: 61 | B71: 161910.6355 | C71: 166 | D71: 0 | G71: 61 | H71: 62285.51382 | I71: 462 | J71: 0
A72: 62 | B72: 131222.5779 | C72: 217 | D72: 0 | G72: 62 | H72: 63192.96868 | I72: 456 | J72: 0
A73: 63 | B73: 393538.3104 | C73: 31 | D73: 0 | G73: 63 | H73: 67694.87842 | I73: 426 | J73: 0
A74: 64 | B74: 13400.36458 | C74: 936 | D74: 1 | G74: 64 | H74: 61282.55399 | I74: 469 | J74: 0 | M74: 0
A75: 65 | B75: =_xlfn.LOGNORM.INV(RAND(),11,1) -> 46918.78793 | C75: =RANK(B75,$B$11:$B$1010,0) -> 587 | D75: =IF(C75>800,1,0) -> 0 | G75: 65 | H75: =inherit*B75+_xlfn.LOGNORM.INV(RAND(),11,1) -> 62320.60101 | I75: =RANK(H75,$H$11:$H$1010,0) -> 461 | J75: =IF(I75<=200,1,0) -> 0 | M75: =IF(D75=1,IF(J75=1,1,0),"") -> 
A76: 66 | B76: 14318.83678 | C76: 925 | D76: 1 | G76: 66 | H76: 54040.54883 | I76: 517 | J76: 0 | M76: 0
A77: 67 | B77: 42245.84925 | C77: 620 | D77: 0 | G77: 67 | H77: 10473.20474 | I77: 966 | J77: 0
A78: 68 | B78: 15147.77129 | C78: 919 | D78: 1 | G78: 68 | H78: 38358.79065 | I78: 663 | J78: 0 | M78: 0
A79: 69 | B79: 30219.23317 | C79: 748 | D79: 0 | G79: 69 | H79: 89364.44843 | I79: 325 | J79: 0
A80: 70 | B80: 98343.21961 | C80: 315 | D80: 0 | G80: 70 | H80: 16312.61914 | I80: 912 | J80: 0
A81: 71 | B81: 363660.6232 | C81: 36 | D81: 0 | G81: 71 | H81: 27807.72752 | I81: 773 | J81: 0
A82: 72 | B82: 135442.9965 | C82: 206 | D82: 0 | G82: 72 | H82: 32597.6706 | I82: 713 | J82: 0
A83: 73 | B83: 72365.54451 | C83: 422 | D83: 0 | G83: 73 | H83: 186852.2232 | I83: 121 | J83: 1
A84: 74 | B84: 115769.0604 | C84: 259 | D84: 0 | G84: 74 | H84: 63511.52678 | I84: 454 | J84: 0
A85: 75 | B85: 29544.29751 | C85: 759 | D85: 0 | G85: 75 | H85: 63125.72076 | I85: 458 | J85: 0
A86: 76 | B86: 11950.4099 | C86: 953 | D86: 1 | G86: 76 | H86: 119660.9706 | I86: 225 | J86: 0 | M86: 0
A87: 77 | B87: 45857.21643 | C87: 592 | D87: 0 | G87: 77 | H87: 14009.10811 | I87: 932 | J87: 0
A88: 78 | B88: 60371.65934 | C88: 483 | D88: 0 | G88: 78 | H88: 54055.12263 | I88: 516 | J88: 0
A89: 79 | B89: 522469.865 | C89: 11 | D89: 0 | G89: 79 | H89: 112583.0208 | I89: 243 | J89: 0
A90: 80 | B90: 52126.22615 | C90: 547 | D90: 0 | G90: 80 | H90: 64317.15405 | I90: 446 | J90: 0
A91: 81 | B91: 133994.7612 | C91: 211 | D91: 0 | G91: 81 | H91: 70727.62424 | I91: 408 | J91: 0
A92: 82 | B92: 27287.1913 | C92: 784 | D92: 0 | G92: 82 | H92: 21359.88438 | I92: 856 | J92: 0
A93: 83 | B93: 289673.229 | C93: 61 | D93: 0 | G93: 83 | H93: 69708.77739 | I93: 416 | J93: 0
A94: 84 | B94: 58262.64952 | C94: 502 | D94: 0 | G94: 84 | H94: 67925.69091 | I94: 424 | J94: 0
A95: 85 | B95: 39449.46428 | C95: 648 | D95: 0 | G95: 85 | H95: 61485.18066 | I95: 468 | J95: 0
A96: 86 | B96: 20333.99088 | C96: 859 | D96: 1 | G96: 86 | H96: 32948.53771 | I96: 710 | J96: 0 | M96: 0
A97: 87 | B97: 17564.50933 | C97: 888 | D97: 1 | G97: 87 | H97: 25047.12188 | I97: 808 | J97: 0 | M97: 0
A98: 88 | B98: 42124.28932 | C98: 623 | D98: 0 | G98: 88 | H98: 12723.59517 | I98: 945 | J98: 0
A99: 89 | B99: 35057.27359 | C99: 695 | D99: 0 | G99: 89 | H99: 17033.3429 | I99: 897 | J99: 0
A100: 90 | B100: 21234.37201 | C100: 851 | D100: 1 | G100: 90 | H100: 612713.921 | I100: 16 | J100: 1 | M100: 1
A101: 91 | B101: 86559.20933 | C101: 356 | D101: 0 | G101: 91 | H101: 54029.1677 | I101: 518 | J101: 0
A102: 92 | B102: 186951.7816 | C102: 131 | D102: 0 | G102: 92 | H102: 78389.21064 | I102: 372 | J102: 0
A103: 93 | B103: 32108.54574 | C103: 730 | D103: 0 | G103: 93 | H103: 29058.21789 | I103: 760 | J103: 0
A104: 94 | B104: 37027.78626 | C104: 681 | D104: 0 | G104: 94 | H104: 17484.85716 | I104: 893 | J104: 0
A105: 95 | B105: 18604.52788 | C105: 876 | D105: 1 | G105: 95 | H105: 306184.5922 | I105: 46 | J105: 1 | M105: 1
A106: 96 | B106: 50776.37929 | C106: 554 | D106: 0 | G106: 96 | H106: 43838.53792 | I106: 607 | J106: 0
A107: 97 | B107: 134497.5297 | C107: 209 | D107: 0 | G107: 97 | H107: 37928.17959 | I107: 667 | J107: 0
A108: 98 | B108: 37802.05179 | C108: 669 | D108: 0 | G108: 98 | H108: 9627.546765 | I108: 973 | J108: 0
A109: 99 | B109: 24282.4373 | C109: 822 | D109: 1 | G109: 99 | H109: 11682.31434 | I109: 956 | J109: 0 | M109: 0
A110: 100 | B110: 14761.62854 | C110: 923 | D110: 1 | G110: 100 | H110: 12445.87482 | I110: 950 | J110: 0 | M110: 0
A111: 101 | B111: 57992.41272 | C111: 506 | D111: 0 | G111: 101 | H111: 26950.23675 | I111: 781 | J111: 0
A112: 102 | B112: 10394.50754 | C112: 966 | D112: 1 | G112: 102 | H112: 76605.71042 | I112: 383 | J112: 0 | M112: 0
A113: 103 | B113: 12912.04581 | C113: 942 | D113: 1 | G113: 103 | H113: 45904.48544 | I113: 586 | J113: 0 | M113: 0
A114: 104 | B114: 65031.81507 | C114: 454 | D114: 0 | G114: 104 | H114: 38991.17529 | I114: 655 | J114: 0
A115: 105 | B115: 36664.50285 | C115: 685 | D115: 0 | G115: 105 | H115: 334236.1062 | I115: 38 | J115: 1
A116: 106 | B116: 16868.21712 | C116: 895 | D116: 1 | G116: 106 | H116: 311780.1391 | I116: 44 | J116: 1 | M116: 1
A117: 107 | B117: 109623.5591 | C117: 277 | D117: 0 | G117: 107 | H117: 96070.36596 | I117: 296 | J117: 0
A118: 108 | B118: 55722.5801 | C118: 524 | D118: 0 | G118: 108 | H118: 656609.7622 | I118: 11 | J118: 1
A119: 109 | B119: 352144.633 | C119: 38 | D119: 0 | G119: 109 | H119: 78185.26779 | I119: 375 | J119: 0
A120: 110 | B120: 422080.4867 | C120: 24 | D120: 0 | G120: 110 | H120: 38618.18525 | I120: 660 | J120: 0
A121: 111 | B121: 48366.51857 | C121: 574 | D121: 0 | G121: 111 | H121: 77522.38833 | I121: 378 | J121: 0
A122: 112 | B122: 247184.3716 | C122: 85 | D122: 0 | G122: 112 | H122: 202172.0261 | I122: 102 | J122: 1
A123: 113 | B123: 75282.98332 | C123: 408 | D123: 0 | G123: 113 | H123: 43178.08039 | I123: 615 | J123: 0
A124: 114 | B124: 105216.7327 | C124: 295 | D124: 0 | G124: 114 | H124: 33988.95807 | I124: 697 | J124: 0
A125: 115 | B125: 132020.2264 | C125: 215 | D125: 0 | G125: 115 | H125: 230675.4363 | I125: 85 | J125: 1
A126: 116 | B126: 239893.9024 | C126: 90 | D126: 0 | G126: 116 | H126: 53367.17131 | I126: 523 | J126: 0
A127: 117 | B127: 54177.37697 | C127: 534 | D127: 0 | G127: 117 | H127: 63996.67443 | I127: 449 | J127: 0
A128: 118 | B128: 110214.0967 | C128: 273 | D128: 0 | G128: 118 | H128: 76930.976 | I128: 379 | J128: 0
A129: 119 | B129: 31866.32383 | C129: 732 | D129: 0 | G129: 119 | H129: 34830.39004 | I129: 691 | J129: 0
A130: 120 | B130: 265291.1853 | C130: 71 | D130: 0 | G130: 120 | H130: 127995.1173 | I130: 210 | J130: 0
A131: 121 | B131: 34012.82513 | C131: 710 | D131: 0 | G131: 121 | H131: 62377.16624 | I131: 460 | J131: 0
A132: 122 | B132: 218174.5261 | C132: 102 | D132: 0 | G132: 122 | H132: 231952.2624 | I132: 82 | J132: 1
A133: 123 | B133: 42628.27988 | C133: 615 | D133: 0 | G133: 123 | H133: 103775.6718 | I133: 273 | J133: 0
A134: 124 | B134: 38523.58807 | C134: 661 | D134: 0 | G134: 124 | H134: 496199.8131 | I134: 23 | J134: 1
A135: 125 | B135: 18822.47055 | C135: 872 | D135: 1 | G135: 125 | H135: 7559.915029 | I135: 983 | J135: 0 | M135: 0
A136: 126 | B136: 54087.8184 | C136: 537 | D136: 0 | G136: 126 | H136: 57233.90144 | I136: 501 | J136: 0
A137: 127 | B137: 47936.36584 | C137: 577 | D137: 0 | G137: 127 | H137: 68914.90199 | I137: 420 | J137: 0
A138: 128 | B138: 153434.9793 | C138: 174 | D138: 0 | G138: 128 | H138: 104836.5172 | I138: 268 | J138: 0
A139: 129 | B139: =_xlfn.LOGNORM.INV(RAND(),11,1) -> 109945.9124 | C139: =RANK(B139,$B$11:$B$1010,0) -> 274 | D139: =IF(C139>800,1,0) -> 0 | G139: 129 | H139: =inherit*B139+_xlfn.LOGNORM.INV(RAND(),11,1) -> 28000.70255 | I139: =RANK(H139,$H$11:$H$1010,0) -> 769 | J139: =IF(I139<=200,1,0) -> 0 | M139: =IF(D139=1,IF(J139=1,1,0),"") -> 
A140: 130 | B140: 129846.7024 | C140: 223 | D140: 0 | G140: 130 | H140: 72742.86288 | I140: 399 | J140: 0
A141: 131 | B141: 150917.0689 | C141: 179 | D141: 0 | G141: 131 | H141: 125882.147 | I141: 215 | J141: 0
A142: 132 | B142: 83295.23861 | C142: 380 | D142: 0 | G142: 132 | H142: 6915.798389 | I142: 987 | J142: 0
A143: 133 | B143: 18357.51853 | C143: 880 | D143: 1 | G143: 133 | H143: 186222.1607 | I143: 122 | J143: 1 | M143: 1
A144: 134 | B144: 85362.33745 | C144: 364 | D144: 0 | G144: 134 | H144: 36991.85262 | I144: 673 | J144: 0
A145: 135 | B145: 30489.11253 | C145: 747 | D145: 0 | G145: 135 | H145: 57732.6922 | I145: 496 | J145: 0
A146: 136 | B146: 15533.43544 | C146: 916 | D146: 1 | G146: 136 | H146: 82071.51254 | I146: 354 | J146: 0 | M146: 0
A147: 137 | B147: 131727.775 | C147: 216 | D147: 0 | G147: 137 | H147: 82895.31901 | I147: 351 | J147: 0
A148: 138 | B148: 15781.14406 | C148: 914 | D148: 1 | G148: 138 | H148: 678391.2329 | I148: 9 | J148: 1 | M148: 1
A149: 139 | B149: 20777.3591 | C149: 853 | D149: 1 | G149: 139 | H149: 166723.3818 | I149: 148 | J149: 1 | M149: 1
A150: 140 | B150: 34732.85231 | C150: 701 | D150: 0 | G150: 140 | H150: 230800.4948 | I150: 84 | J150: 1
A151: 141 | B151: 57878.0104 | C151: 508 | D151: 0 | G151: 141 | H151: 40215.75503 | I151: 638 | J151: 0
A152: 142 | B152: 57615.43058 | C152: 511 | D152: 0 | G152: 142 | H152: 359014.1722 | I152: 35 | J152: 1
A153: 143 | B153: 15067.24496 | C153: 920 | D153: 1 | G153: 143 | H153: 61055.84469 | I153: 471 | J153: 0 | M153: 0
A154: 144 | B154: 271673.5687 | C154: 66 | D154: 0 | G154: 144 | H154: 52329.12666 | I154: 530 | J154: 0
A155: 145 | B155: 30016.69252 | C155: 752 | D155: 0 | G155: 145 | H155: 226610.0114 | I155: 88 | J155: 1
A156: 146 | B156: 138556.4973 | C156: 201 | D156: 0 | G156: 146 | H156: 22467.32238 | I156: 841 | J156: 0
A157: 147 | B157: 28161.46929 | C157: 773 | D157: 0 | G157: 147 | H157: 49778.67283 | I157: 553 | J157: 0
A158: 148 | B158: 47325.79766 | C158: 584 | D158: 0 | G158: 148 | H158: 11076.1197 | I158: 960 | J158: 0
A159: 149 | B159: 90436.40445 | C159: 349 | D159: 0 | G159: 149 | H159: 23897.81703 | I159: 827 | J159: 0
A160: 150 | B160: 135540.3848 | C160: 205 | D160: 0 | G160: 150 | H160: 42140.31583 | I160: 623 | J160: 0
A161: 151 | B161: 11956.71633 | C161: 952 | D161: 1 | G161: 151 | H161: 123642.7385 | I161: 217 | J161: 0 | M161: 0
A162: 152 | B162: 36290.8409 | C162: 688 | D162: 0 | G162: 152 | H162: 250214.2735 | I162: 73 | J162: 1
A163: 153 | B163: 236437.1411 | C163: 93 | D163: 0 | G163: 153 | H163: 185523.0432 | I163: 124 | J163: 1
A164: 154 | B164: 185849.7259 | C164: 133 | D164: 0 | G164: 154 | H164: 44555.91465 | I164: 596 | J164: 0
A165: 155 | B165: 63014.57296 | C165: 466 | D165: 0 | G165: 155 | H165: 12236.65423 | I165: 953 | J165: 0
A166: 156 | B166: 67273.06805 | C166: 446 | D166: 0 | G166: 156 | H166: 48785.35667 | I166: 561 | J166: 0
A167: 157 | B167: 97848.22101 | C167: 319 | D167: 0 | G167: 157 | H167: 72703.8932 | I167: 401 | J167: 0
A168: 158 | B168: 27020.63722 | C168: 787 | D168: 0 | G168: 158 | H168: 87031.37663 | I168: 333 | J168: 0
A169: 159 | B169: 151998.8891 | C169: 176 | D169: 0 | G169: 159 | H169: 33500.48298 | I169: 705 | J169: 0
A170: 160 | B170: 19412.62858 | C170: 868 | D170: 1 | G170: 160 | H170: 36098.28229 | I170: 680 | J170: 0 | M170: 0
A171: 161 | B171: 287600.2881 | C171: 62 | D171: 0 | G171: 161 | H171: 29149.15802 | I171: 759 | J171: 0
A172: 162 | B172: 151652.0711 | C172: 177 | D172: 0 | G172: 162 | H172: 92892.5766 | I172: 311 | J172: 0
A173: 163 | B173: 82285.05877 | C173: 385 | D173: 0 | G173: 163 | H173: 221911.3174 | I173: 90 | J173: 1
A174: 164 | B174: 24525.06209 | C174: 819 | D174: 1 | G174: 164 | H174: 53747.37669 | I174: 522 | J174: 0 | M174: 0
A175: 165 | B175: 247489.9833 | C175: 84 | D175: 0 | G175: 165 | H175: 532907.9398 | I175: 21 | J175: 1
A176: 166 | B176: 338988.6809 | C176: 44 | D176: 0 | G176: 166 | H176: 24168.94076 | I176: 822 | J176: 0
A177: 167 | B177: 27162.9504 | C177: 786 | D177: 0 | G177: 167 | H177: 44456.64087 | I177: 600 | J177: 0
A178: 168 | B178: 13704.63528 | C178: 933 | D178: 1 | G178: 168 | H178: 65813.66251 | I178: 438 | J178: 0 | M178: 0
A179: 169 | B179: 103747.5022 | C179: 301 | D179: 0 | G179: 169 | H179: 22075.66376 | I179: 848 | J179: 0
A180: 170 | B180: 26226.64921 | C180: 799 | D180: 0 | G180: 170 | H180: 24693.87032 | I180: 813 | J180: 0
A181: 171 | B181: 43559.34153 | C181: 608 | D181: 0 | G181: 171 | H181: 47011.96012 | I181: 579 | J181: 0
A182: 172 | B182: 160615.1578 | C182: 168 | D182: 0 | G182: 172 | H182: 260067.3786 | I182: 64 | J182: 1
A183: 173 | B183: 149191.4059 | C183: 182 | D183: 0 | G183: 173 | H183: 51543.97999 | I183: 535 | J183: 0
A184: 174 | B184: 48393.04418 | C184: 573 | D184: 0 | G184: 174 | H184: 228119.9875 | I184: 86 | J184: 1
A185: 175 | B185: 18966.1928 | C185: 871 | D185: 1 | G185: 175 | H185: 39826.95344 | I185: 641 | J185: 0 | M185: 0
A186: 176 | B186: 502375.9688 | C186: 13 | D186: 0 | G186: 176 | H186: 88232.00824 | I186: 328 | J186: 0
A187: 177 | B187: 102394.1984 | C187: 306 | D187: 0 | G187: 177 | H187: 51564.91085 | I187: 534 | J187: 0
A188: 178 | B188: 62502.04716 | C188: 470 | D188: 0 | G188: 178 | H188: 35357.39027 | I188: 685 | J188: 0
A189: 179 | B189: 14068.57651 | C189: 930 | D189: 1 | G189: 179 | H189: 23497.2304 | I189: 832 | J189: 0 | M189: 0
A190: 180 | B190: 72353.26816 | C190: 423 | D190: 0 | G190: 180 | H190: 109401.4813 | I190: 253 | J190: 0
A191: 181 | B191: 199359.5525 | C191: 119 | D191: 0 | G191: 181 | H191: 23842.81747 | I191: 828 | J191: 0
A192: 182 | B192: 70323.9263 | C192: 432 | D192: 0 | G192: 182 | H192: 83242.05041 | I192: 350 | J192: 0
A193: 183 | B193: 97232.94959 | C193: 322 | D193: 0 | G193: 183 | H193: 324648.1571 | I193: 39 | J193: 1
A194: 184 | B194: 88992.02045 | C194: 352 | D194: 0 | G194: 184 | H194: 47049.99947 | I194: 578 | J194: 0
A195: 185 | B195: 141275.8773 | C195: 195 | D195: 0 | G195: 185 | H195: 17328.59247 | I195: 894 | J195: 0
A196: 186 | B196: 109714.5887 | C196: 276 | D196: 0 | G196: 186 | H196: 57919.67061 | I196: 494 | J196: 0
A197: 187 | B197: 168547.1068 | C197: 152 | D197: 0 | G197: 187 | H197: 33345.2687 | I197: 708 | J197: 0
A198: 188 | B198: 231556.7061 | C198: 95 | D198: 0 | G198: 188 | H198: 85332.46535 | I198: 338 | J198: 0
A199: 189 | B199: 135835.9973 | C199: 204 | D199: 0 | G199: 189 | H199: 42477.27046 | I199: 620 | J199: 0
A200: 190 | B200: 62033.18428 | C200: 474 | D200: 0 | G200: 190 | H200: 35333.75756 | I200: 686 | J200: 0
... 810 more rows

Sheet LNInherit (hidden)
A1: This sheet models inheritance in a more sophisticated way that does a much better job of simulating the full transition matrix (not just the bottom-to-top transition probablity).
A2: The idea comes from Frank Howland -- thanks, Frank!
A4: The model is based on this equation:
H5: Now inheritance is multiplicative, not additive.
A6: If Parent Income > e^11 (59,874), then Child income (fron log-normal draw) is boosted by a % (the Parent term > 1) for inherit > 0.
A7: Set inherit to 0.4 in cell F11 and run sims of cells in the transition matrix to see how well it performs. | L7: PRESS F9 repeatedly to see the numbers bounce around.
A8: Also sim cell T39, the immobility ratio, to see that it is remarkably close to Chetty et al. (2014). | N8: =COUNTIF(N11:N1010,">=0") -> 200 | O8: check
N9: =SUM(N11:N1010)/200 -> 0.21 | O9: % of bottom who moved up to top
A10: Parent | B10: Income ($) | C10: Rank | D10: Bottom Quintile? | F10: inherit | G10: Child | H10: Parent term | I10: Income ($) | J10: Rank | K10: Top Quintile? | N10: Moved From Bottom to Top?
A11: 1 | B11: =_xlfn.LOGNORM.INV(RAND(),11,1) -> 119993.9117 | C11: =RANK(B11,$B$11:$B$1010,0) -> 238 | D11: =IF(C11>800,1,0) -> 0 | F11: 0 | G11: 1 | H11: =EXP(inherit*(LN(B11)-11)) -> 1 | I11: =H11*_xlfn.LOGNORM.INV(RAND(),11,1) -> 27229.16162 | J11: =RANK(I11,$I$11:$I$1010,0) -> 768 | K11: =IF(J11<=200,1,0) -> 0 | N11: =IF(D11=1,IF(K11=1,1,0),"") -> 
A12: 2 | B12: 118185.0761 | C12: 242 | D12: 0 | G12: 2 | H12: 1 | I12: =H12*_xlfn.LOGNORM.INV(RAND(),11,1) -> 18973.15324 | J12: 865 | K12: 0 | S12: QUINTILE TRANSITION MATRIX
A13: 3 | B13: 19854.16771 | C13: 880 | D13: 1 | G13: 3 | H13: 1 | I13: 41789.97545 | J13: 622 | K13: 0 | N13: 0 | T13: 5th quintile is top (richest) fifth like 99th percentile is top 1%.
A14: 4 | B14: 42989.56262 | C14: 637 | D14: 0 | G14: 4 | H14: 1 | I14: 53128.28686 | J14: 517 | K14: 0 | T14: Parent
A15: 5 | B15: 23781.48412 | C15: 845 | D15: 1 | G15: 5 | H15: 1 | I15: 22530.30564 | J15: 825 | K15: 0 | N15: 0 | S15: Child | T15: 1 | U15: 2 | V15: 3 | W15: 4 | X15: 5
A16: 6 | B16: 296200.3473 | C16: 58 | D16: 0 | G16: 6 | H16: 1 | I16: 52589.57655 | J16: 522 | K16: 0 | S16: 1 | T16: =tmatrix(C11:C1010,J11:J1010) -> 0.18 | U16: 0.155 | V16: 0.215 | W16: 0.27 | X16: 0.18 | Y16: =SUM(T16:X16) -> 1
A17: 7 | B17: 54833.60161 | C17: 543 | D17: 0 | G17: 7 | H17: 1 | I17: 14235.05076 | J17: 921 | K17: 0 | S17: 2 | T17: 0.225 | U17: 0.23 | V17: 0.22 | W17: 0.18 | X17: 0.145 | Y17: =SUM(T17:X17) -> 1
A18: 8 | B18: 132011.474 | C18: 200 | D18: 0 | G18: 8 | H18: 1 | I18: 90717.69702 | J18: 303 | K18: 0 | S18: 3 | T18: 0.17 | U18: 0.19 | V18: 0.22 | W18: 0.165 | X18: 0.255 | Y18: =SUM(T18:X18) -> 1
A19: 9 | B19: 22006.29575 | C19: 861 | D19: 1 | G19: 9 | H19: 1 | I19: 31088.40695 | J19: 724 | K19: 0 | N19: 0 | S19: 4 | T19: 0.215 | U19: 0.23 | V19: 0.15 | W19: 0.21 | X19: 0.195 | Y19: =SUM(T19:X19) -> 1
A20: 10 | B20: 79071.27613 | C20: 394 | D20: 0 | G20: 10 | H20: 1 | I20: 181500.4705 | J20: 119 | K20: 1 | S20: 5 | T20: 0.21 | U20: 0.195 | V20: 0.195 | W20: 0.175 | X20: 0.225 | Y20: =SUM(T20:X20) -> 1
A21: 11 | B21: 13922.2998 | C21: 929 | D21: 1 | G21: 11 | H21: 1 | I21: 39646.44433 | J21: 641 | K21: 0 | N21: 0 | T21: =SUM(T16:T20) -> 1 | U21: =SUM(U16:U20) -> 1 | V21: =SUM(V16:V20) -> 1 | W21: =SUM(W16:W20) -> 1 | X21: =SUM(X16:X20) -> 1
A22: 12 | B22: 34454.8853 | C22: 730 | D22: 0 | G22: 12 | H22: 1 | I22: 125266.53 | J22: 214 | K22: 0
A23: 13 | B23: 12777.44456 | C23: 941 | D23: 1 | G23: 13 | H23: 1 | I23: 271450.0015 | J23: 60 | K23: 1 | N23: 1
A24: 14 | B24: 16080.26324 | C24: 906 | D24: 1 | G24: 14 | H24: 1 | I24: 132895.3372 | J24: 201 | K24: 0 | N24: 0
A25: 15 | B25: 199409.4006 | C25: 109 | D25: 0 | G25: 15 | H25: 1 | I25: 51035.2287 | J25: 535 | K25: 0
A26: 16 | B26: 28106.75391 | C26: 788 | D26: 0 | G26: 16 | H26: 1 | I26: 52846.45138 | J26: 520 | K26: 0
A27: 17 | B27: 79272.07558 | C27: 391 | D27: 0 | G27: 17 | H27: 1 | I27: 66162.10681 | J27: 439 | K27: 0
A28: 18 | B28: 110306.4775 | C28: 272 | D28: 0 | G28: 18 | H28: 1 | I28: 42354.25908 | J28: 613 | K28: 0
A29: 19 | B29: 27901.58553 | C29: 790 | D29: 0 | G29: 19 | H29: 1 | I29: 34271.45215 | J29: 693 | K29: 0
A30: 20 | B30: 62470.90945 | C30: 490 | D30: 0 | G30: 20 | H30: 1 | I30: 27550.7216 | J30: 762 | K30: 0
A31: 21 | B31: 155536.9182 | C31: 165 | D31: 0 | G31: 21 | H31: 1 | I31: 379897.9963 | J31: 26 | K31: 1
A32: 22 | B32: 249350.0221 | C32: 81 | D32: 0 | G32: 22 | H32: 1 | I32: 24299.4824 | J32: 803 | K32: 0
A33: 23 | B33: 70106.31689 | C33: 444 | D33: 0 | G33: 23 | H33: 1 | I33: 17546.21406 | J33: 880 | K33: 0
A34: 24 | B34: 12279.10454 | C34: 946 | D34: 1 | G34: 24 | H34: 1 | I34: 36068.00274 | J34: 676 | K34: 0 | N34: 0
A35: 25 | B35: 28112.74104 | C35: 787 | D35: 0 | G35: 25 | H35: 1 | I35: 86192.22662 | J35: 317 | K35: 0
A36: 26 | B36: 103498.5243 | C36: 301 | D36: 0 | G36: 26 | H36: 1 | I36: 114734.5368 | J36: 235 | K36: 0
A37: 27 | B37: 177514.9765 | C37: 137 | D37: 0 | G37: 27 | H37: 1 | I37: 54380.64769 | J37: 506 | K37: 0
A38: 28 | B38: 51718.97437 | C38: 565 | D38: 0 | G38: 28 | H38: 1 | I38: 184699.5443 | J38: 114 | K38: 1
A39: 29 | B39: 43423.07713 | C39: 633 | D39: 0 | G39: 29 | H39: 1 | I39: 42516.51332 | J39: 610 | K39: 0 | T39: =(T16+U17+V18+W19+X20)/5 -> 0.213 | U39: immobility ratio -- fraction of the mass that falls on the diagonal
A40: 30 | B40: 10065.05425 | C40: 966 | D40: 1 | G40: 30 | H40: 1 | I40: 25251.87485 | J40: 795 | K40: 0 | N40: 0
A41: 31 | B41: 123646.6731 | C41: 225 | D41: 0 | G41: 31 | H41: 1 | I41: 15419.15685 | J41: 906 | K41: 0
A42: 32 | B42: 194292.5833 | C42: 117 | D42: 0 | G42: 32 | H42: 1 | I42: 17606.15983 | J42: 879 | K42: 0
A43: 33 | B43: 457141.311 | C43: 17 | D43: 0 | G43: 33 | H43: 1 | I43: 15045.671 | J43: 910 | K43: 0
A44: 34 | B44: 79226.88461 | C44: 392 | D44: 0 | G44: 34 | H44: 1 | I44: 16042.19225 | J44: 898 | K44: 0
A45: 35 | B45: 29588.45671 | C45: 769 | D45: 0 | G45: 35 | H45: 1 | I45: 58551.9503 | J45: 486 | K45: 0
A46: 36 | B46: 12899.36272 | C46: 940 | D46: 1 | G46: 36 | H46: 1 | I46: 364961.2258 | J46: 28 | K46: 1 | N46: 1
A47: 37 | B47: 108874.9316 | C47: 278 | D47: 0 | G47: 37 | H47: 1 | I47: 7204.422923 | J47: 982 | K47: 0
A48: 38 | B48: 74381.95975 | C48: 418 | D48: 0 | G48: 38 | H48: 1 | I48: 10484.79697 | J48: 954 | K48: 0
A49: 39 | B49: 32478.45879 | C49: 749 | D49: 0 | G49: 39 | H49: 1 | I49: 416733.6105 | J49: 21 | K49: 1
A50: 40 | B50: 41542.65879 | C50: 661 | D50: 0 | G50: 40 | H50: 1 | I50: 155514.7077 | J50: 157 | K50: 1
A51: 41 | B51: 61351.01499 | C51: 501 | D51: 0 | G51: 41 | H51: 1 | I51: 283408.4565 | J51: 55 | K51: 1
A52: 42 | B52: 115926.9242 | C52: 254 | D52: 0 | G52: 42 | H52: 1 | I52: 83741.67047 | J52: 331 | K52: 0
A53: 43 | B53: 85032.30855 | C53: 365 | D53: 0 | G53: 43 | H53: 1 | I53: 10753.79754 | J53: 950 | K53: 0
A54: 44 | B54: 36526.9544 | C54: 709 | D54: 0 | G54: 44 | H54: 1 | I54: 102757.8259 | J54: 268 | K54: 0
A55: 45 | B55: 29376.09912 | C55: 772 | D55: 0 | G55: 45 | H55: 1 | I55: 58589.56657 | J55: 485 | K55: 0
A56: 46 | B56: 8292.168725 | C56: 974 | D56: 1 | G56: 46 | H56: 1 | I56: 290040.188 | J56: 51 | K56: 1 | N56: 1
A57: 47 | B57: 72652.65024 | C57: 431 | D57: 0 | G57: 47 | H57: 1 | I57: 68347.87605 | J57: 421 | K57: 0
A58: 48 | B58: 106846.6295 | C58: 286 | D58: 0 | G58: 48 | H58: 1 | I58: 76526.56119 | J58: 367 | K58: 0
A59: 49 | B59: 66246.01546 | C59: 464 | D59: 0 | G59: 49 | H59: 1 | I59: 36727.91514 | J59: 669 | K59: 0
A60: 50 | B60: 638048.7112 | C60: 6 | D60: 0 | G60: 50 | H60: 1 | I60: 105089.5171 | J60: 261 | K60: 0
A61: 51 | B61: 77229.21109 | C61: 406 | D61: 0 | G61: 51 | H61: 1 | I61: 71189.30337 | J61: 400 | K61: 0
A62: 52 | B62: 19680.78698 | C62: 883 | D62: 1 | G62: 52 | H62: 1 | I62: 45309.57146 | J62: 580 | K62: 0 | N62: 0
A63: 53 | B63: 32276.41144 | C63: 750 | D63: 0 | G63: 53 | H63: 1 | I63: 51175.93207 | J63: 532 | K63: 0
A64: 54 | B64: 117189.7151 | C64: 250 | D64: 0 | G64: 54 | H64: 1 | I64: 26445.70036 | J64: 779 | K64: 0
A65: 55 | B65: 106602.0012 | C65: 289 | D65: 0 | G65: 55 | H65: 1 | I65: 70589.40507 | J65: 406 | K65: 0
A66: 56 | B66: 23582.49842 | C66: 846 | D66: 1 | G66: 56 | H66: 1 | I66: 7635.586407 | J66: 981 | K66: 0 | N66: 0
A67: 57 | B67: 130534.4793 | C67: 202 | D67: 0 | G67: 57 | H67: 1 | I67: 30451.62028 | J67: 729 | K67: 0
A68: 58 | B68: 53337.50649 | C68: 556 | D68: 0 | G68: 58 | H68: 1 | I68: 256039.5366 | J68: 65 | K68: 1
A69: 59 | B69: 68213.20348 | C69: 452 | D69: 0 | G69: 59 | H69: 1 | I69: 18689.75825 | J69: 867 | K69: 0
A70: 60 | B70: 77731.68096 | C70: 402 | D70: 0 | G70: 60 | H70: 1 | I70: 59231.94308 | J70: 482 | K70: 0
A71: 61 | B71: 40899.97476 | C71: 664 | D71: 0 | G71: 61 | H71: 1 | I71: 88592.80912 | J71: 310 | K71: 0
A72: 62 | B72: 170391.0771 | C72: 144 | D72: 0 | G72: 62 | H72: 1 | I72: 211011.6472 | J72: 88 | K72: 1
A73: 63 | B73: 20907.17024 | C73: 872 | D73: 1 | G73: 63 | H73: 1 | I73: 107811.8924 | J73: 254 | K73: 0 | N73: 0
A74: 64 | B74: 23782.71544 | C74: 844 | D74: 1 | G74: 64 | H74: 1 | I74: 166078.7108 | J74: 143 | K74: 1 | N74: 1
A75: 65 | B75: =_xlfn.LOGNORM.INV(RAND(),11,1) -> 83585.53509 | C75: =RANK(B75,$B$11:$B$1010,0) -> 373 | D75: =IF(C75>800,1,0) -> 0 | G75: 65 | H75: =EXP(inherit*(LN(B75)-11)) -> 1 | I75: 18713.84027 | J75: =RANK(I75,$I$11:$I$1010,0) -> 866 | K75: =IF(J75<=200,1,0) -> 0 | N75: =IF(D75=1,IF(K75=1,1,0),"") -> 
A76: 66 | B76: 55286.01585 | C76: 538 | D76: 0 | G76: 66 | H76: 1 | I76: =H76*_xlfn.LOGNORM.INV(RAND(),11,1) -> 14776.34602 | J76: 913 | K76: 0
A77: 67 | B77: 68081.10741 | C77: 454 | D77: 0 | G77: 67 | H77: 1 | I77: 395768.1409 | J77: 24 | K77: 1
A78: 68 | B78: 99494.70882 | C78: 315 | D78: 0 | G78: 68 | H78: 1 | I78: 55271.81925 | J78: 501 | K78: 0
A79: 69 | B79: 25729.59403 | C79: 817 | D79: 1 | G79: 69 | H79: 1 | I79: 12345.85526 | J79: 938 | K79: 0 | N79: 0
A80: 70 | B80: 84290.78779 | C80: 370 | D80: 0 | G80: 70 | H80: 1 | I80: 50559.10502 | J80: 538 | K80: 0
A81: 71 | B81: 20212.916 | C81: 876 | D81: 1 | G81: 71 | H81: 1 | I81: 31936.10334 | J81: 714 | K81: 0 | N81: 0
A82: 72 | B82: 104886.0029 | C82: 296 | D82: 0 | G82: 72 | H82: 1 | I82: 22351.45278 | J82: 827 | K82: 0
A83: 73 | B83: 56160.08728 | C83: 535 | D83: 0 | G83: 73 | H83: 1 | I83: 46960.27323 | J83: 564 | K83: 0
A84: 74 | B84: 56608.66532 | C84: 530 | D84: 0 | G84: 74 | H84: 1 | I84: 10144.00434 | J84: 958 | K84: 0
A85: 75 | B85: 31291.53129 | C85: 758 | D85: 0 | G85: 75 | H85: 1 | I85: 34492.32376 | J85: 691 | K85: 0
A86: 76 | B86: 195932.1844 | C86: 115 | D86: 0 | G86: 76 | H86: 1 | I86: 43590.77446 | J86: 595 | K86: 0
A87: 77 | B87: 62218.63092 | C87: 493 | D87: 0 | G87: 77 | H87: 1 | I87: 544747.137 | J87: 12 | K87: 1
A88: 78 | B88: 315400.8821 | C88: 49 | D88: 0 | G88: 78 | H88: 1 | I88: 433159.4983 | J88: 18 | K88: 1
A89: 79 | B89: 167856.8826 | C89: 149 | D89: 0 | G89: 79 | H89: 1 | I89: 64395.82366 | J89: 453 | K89: 0
A90: 80 | B90: 95068.51777 | C90: 325 | D90: 0 | G90: 80 | H90: 1 | I90: 28263.7474 | J90: 755 | K90: 0
A91: 81 | B91: 84705.39822 | C91: 367 | D91: 0 | G91: 81 | H91: 1 | I91: 80283.80449 | J91: 351 | K91: 0
A92: 82 | B92: 127138.0854 | C92: 215 | D92: 0 | G92: 82 | H92: 1 | I92: 10727.8571 | J92: 951 | K92: 0
A93: 83 | B93: 23790.8488 | C93: 843 | D93: 1 | G93: 83 | H93: 1 | I93: 41076.95242 | J93: 627 | K93: 0 | N93: 0
A94: 84 | B94: 19212.12036 | C94: 886 | D94: 1 | G94: 84 | H94: 1 | I94: 69172.84424 | J94: 414 | K94: 0 | N94: 0
A95: 85 | B95: 59959.19865 | C95: 506 | D95: 0 | G95: 85 | H95: 1 | I95: 53445.54348 | J95: 514 | K95: 0
A96: 86 | B96: 21364.84096 | C96: 866 | D96: 1 | G96: 86 | H96: 1 | I96: 104867.2242 | J96: 262 | K96: 0 | N96: 0
A97: 87 | B97: 212221.1177 | C97: 98 | D97: 0 | G97: 87 | H97: 1 | I97: 473038.0454 | J97: 15 | K97: 1
A98: 88 | B98: 25528.55641 | C98: 819 | D98: 1 | G98: 88 | H98: 1 | I98: 113148.429 | J98: 239 | K98: 0 | N98: 0
A99: 89 | B99: 38397.23948 | C99: 691 | D99: 0 | G99: 89 | H99: 1 | I99: 58939.95006 | J99: 484 | K99: 0
A100: 90 | B100: 373468.8427 | C100: 32 | D100: 0 | G100: 90 | H100: 1 | I100: 15750.31374 | J100: 902 | K100: 0
A101: 91 | B101: 33419.21387 | C101: 738 | D101: 0 | G101: 91 | H101: 1 | I101: 25503.36721 | J101: 790 | K101: 0
A102: 92 | B102: 287543.2911 | C102: 65 | D102: 0 | G102: 92 | H102: 1 | I102: 63185.67852 | J102: 461 | K102: 0
A103: 93 | B103: 5488.542026 | C103: 995 | D103: 1 | G103: 93 | H103: 1 | I103: 154314.9857 | J103: 159 | K103: 1 | N103: 1
A104: 94 | B104: 145539.4253 | C104: 182 | D104: 0 | G104: 94 | H104: 1 | I104: 11787.80373 | J104: 944 | K104: 0
A105: 95 | B105: 110779.3322 | C105: 269 | D105: 0 | G105: 95 | H105: 1 | I105: 148801.2859 | J105: 169 | K105: 1
A106: 96 | B106: 35184.35946 | C106: 724 | D106: 0 | G106: 96 | H106: 1 | I106: 169713.8061 | J106: 134 | K106: 1
A107: 97 | B107: 117483.4673 | C107: 247 | D107: 0 | G107: 97 | H107: 1 | I107: 107030.5118 | J107: 255 | K107: 0
A108: 98 | B108: 75530.94655 | C108: 415 | D108: 0 | G108: 98 | H108: 1 | I108: 9236.026776 | J108: 962 | K108: 0
A109: 99 | B109: 14194.57545 | C109: 923 | D109: 1 | G109: 99 | H109: 1 | I109: 44700.74282 | J109: 582 | K109: 0 | N109: 0
A110: 100 | B110: 28598.85964 | C110: 783 | D110: 0 | G110: 100 | H110: 1 | I110: 39342.41997 | J110: 645 | K110: 0
A111: 101 | B111: 42927.68285 | C111: 639 | D111: 0 | G111: 101 | H111: 1 | I111: 105996.516 | J111: 257 | K111: 0
A112: 102 | B112: 40066.98817 | C112: 676 | D112: 0 | G112: 102 | H112: 1 | I112: 15144.85812 | J112: 909 | K112: 0
A113: 103 | B113: 9221.426239 | C113: 971 | D113: 1 | G113: 103 | H113: 1 | I113: 216297.8626 | J113: 82 | K113: 1 | N113: 1
A114: 104 | B114: 127588.0485 | C114: 213 | D114: 0 | G114: 104 | H114: 1 | I114: 111104.5354 | J114: 246 | K114: 0
A115: 105 | B115: 96459.44828 | C115: 323 | D115: 0 | G115: 105 | H115: 1 | I115: 110411.6875 | J115: 248 | K115: 0
A116: 106 | B116: 14304.18044 | C116: 922 | D116: 1 | G116: 106 | H116: 1 | I116: 113103.5585 | J116: 240 | K116: 0 | N116: 0
A117: 107 | B117: 57279.77718 | C117: 524 | D117: 0 | G117: 107 | H117: 1 | I117: 26268.94328 | J117: 783 | K117: 0
A118: 108 | B118: 147789.9421 | C118: 178 | D118: 0 | G118: 108 | H118: 1 | I118: 402938.0196 | J118: 22 | K118: 1
A119: 109 | B119: 6285.341807 | C119: 990 | D119: 1 | G119: 109 | H119: 1 | I119: 35782.42986 | J119: 681 | K119: 0 | N119: 0
A120: 110 | B120: 64893.59235 | C120: 473 | D120: 0 | G120: 110 | H120: 1 | I120: 366648.797 | J120: 27 | K120: 1
A121: 111 | B121: 25401.88878 | C121: 822 | D121: 1 | G121: 111 | H121: 1 | I121: 50428.03733 | J121: 539 | K121: 0 | N121: 0
A122: 112 | B122: 70347.22844 | C122: 443 | D122: 0 | G122: 112 | H122: 1 | I122: 121110.57 | J122: 224 | K122: 0
A123: 113 | B123: 26749.37079 | C123: 808 | D123: 1 | G123: 113 | H123: 1 | I123: 40887.29582 | J123: 632 | K123: 0 | N123: 0
A124: 114 | B124: 20538.84813 | C124: 874 | D124: 1 | G124: 114 | H124: 1 | I124: 48068.00478 | J124: 553 | K124: 0 | N124: 0
A125: 115 | B125: 204346.7069 | C125: 101 | D125: 0 | G125: 115 | H125: 1 | I125: 83064.37878 | J125: 336 | K125: 0
A126: 116 | B126: 103192.4156 | C126: 302 | D126: 0 | G126: 116 | H126: 1 | I126: 191717.7946 | J126: 107 | K126: 1
A127: 117 | B127: 39744.8087 | C127: 679 | D127: 0 | G127: 117 | H127: 1 | I127: 347468.3251 | J127: 34 | K127: 1
A128: 118 | B128: 124479.6284 | C128: 221 | D128: 0 | G128: 118 | H128: 1 | I128: 288102.1237 | J128: 52 | K128: 1
A129: 119 | B129: 98730.33942 | C129: 320 | D129: 0 | G129: 119 | H129: 1 | I129: 23762.10677 | J129: 811 | K129: 0
A130: 120 | B130: 129327.1248 | C130: 207 | D130: 0 | G130: 120 | H130: 1 | I130: 23981.00682 | J130: 809 | K130: 0
A131: 121 | B131: 11464.84412 | C131: 955 | D131: 1 | G131: 121 | H131: 1 | I131: 41808.81019 | J131: 621 | K131: 0 | N131: 0
A132: 122 | B132: 13030.86116 | C132: 939 | D132: 1 | G132: 122 | H132: 1 | I132: 159657.0532 | J132: 149 | K132: 1 | N132: 1
A133: 123 | B133: 30196.77427 | C133: 762 | D133: 0 | G133: 123 | H133: 1 | I133: 34961.19676 | J133: 687 | K133: 0
A134: 124 | B134: 80581.07147 | C134: 383 | D134: 0 | G134: 124 | H134: 1 | I134: 31114.64018 | J134: 723 | K134: 0
A135: 125 | B135: 36811.07412 | C135: 706 | D135: 0 | G135: 125 | H135: 1 | I135: 122967.656 | J135: 219 | K135: 0
A136: 126 | B136: 6992.583483 | C136: 987 | D136: 1 | G136: 126 | H136: 1 | I136: 60441.12389 | J136: 475 | K136: 0 | N136: 0
A137: 127 | B137: 35032.55639 | C137: 725 | D137: 0 | G137: 127 | H137: 1 | I137: 185089.892 | J137: 113 | K137: 1
A138: 128 | B138: 12505.61024 | C138: 945 | D138: 1 | G138: 128 | H138: 1 | I138: 15838.45972 | J138: 900 | K138: 0 | N138: 0
A139: 129 | B139: =_xlfn.LOGNORM.INV(RAND(),11,1) -> 26306.30951 | C139: =RANK(B139,$B$11:$B$1010,0) -> 811 | D139: =IF(C139>800,1,0) -> 1 | G139: 129 | H139: =EXP(inherit*(LN(B139)-11)) -> 1 | I139: 206173.2476 | J139: =RANK(I139,$I$11:$I$1010,0) -> 92 | K139: =IF(J139<=200,1,0) -> 1 | N139: =IF(D139=1,IF(K139=1,1,0),"") -> 1
A140: 130 | B140: 203828.6429 | C140: 103 | D140: 0 | G140: 130 | H140: 1 | I140: =H140*_xlfn.LOGNORM.INV(RAND(),11,1) -> 66697.82351 | J140: 433 | K140: 0
A141: 131 | B141: 7285.908965 | C141: 986 | D141: 1 | G141: 131 | H141: 1 | I141: 168564.1391 | J141: 138 | K141: 1 | N141: 1
A142: 132 | B142: 47879.782 | C142: 596 | D142: 0 | G142: 132 | H142: 1 | I142: 9430.713472 | J142: 961 | K142: 0
A143: 133 | B143: 99211.8923 | C143: 317 | D143: 0 | G143: 133 | H143: 1 | I143: 16437.16273 | J143: 894 | K143: 0
A144: 134 | B144: 25488.13399 | C144: 820 | D144: 1 | G144: 134 | H144: 1 | I144: 17636.16486 | J144: 878 | K144: 0 | N144: 0
A145: 135 | B145: 33899.31041 | C145: 735 | D145: 0 | G145: 135 | H145: 1 | I145: 75840.58734 | J145: 373 | K145: 0
A146: 136 | B146: 104851.1042 | C146: 297 | D146: 0 | G146: 136 | H146: 1 | I146: 23448.25913 | J146: 815 | K146: 0
A147: 137 | B147: 101445.8319 | C147: 306 | D147: 0 | G147: 137 | H147: 1 | I147: 147224.3622 | J147: 173 | K147: 1
A148: 138 | B148: 5209.537472 | C148: 996 | D148: 1 | G148: 138 | H148: 1 | I148: 21600.96411 | J148: 832 | K148: 0 | N148: 0
A149: 139 | B149: 68496.33928 | C149: 449 | D149: 0 | G149: 139 | H149: 1 | I149: 17646.16303 | J149: 877 | K149: 0
A150: 140 | B150: 122428.4313 | C150: 231 | D150: 0 | G150: 140 | H150: 1 | I150: 6244.539651 | J150: 989 | K150: 0
A151: 141 | B151: 59086.17302 | C151: 512 | D151: 0 | G151: 141 | H151: 1 | I151: 33244.18964 | J151: 701 | K151: 0
A152: 142 | B152: 180709.4303 | C152: 134 | D152: 0 | G152: 142 | H152: 1 | I152: 58156.8422 | J152: 489 | K152: 0
A153: 143 | B153: 88560.74976 | C153: 350 | D153: 0 | G153: 143 | H153: 1 | I153: 18580.34566 | J153: 870 | K153: 0
A154: 144 | B154: 93618.64897 | C154: 330 | D154: 0 | G154: 144 | H154: 1 | I154: 54359.73358 | J154: 507 | K154: 0
A155: 145 | B155: 15460.71108 | C155: 914 | D155: 1 | G155: 145 | H155: 1 | I155: 185582.7004 | J155: 111 | K155: 1 | N155: 1
A156: 146 | B156: 14578.79735 | C156: 921 | D156: 1 | G156: 146 | H156: 1 | I156: 45986.82323 | J156: 569 | K156: 0 | N156: 0
A157: 147 | B157: 311552.5305 | C157: 50 | D157: 0 | G157: 147 | H157: 1 | I157: 32397.54745 | J157: 709 | K157: 0
A158: 148 | B158: 35486.56014 | C158: 722 | D158: 0 | G158: 148 | H158: 1 | I158: 28862.78991 | J158: 744 | K158: 0
A159: 149 | B159: 80331.44353 | C159: 384 | D159: 0 | G159: 149 | H159: 1 | I159: 141298.9042 | J159: 183 | K159: 1
A160: 150 | B160: 310315.4504 | C160: 51 | D160: 0 | G160: 150 | H160: 1 | I160: 27057.96812 | J160: 770 | K160: 0
A161: 151 | B161: 177401.709 | C161: 138 | D161: 0 | G161: 151 | H161: 1 | I161: 384073.4713 | J161: 25 | K161: 1
A162: 152 | B162: 134034.0779 | C162: 197 | D162: 0 | G162: 152 | H162: 1 | I162: 86436.9769 | J162: 315 | K162: 0
A163: 153 | B163: 59240.97476 | C163: 509 | D163: 0 | G163: 153 | H163: 1 | I163: 49673.65734 | J163: 544 | K163: 0
A164: 154 | B164: 270262.8231 | C164: 71 | D164: 0 | G164: 154 | H164: 1 | I164: 118641.9091 | J164: 227 | K164: 0
A165: 155 | B165: 140097.0501 | C165: 189 | D165: 0 | G165: 155 | H165: 1 | I165: 6718.84802 | J165: 986 | K165: 0
A166: 156 | B166: 424188.496 | C166: 21 | D166: 0 | G166: 156 | H166: 1 | I166: 34822.92681 | J166: 689 | K166: 0
A167: 157 | B167: 91747.73015 | C167: 336 | D167: 0 | G167: 157 | H167: 1 | I167: 57214.00664 | J167: 496 | K167: 0
A168: 158 | B168: 117358.2603 | C168: 249 | D168: 0 | G168: 158 | H168: 1 | I168: 51035.273 | J168: 534 | K168: 0
A169: 159 | B169: 78157.13625 | C169: 401 | D169: 0 | G169: 159 | H169: 1 | I169: 68149.66338 | J169: 424 | K169: 0
A170: 160 | B170: 22592.91749 | C170: 858 | D170: 1 | G170: 160 | H170: 1 | I170: 20337.78276 | J170: 851 | K170: 0 | N170: 0
A171: 161 | B171: 50763.79871 | C171: 573 | D171: 0 | G171: 161 | H171: 1 | I171: 41951.33632 | J171: 618 | K171: 0
A172: 162 | B172: 38539.36681 | C172: 689 | D172: 0 | G172: 162 | H172: 1 | I172: 42452.60457 | J172: 611 | K172: 0
A173: 163 | B173: 111698.9 | C173: 266 | D173: 0 | G173: 163 | H173: 1 | I173: 250242.6194 | J173: 67 | K173: 1
A174: 164 | B174: 18871.70584 | C174: 889 | D174: 1 | G174: 164 | H174: 1 | I174: 7686.272365 | J174: 980 | K174: 0 | N174: 0
A175: 165 | B175: 32209.61422 | C175: 751 | D175: 0 | G175: 165 | H175: 1 | I175: 64612.87198 | J175: 452 | K175: 0
A176: 166 | B176: 24851.63903 | C176: 828 | D176: 1 | G176: 166 | H176: 1 | I176: 30364.71006 | J176: 731 | K176: 0 | N176: 0
A177: 167 | B177: 148078.2066 | C177: 177 | D177: 0 | G177: 167 | H177: 1 | I177: 45541.84344 | J177: 576 | K177: 0
A178: 168 | B178: 231447.5451 | C178: 92 | D178: 0 | G178: 168 | H178: 1 | I178: 14076.77373 | J178: 922 | K178: 0
A179: 169 | B179: 15553.71978 | C179: 911 | D179: 1 | G179: 169 | H179: 1 | I179: 81095.12914 | J179: 344 | K179: 0 | N179: 0
A180: 170 | B180: 56250.92828 | C180: 533 | D180: 0 | G180: 170 | H180: 1 | I180: 17062.4789 | J180: 884 | K180: 0
A181: 171 | B181: 76469.60227 | C181: 411 | D181: 0 | G181: 171 | H181: 1 | I181: 28251.21731 | J181: 756 | K181: 0
A182: 172 | B182: 46981.39125 | C182: 603 | D182: 0 | G182: 172 | H182: 1 | I182: 24569.1704 | J182: 799 | K182: 0
A183: 173 | B183: 39283.02449 | C183: 681 | D183: 0 | G183: 173 | H183: 1 | I183: 37201.59081 | J183: 663 | K183: 0
A184: 174 | B184: 126588.1982 | C184: 217 | D184: 0 | G184: 174 | H184: 1 | I184: 24722.09287 | J184: 797 | K184: 0
A185: 175 | B185: 188019.6267 | C185: 125 | D185: 0 | G185: 175 | H185: 1 | I185: 66962.38888 | J185: 431 | K185: 0
A186: 176 | B186: 155659.3421 | C186: 164 | D186: 0 | G186: 176 | H186: 1 | I186: 23551.00154 | J186: 813 | K186: 0
A187: 177 | B187: 223314.8601 | C187: 95 | D187: 0 | G187: 177 | H187: 1 | I187: 51066.99887 | J187: 533 | K187: 0
A188: 178 | B188: 55628.48054 | C188: 537 | D188: 0 | G188: 178 | H188: 1 | I188: 54168.7418 | J188: 509 | K188: 0
A189: 179 | B189: 75022.91645 | C189: 417 | D189: 0 | G189: 179 | H189: 1 | I189: 228490.6842 | J189: 77 | K189: 1
A190: 180 | B190: 89981.22404 | C190: 345 | D190: 0 | G190: 180 | H190: 1 | I190: 36687.58876 | J190: 670 | K190: 0
A191: 181 | B191: 467899.7048 | C191: 14 | D191: 0 | G191: 181 | H191: 1 | I191: 27455.11189 | J191: 766 | K191: 0
A192: 182 | B192: 86807.94033 | C192: 355 | D192: 0 | G192: 182 | H192: 1 | I192: 71717.63649 | J192: 397 | K192: 0
A193: 183 | B193: 11916.91776 | C193: 949 | D193: 1 | G193: 183 | H193: 1 | I193: 46165.74967 | J193: 567 | K193: 0 | N193: 0
A194: 184 | B194: 57908.76415 | C194: 519 | D194: 0 | G194: 184 | H194: 1 | I194: 68258.984 | J194: 422 | K194: 0
A195: 185 | B195: 39926.76422 | C195: 677 | D195: 0 | G195: 185 | H195: 1 | I195: 111663.39 | J195: 244 | K195: 0
A196: 186 | B196: 58198.76184 | C196: 517 | D196: 0 | G196: 186 | H196: 1 | I196: 198884.2812 | J196: 98 | K196: 1
A197: 187 | B197: 6001.536564 | C197: 992 | D197: 1 | G197: 187 | H197: 1 | I197: 14607.16153 | J197: 917 | K197: 0 | N197: 0
A198: 188 | B198: 100381.944 | C198: 310 | D198: 0 | G198: 188 | H198: 1 | I198: 34708.98967 | J198: 690 | K198: 0
A199: 189 | B199: 4968.204125 | C199: 997 | D199: 1 | G199: 189 | H199: 1 | I199: 711876.3382 | J199: 4 | K199: 1 | N199: 1
A200: 190 | B200: 51905.52426 | C200: 564 | D200: 0 | G200: 190 | H200: 1 | I200: 16550.31904 | J200: 892 | K200: 0
A201: 191 | B201: 16744.52116 | C201: 900 | D201: 1 | G201: 191 | H201: 1 | I201: 118491.119 | J201: 228 | K201: 0 | N201: 0
... 809 more rows

Sheet CZ (hidden)
A1: TABLE III, p. 1549, from Chetty, et al. (2014) --> | C1: https://academic.oup.com/qje/article/129/4/1553/1853754 | F1: =SUMPRODUCT(B5:B54,C5:C54)/SUM(B5:B54) -> 8.227719353 | G1: weighted average bottom-to-top transition probability for these 50 CZs | Q1: Below are all 751 CZs -- sort by your state to see how a CZ near you is doing.
A2: Intergenerational Mobility in the 50 Largest Commuting Zones (CZ) | Q2: Source is Online Data Table 5 sheet from online-data-tables-4.xlsx file from --> | V2: https://opportunityinsights.org/paper/land-of-opportunity/
A3: (Some columns omitted to focus on bottom-to-top transition probability in column C and sorted by column C)
A4: CZ name | B4: Population | C4: P(child in Q5 | parent in Q1) | Q4: CZ | R4: CZ Name | S4: State | T4: Children in 1980-82 Cohorts | U4: P(Child in Q5 | Parent in Q1), 80-85 Cohort
A5: San Jose, CA | B5: 2393183 | C5: 12.9 | Q5: 100 | R5: Johnson City | S5: TN | T5: 18494 | U5: 0.06219881028 | V5: =MIN(U:U) -> 0.02210159041 | W5: min | X5: Greenville, MS
A6: San Francisco, CA | B6: 4642561 | C6: 12.2 | E6: Scroll down to see all 50 of the largest Commuting Zones, then scroll back up here and read the text below: | Q6: 200 | R6: Morristown | S6: TN | T6: 7760 | U6: 0.05365194008 | V6: =MAX(U:U) -> 0.4696969688 | W6: max | X6: Bowman, ND
A7: Washington DC | B7: 4632415 | C7: 11 | Q7: 301 | R7: Middlesborough | S7: TN | T7: 2217 | U7: 0.07263513654 | X7: Notice small sample size,
A8: Seattle, WA | B8: 3775744 | C8: 10.9 | E8: One thing to consider before you answer the final, challenging question below: | Q8: 302 | R8: Knoxville | S8: TN | T8: 23805 | U8: 0.05628121272 | X8: which means really HIGH
A9: Salt Lake City, UT | B9: 1426729 | C9: 10.8 | E9: Chetty measures mobility from the child's point of view. | Q9: 401 | R9: Winston-Salem | S9: NC | T9: 16103 | U9: 0.04480079189 | X9: sampling variability.
A10: Boston, MA | B10: 4974945 | C10: 10.5 | E10: The bottom-to-top transition probability is for a poor child who becomes rich as an adult. | Q10: 402 | R10: Martinsville | S10: VA | T10: 3269 | U10: 0.05183585361 | X10: Estimates not reliable.
A11: New York, NY | B11: 11781395 | C11: 10.5 | E11: This also applies to geographic mobility -- it is based on where the child was born and raised. | Q11: 500 | R11: Greensboro | S11: NC | T11: 33788 | U11: 0.04739693925
A12: San Diego, CA | B12: 2813833 | C12: 10.4 | E12: Where a child grows up does not necessarily mean they live there as adults. | Q12: 601 | R12: North Wilkesboro | S12: NC | T12: 2958 | U12: 0.0516631268
A13: Newark, NJ | B13: 5822286 | C13: 10.2 | E13: In fact, 38% of the children live in a different CZ as adults (Chetty, et al. (2014), p. 1589). | Q13: 602 | R13: Galax | S13: VA | T13: 1877 | U13: 0.0795698911
A14: Manchester, NH | B14: 1193391 | C14: 10 | E14: The bottom-to-top transition probability for a commuting zone tells you the following: | Q14: 700 | R14: Spartanburg | S14: SC | T14: 12280 | U14: 0.0431111902
A15: Sacramento, CA | B15: 2570609 | C15: 9.7 | E15: the fraction of people who grew up poor in that CZ yet are in the top quintile as an adult (regardless of where they live). | Q15: 800 | R15: Gastonia | S15: NC | T15: 14684 | U15: 0.05152730644
A16: Los Angeles, CA | B16: 16393360 | C16: 9.6 | Q16: 900 | R16: Charlotte | S16: NC | T16: 47059 | U16: 0.04378523678
A17: Pittsburgh, PA | B17: 2561364 | C17: 9.5 | E17: So, Manchester's value of 10 means that 10% of children raised in Manchester by poor parents are now rich adults, | Q17: 1001 | R17: Boone | S17: NC | T17: 2056 | U17: 0.0560836494
A18: Houston, TX | B18: 4504013 | C18: 9.3 | E18: but they do not have to be living in Manchester as adults. | Q18: 1002 | R18: Morganton | S18: NC | T18: 5190 | U18: 0.05444646254
A19: Portland, OR | B19: 1842889 | C19: 9.3 | Q19: 1100 | R19: Hickory | S19: NC | T19: 12536 | U19: 0.04496967047
A20: Fort Worth, TX | B20: 1804370 | C20: 9.1 | E20: Chetty says this table is the key result of all of this work. Now that you know what a bottom-to-top transition probability is, | Q20: 1201 | R20: Franklin | S20: NC | T20: 1305 | U20: 0.05666156113
A21: Denver, CO | B21: 2449044 | C21: 8.7 | E21: you can look up your location in the CZs to the right and see how it is doing on this measure of intergenerational mobility. | Q21: 1202 | R21: Sylva | S21: NC | T21: 1700 | U21: 0.06066536158
A22: Minneapolis, MN | B22: 2904389 | C22: 8.5 | Q22: 1203 | R22: Asheville | S22: NC | T22: 12197 | U22: 0.06338027865
A23: Providence, RI | B23: 1582997 | C23: 8.2 | E23: When you are finished exploring, can you answer the last question? | Q23: 1204 | R23: Andrews | S23: NC | T23: 1833 | U23: 0.0804810375
A24: Las Vegas, NV | B24: 1568418 | C24: 8 | Q24: 1301 | R24: Bennettsville | S24: SC | T24: 3040 | U24: 0.02979684062
A25: Bridgeport, CT | B25: 3405565 | C25: 7.9 | E25: Q10) What do the bottom-to-top transition probabilities in different commuting zones tell us? | Q25: 1302 | R25: Florence | S25: SC | T25: 21210 | U25: 0.03567820042
A26: Fresno, CA | B26: 1419998 | C26: 7.5 | E26: Again, Chetty and his co-authors say this is the most important finding in their work. What could it be? | Q26: 1400 | R26: Fayetteville | S26: NC | T26: 24241 | U26: 0.0382470116 | AK26: 1400 | AL26: Fayetteville | AM26: NC | AN26: 24241 | AO26: 0.0382470116
A27: Phoenix, AZ | B27: 3303211 | C27: 7.5 | Q27: 1500 | R27: Wilmington | S27: NC | T27: 11650 | U27: 0.04180339724
A28: Philadelphia, PA | B28: 5602247 | C28: 7.4 | Q28: 1600 | R28: Wilson | S28: NC | T28: 8483 | U28: 0.03195837885
A29: Miami, FL | B29: 3955969 | C29: 7.3 | Q29: 1701 | R29: Raleigh | S29: NC | T29: 41170 | U29: 0.0499866344
A30: Dallas, TX | B30: 3405666 | C30: 7.1 | Q30: 1702 | R30: Henderson | S30: NC | T30: 2303 | U30: 0.03360881656
A31: Kansas City, MI | B31: 1762873 | C31: 7 | Q31: 1800 | R31: Goldsboro | S31: NC | T31: 7655 | U31: 0.04535495117
A32: Austin, TX | B32: 1298076 | C32: 6.9 | Q32: 1900 | R32: Jacksonville | S32: NC | T32: 18199 | U32: 0.04700724036
A33: Buffalo, NY | B33: 2369699 | C33: 6.7 | Q33: 2000 | R33: Virginia Beach | S33: VA | T33: 41448 | U33: 0.05355094373
A34: Chicago, IL | B34: 8183799 | C34: 6.5 | Q34: 2100 | R34: Washington | S34: NC | T34: 4654 | U34: 0.04978847876
A35: San Antonio, TX | B35: 1724863 | C35: 6.4 | Q35: 2200 | R35: South Boston | S35: VA | T35: 5459 | U35: 0.04904875159
A36: Grand Rapids, Michigan | B36: 1286045 | C36: 6.4 | Q36: 2300 | R36: Lynchburg | S36: VA | T36: 7681 | U36: 0.06735914201
A37: Baltimore, MD | B37: 2512431 | C37: 6.4 | Q37: 2400 | R37: Richmond | S37: VA | T37: 36657 | U37: 0.05476467311
A38: Port St. Lucie, FL | B38: 1533306 | C38: 6.2 | Q38: 2500 | R38: Newport News | S38: VA | T38: 20764 | U38: 0.05136576295
A39: Tampa, FL | B39: 2395997 | C39: 6 | Q39: 2600 | R39: Roanoke Rapids | S39: NC | T39: 5719 | U39: 0.03275290132
A40: Orlando, FL | B40: 1697906 | C40: 5.8 | Q40: 2700 | R40: Gulfport | S40: MS | T40: 17850 | U40: 0.06710702926
A41: Nashville, TN | B41: 1246338 | C41: 5.7 | Q41: 2800 | R41: Laurel | S41: MS | T41: 4923 | U41: 0.06920705736
A42: Detroit, MI | B42: 5327827 | C42: 5.5 | Q42: 2900 | R42: Hattiesburg | S42: MS | T42: 6668 | U42: 0.0605108887
A43: St. Louis, MO | B43: 2325609 | C43: 5.1 | Q43: 3001 | R43: Kosciusko | S43: MS | T43: 2111 | U43: 0.03548966721
A44: Cleveland, OH | B44: 2661167 | C44: 5.1 | Q44: 3002 | R44: Yazoo City | S44: MS | T44: 1967 | U44: 0.02478952333
A45: New Orleans, LA | B45: 1381652 | C45: 5.1 | Q45: 3003 | R45: Jackson | S45: MS | T45: 23204 | U45: 0.03753404692
A46: Cincinnati, OH | B46: 1954800 | C46: 5.1 | Q46: 3101 | R46: McComb | S46: MS | T46: 4816 | U46: 0.06252972037
A47: Raleigh, NC | B47: 1412127 | C47: 5 | Q47: 3102 | R47: Brookhaven | S47: MS | T47: 2149 | U47: 0.06429548562
A48: Dayton, OH | B48: 1179009 | C48: 4.9 | Q48: 3201 | R48: Jena | S48: LA | T48: 1189 | U48: 0.1264222562
A49: Columbus, OH | B49: 1663807 | C49: 4.9 | Q49: 3202 | R49: Natchez | S49: MS | T49: 3351 | U49: 0.04874602705
A50: Jacksonville, FL | B50: 1176696 | C50: 4.9 | Q50: 3203 | R50: Vicksburg | S50: MS | T50: 3946 | U50: 0.03117820807
A51: Indianapolis, IN | B51: 1507346 | C51: 4.9 | Q51: 3300 | R51: New Orleans | S51: LA | T51: 57774 | U51: 0.05121286586
A52: Milwaukee, WI | B52: 1660659 | C52: 4.5 | Q52: 3400 | R52: Houma | S52: LA | T52: 12869 | U52: 0.1134691536
A53: Atlanta, GA | B53: 3798017 | C53: 4.5 | Q53: 3500 | R53: Baton Rouge | S53: LA | T53: 34182 | U53: 0.06039689481
A54: Charlotte, NC | B54: 1423942 | C54: 4.4 | Q54: 3600 | R54: Alexandria | S54: LA | T54: 8393 | U54: 0.0672128424
Q55: 3700 | R55: Lake Charles | S55: LA | T55: 14710 | U55: 0.09711845964
Q56: 3800 | R56: Lafayette | S56: LA | T56: 24639 | U56: 0.09505353868
Q57: 3901 | R57: Monroe | S57: LA | T57: 11387 | U57: 0.0551850982
Q58: 3902 | R58: Lake Providence | S58: LA | T58: 1045 | U58: 0.05730659142
Q59: 4001 | R59: Magnolia | S59: AR | T59: 1451 | U59: 0.06038894504
Q60: 4002 | R60: Shreveport | S60: LA | T60: 21664 | U60: 0.05271850526
Q61: 4003 | R61: Ruston | S61: LA | T61: 3003 | U61: 0.06882792711
Q62: 4004 | R62: Many | S62: LA | T62: 982 | U62: 0.1516079605
Q63: 4101 | R63: Crossett | S63: AR | T63: 1108 | U63: 0.04153846204
Q64: 4102 | R64: Pine Bluff | S64: AR | T64: 7303 | U64: 0.04282982647
Q65: 4103 | R65: El Dorado | S65: AR | T65: 3942 | U65: 0.05663304776
Q66: 4200 | R66: Little Rock | S66: AR | T66: 24072 | U66: 0.05356171727
Q67: 4301 | R67: Stuttgart | S67: AR | T67: 1771 | U67: 0.05396290123
Q68: 4302 | R68: Searcy | S68: AR | T68: 3694 | U68: 0.08910454065
Q69: 4401 | R69: London | S69: KY | T69: 4974 | U69: 0.06389530748
Q70: 4402 | R70: Richmond | S70: KY | T70: 3623 | U70: 0.0590868406
Q71: 4501 | R71: West Liberty | S71: KY | T71: 1613 | U71: 0.06843853742
Q72: 4502 | R72: Hazard | S72: KY | T72: 4355 | U72: 0.1306593716
Q73: 4601 | R73: Campbellsville | S73: KY | T73: 2821 | U73: 0.07142857462
Q74: 4602 | R74: Somerset | S74: KY | T74: 4229 | U74: 0.06271450967
Q75: 4701 | R75: Greenwood | S75: MS | T75: 3909 | U75: 0.03311065957
Q76: 4702 | R76: Clarksdale | S76: MS | T76: 6240 | U76: 0.02713250369
Q77: 4800 | R77: Greenville | S77: MS | T77: 7754 | U77: 0.02210159041
Q78: 4901 | R78: Jackson | S78: TN | T78: 7572 | U78: 0.0474881269
Q79: 4902 | R79: Dyersburg | S79: TN | T79: 3665 | U79: 0.0431115292
Q80: 4903 | R80: Lexington | S80: TN | T80: 1627 | U80: 0.08165997267
Q81: 5000 | R81: Tupelo | S81: MS | T81: 8753 | U81: 0.04357341677
Q82: 5100 | R82: Corinth | S82: MS | T82: 4473 | U82: 0.06576324999
Q83: 5201 | R83: New Albany | S83: MS | T83: 2128 | U83: 0.05462555215
Q84: 5202 | R84: Memphis | S84: TN | T84: 46897 | U84: 0.02818273939
Q85: 5300 | R85: West Memphis | S85: AR | T85: 6390 | U85: 0.03201407194
Q86: 5401 | R86: Bowling Green | S86: KY | T86: 5908 | U86: 0.06426735222
Q87: 5402 | R87: Glasgow | S87: KY | T87: 3250 | U87: 0.06135576591
Q88: 5500 | R88: Columbia | S88: TN | T88: 6587 | U88: 0.05701926723
Q89: 5600 | R89: Nashville | S89: TN | T89: 42917 | U89: 0.05726344883
Q90: 5700 | R90: Tullahoma | S90: TN | T90: 4829 | U90: 0.06144742668
Q91: 5800 | R91: Dickson | S91: TN | T91: 5373 | U91: 0.0715361461
Q92: 5900 | R92: Clarksville | S92: TN | T92: 8506 | U92: 0.05996884778
Q93: 6000 | R93: Huntsville | S93: AL | T93: 18969 | U93: 0.05667615309
Q94: 6100 | R94: Gadsden | S94: AL | T94: 11274 | U94: 0.07105666399
Q95: 6200 | R95: Florence | S95: AL | T95: 8496 | U95: 0.07106715441
Q96: 6301 | R96: McMinnville | S96: TN | T96: 3101 | U96: 0.05722543225
Q97: 6302 | R97: Cookeville | S97: TN | T97: 3328 | U97: 0.0720288083
Q98: 6401 | R98: Chattanooga | S98: TN | T98: 17775 | U98: 0.05705306306
Q99: 6402 | R99: Crossville | S99: TN | T99: 3331 | U99: 0.07084468752
Q100: 6501 | R100: Ellijay | S100: GA | T100: 1295 | U100: 0.06496519595
Q101: 6502 | R101: Cleveland | S101: TN | T101: 7045 | U101: 0.06682297587
Q102: 6600 | R102: Rome | S102: GA | T102: 14982 | U102: 0.04846213385
Q103: 6700 | R103: Tampa | S103: FL | T103: 64012 | U103: 0.06012842804
Q104: 6800 | R104: Lakeland | S104: FL | T104: 19813 | U104: 0.05205849558
Q105: 6900 | R105: Sarasota | S105: FL | T105: 18433 | U105: 0.06831566244
Q106: 7000 | R106: Miami | S106: FL | T106: 108435 | U106: 0.07296608388
Q107: 7100 | R107: Port St. Lucie | S107: FL | T107: 40539 | U107: 0.06243037805
Q108: 7200 | R108: Cape Coral | S108: FL | T108: 15243 | U108: 0.06019151956
Q109: 7300 | R109: Palm Bay | S109: FL | T109: 18277 | U109: 0.06588920951
Q110: 7400 | R110: Orlando | S110: FL | T110: 53941 | U110: 0.05781660974
Q111: 7500 | R111: Deltona | S111: FL | T111: 16478 | U111: 0.05877891555
Q112: 7600 | R112: Jacksonville | S112: FL | T112: 43299 | U112: 0.04921315983
Q113: 7700 | R113: Lake City | S113: FL | T113: 5557 | U113: 0.04953945801
Q114: 7800 | R114: Ocala | S114: FL | T114: 10709 | U114: 0.05642049387
Q115: 7900 | R115: Gainesville | S115: FL | T115: 10384 | U115: 0.04967465624
Q116: 8000 | R116: Sumter | S116: SC | T116: 8987 | U116: 0.03493670747
Q117: 8100 | R117: Columbia | S117: SC | T117: 26624 | U117: 0.0372132659
Q118: 8201 | R118: Barnwell | S118: SC | T118: 3251 | U118: 0.03537214547
Q119: 8202 | R119: Charleston | S119: SC | T119: 21271 | U119: 0.04446923733
Q120: 8300 | R120: Greenville | S120: SC | T120: 31074 | U120: 0.04698574916
Q121: 8401 | R121: Aiken | S121: GA | T121: 21868 | U121: 0.04104875028
Q122: 8402 | R122: Washington | S122: GA | T122: 1504 | U122: 0.03114478104
Q123: 8501 | R123: Fitzgerald | S123: GA | T123: 1207 | U123: 0.0359147042
Q124: 8502 | R124: Cordele | S124: GA | T124: 2048 | U124: 0.03304903954
Q125: 8503 | R125: Valdosta | S125: GA | T125: 9271 | U125: 0.03184901178
Q126: 8601 | R126: Waycross | S126: GA | T126: 4675 | U126: 0.0445917435
Q127: 8602 | R127: Brunswick | S127: GA | T127: 3375 | U127: 0.04738267139
Q128: 8701 | R128: Hinesville | S128: GA | T128: 4748 | U128: 0.04894179851
Q129: 8702 | R129: Statesboro | S129: GA | T129: 3952 | U129: 0.0388888903
Q130: 8800 | R130: Savannah | S130: GA | T130: 15189 | U130: 0.04096709192
Q131: 8900 | R131: Macon | S131: GA | T131: 15461 | U131: 0.03261117265
Q132: 9001 | R132: Vidalia | S132: GA | T132: 4268 | U132: 0.04806529731
Q133: 9002 | R133: Milledgeville | S133: GA | T133: 3058 | U133: 0.0322265625
Q134: 9003 | R134: Dublin | S134: GA | T134: 3178 | U134: 0.0320269689
Q135: 9100 | R135: Atlanta | S135: GA | T135: 98341 | U135: 0.04532973468
Q136: 9200 | R136: Griffin | S136: GA | T136: 5217 | U136: 0.0402813293
Q137: 9301 | R137: Winder | S137: GA | T137: 6172 | U137: 0.03795066476
Q138: 9302 | R138: Toccoa | S138: GA | T138: 3216 | U138: 0.04166666791
Q139: 9400 | R139: Gainesville | S139: GA | T139: 8566 | U139: 0.06971570104
Q140: 9500 | R140: Talladega | S140: AL | T140: 5584 | U140: 0.0449032262
Q141: 9600 | R141: LaGrange | S141: GA | T141: 18078 | U141: 0.05234302208
Q142: 9701 | R142: Columbus | S142: GA | T142: 12119 | U142: 0.03496033326
Q143: 9702 | R143: Americus | S143: GA | T143: 2362 | U143: 0.0344074294
Q144: 9800 | R144: Auburn | S144: AL | T144: 4611 | U144: 0.03426480293
Q145: 9900 | R145: Tallahassee | S145: FL | T145: 14988 | U145: 0.04702581465
Q146: 10000 | R146: Panama City | S146: FL | T146: 6274 | U146: 0.0581574887
Q147: 10101 | R147: Bainbridge | S147: GA | T147: 1860 | U147: 0.03933333233
Q148: 10102 | R148: Thomasville | S148: GA | T148: 2888 | U148: 0.03288619593
Q149: 10200 | R149: Albany | S149: GA | T149: 7924 | U149: 0.02763268724
Q150: 10301 | R150: Eufaula | S150: GA | T150: 2633 | U150: 0.02295492403
Q151: 10302 | R151: Dothan | S151: AL | T151: 8993 | U151: 0.0582822077
Q152: 10400 | R152: Meridian | S152: MS | T152: 6696 | U152: 0.04677287489
Q153: 10501 | R153: Columbus | S153: MS | T153: 4194 | U153: 0.03602785245
Q154: 10502 | R154: Starkville | S154: MS | T154: 4071 | U154: 0.03993610293
Q155: 10600 | R155: Jasper | S155: AL | T155: 6330 | U155: 0.08658836037
Q156: 10700 | R156: Birmingham | S156: AL | T156: 38677 | U156: 0.05043183267
Q157: 10801 | R157: Tuscaloosa | S157: AL | T157: 10534 | U157: 0.04032257944
Q158: 10802 | R158: Demopolis | S158: AL | T158: 2834 | U158: 0.04238304496
Q159: 10900 | R159: Pensacola | S159: FL | T159: 22465 | U159: 0.06120634079
Q160: 11001 | R160: Mobile | S160: AL | T160: 24689 | U160: 0.05139800161
Q161: 11002 | R161: Atmore | S161: AL | T161: 3236 | U161: 0.04778761044
Q162: 11101 | R162: Montgomery | S162: AL | T162: 15241 | U162: 0.03303737193
Q163: 11102 | R163: Troy | S163: AL | T163: 3199 | U163: 0.06798867136
Q164: 11201 | R164: Bluefield | S164: VA | T164: 6948 | U164: 0.1107491851
Q165: 11202 | R165: Welch | S165: WV | T165: 1934 | U165: 0.1599147171
Q166: 11203 | R166: Big Stone Gap | S166: VA | T166: 3172 | U166: 0.1036082506
Q167: 11301 | R167: Fredericksburg | S167: VA | T167: 9209 | U167: 0.09458128363
Q168: 11302 | R168: Baltimore | S168: MD | T168: 85143 | U168: 0.06400739402
Q169: 11303 | R169: Colonial Beach | S169: VA | T169: 1935 | U169: 0.0654515326
Q170: 11304 | R170: Washington DC | S170: DC | T170: 143170 | U170: 0.1098117381
Q171: 11401 | R171: Marquette | S171: MI | T171: 5035 | U171: 0.09656513482
Q172: 11402 | R172: Marinette | S172: MI | T172: 5044 | U172: 0.1027253643
Q173: 11403 | R173: Sault Ste. Marie | S173: MI | T173: 2048 | U173: 0.09918319434
Q174: 11500 | R174: Jackson | S174: MI | T174: 12082 | U174: 0.06308878213
Q175: 11600 | R175: Detroit | S175: MI | T175: 189275 | U175: 0.05459276214
Q176: 11700 | R176: Lansing | S176: MI | T176: 17160 | U176: 0.06411673874
Q177: 11800 | R177: Mount Pleasant | S177: MI | T177: 4873 | U177: 0.06461538374
Q178: 11900 | R178: Saginaw | S178: MI | T178: 21882 | U178: 0.06440808624
Q179: 12001 | R179: Big Rapids | S179: MI | T179: 4991 | U179: 0.07430791855
Q180: 12002 | R180: Ludington | S180: MI | T180: 2099 | U180: 0.07607361674
Q181: 12100 | R181: Kalamazoo | S181: MI | T181: 19114 | U181: 0.05262313411
Q182: 12200 | R182: Grand Rapids | S182: MI | T182: 52268 | U182: 0.06372916698
Q183: 12301 | R183: Traverse City | S183: MI | T183: 5876 | U183: 0.07424867153
Q184: 12302 | R184: Petoskey | S184: MI | T184: 3196 | U184: 0.07655502111
Q185: 12401 | R185: Alpena | S185: MI | T185: 3411 | U185: 0.07864406705
Q186: 12402 | R186: Grayling charter | S186: MI | T186: 4114 | U186: 0.0748898685
Q187: 12501 | R187: Dayton | S187: OH | T187: 46426 | U187: 0.04881450534
Q188: 12502 | R188: Washington Court House | S188: OH | T188: 4653 | U188: 0.05333333462
Q189: 12600 | R189: Wayne | S189: IN | T189: 4226 | U189: 0.05398110673
Q190: 12701 | R190: Cincinnati | S190: OH | T190: 76510 | U190: 0.05121194944
Q191: 12702 | R191: Maysville | S191: KY | T191: 2074 | U191: 0.05284553021
Q192: 12800 | R192: Washington | S192: IN | T192: 5764 | U192: 0.1065877154
Q193: 12901 | R193: Lexington-Fayette | S193: KY | T193: 17359 | U193: 0.05374499783
Q194: 12902 | R194: Mount Sterling | S194: KY | T194: 1380 | U194: 0.0622914359
Q195: 12903 | R195: Danville | S195: KY | T195: 3129 | U195: 0.07274968922
Q196: 13000 | R196: Elizabethtown | S196: KY | T196: 7342 | U196: 0.08159894496
Q197: 13101 | R197: Louisville | S197: KY | T197: 40846 | U197: 0.05199548602
Q198: 13102 | R198: Madison | S198: IN | T198: 1951 | U198: 0.09382715821
Q199: 13103 | R199: Bardstown | S199: KY | T199: 2820 | U199: 0.07621671259
Q200: 13200 | R200: Owensboro | S200: KY | T200: 7188 | U200: 0.09230256826
... 545 more rows

Sheet TheEnd (hidden)
A1: You've reached the end!
A3: There are two key takeaways from the work you have done here:
A4: 1) The United States has a reputation as the land of opportunity, but a 7.5% bottom-to-top transition probability is not good.
B5: If 20% is ideal, we are only a third of the way there!
B6: Also, other countries (for example, England, Denmark, and Canada) have higher bottom-to-top transition probabilities.
B7: We need to do more to make the American dream a reality in today's America.
A8: 2) There is tremendous geographical variation in the bottom-to-top transition probability for specific geographic areas in the United States.
B9: Silicon Valley and Salt Lake City intergenerational mobility is comparable to Canada's -- that is the good news.
B10: Some places in the Deep South, like Atlanta and Charlotte, have really low bottom-to-top transition probabilities -- that is depressingly bad news.
A11: This second point is what Chetty and his co-authors say is their most important finding in the conclusion of their paper:
A12: "The main lesson of our analysis is that intergenerational mobility is a local problem . . . Going forward, a key question is why some areas of the United States generate higher rates of mobility than others."
A13: The sources below will get you started if you want to see what are potential causes of the incredible variation in local mobility rates.
A15: Chetty is not the first or only researcher to estimate a transition probability matrix.
A16: Here is a more-recent one (2020) from Michael Strain:
B38: Source: | C38: https://www.discoursemagazine.com/culture-and-society/2020/04/27/america-is-an-upwardly-mobile-society/
A40: As you can see (now that you know how to read and interpret transition probabilities), these results are close to Chetty's -- in fact, the bottom-to-top transition probability is 6.6%, a bit lower than Chetty's 7.5%
A41: Strain, however, disagrees with Chetty's conclusion about opportunity in the US. A big reason for the difference in interpretation of the results revolves around absolute versus relative mobility.
A42: Chetty's analysis ranks parent and child incomes. This relative measure of economic success does not capture the fact that children have higher incomes than their parents.
A43: So, even though children of poor parents cannot crack the top 20% against their peers, they are still better off, in an absolute sense, than their parents.
A45: There are other critics and more complicated issues involving correctly measuring incomes and properties of statistics based on ranking.
A46: Intergenerational mobility is an area of active, intense research.
A48: If you want to learn more, you can, of course, find many papers by Chetty and other mobility researchers on the web. The link below is a video of Chetty presenting at the London School of Economics.
A49: In 2016, he gave three separate talks as part of that year's Lionel Robbins Memorial Lectures. The link below is the first one and you should see the other two in the thumbnails on the YouTube page:
B50: https://www.youtube.com/watch?v=Gzo65lP7yOk&list=PLClkG6UN6VxziYv8sz1YhjF0ft6MOFr-k&t=83s&ab_channel=LSE
A51: In these videos, Chetty is presenting the results of the work that you have completed in this workbook so you will be able to follow a lot of what he says and displays. He also goes way beyond what you have learned here.
A53: One area we have completely ignored is inheritance taxes. This would, of course, increase mobility (since rich parents cannot pass all of the wealth to their children), but the actual tax rate and exemption (amount untaxed) matter.
A54: For 2023, in the United States, the gift and estate tax exemption is $12.92 million ($25.84 million per married couple).
A56: Another source for further study is the Opportunity Insights web site:
B57: https://opportunityinsights.org/
A58: You will find Chetty's work here and you can explore other questions about mobility and inequality.
A60: There are many directions to go in the study of mobility, but a recent Freakonomics podcast (episode 538, April 5, 2023) is worth a listen:
B61: https://freakonomics.com/podcast/a-radically-simple-way-to-boost-a-neighborhood/
A62: Nathanial Hendren, one of Chetty's co-authors, discusses investing in a community instead of in people. After all, if intergenerational mobility is a local phenomenon (with tremendous variation across communities),
A63: policymakers should pay close attention to where people live and work. We need to figure out exactly why San Francisco and Salt Lake City have so much more mobility than Atlanta and Charlotte to improve
A64: the bottom-to-top transition probabilities of low-mobility places.
A65: No one knows the answers -- perhaps you can work on it and make a contribution!

Sheet GrammEarly (hidden)
A1: https://www.wsj.com/public/resources/documents/YGeUx2zYVBnuisvzTtAo-WSJNewsPaper-1-7-2023.pdf | O1: Some snippets of ideas for further engagement in the study of mobility.
A2: Jan 7, 2023 WSJ
N11: So we take parental income and inflation-adjust it and create quintiles.
N12: Then we slot in bottom quintile of children's income and see where they are.
N13: Only 28% are in the bottom and 26% are in the top.
O33: p. 14
O34: https://archive.org/details/newmarketsnewopp00nanc/page/14/mode/2up?view=theater

Sheet TranMatrixCalibration (hidden)
A1: income | B1: inherit | C1: % | M1: Trying to get a %inherit function that will produce the transition matrix.
A2: 0 | B2: 0 | C2: 0 | M2: Something like the approach on this sheet does not work.
A3: 25000 | B3: 500 | C3: =B3/A3 -> 0.02
A4: 50000 | B4: 2500 | C4: 0.05 | M4: Frank Howland shared a model with me that works!
A5: 75000 | B5: 25000 | C5: 0.3333333333 | M5: Thanks, Frank!
A6: 100000 | B6: 75000 | C6: 0.75 | M6: Unhide the LNInherit sheet to see it.
A7: 125000 | B7: 120000 | C7: 0.96
A8: 150000 | B8: 150000 | C8: 1
A9: 200000 | B9: 200000 | C9: 1
B13: 1.2
A14: income | B14: inherit | C14: %
A15: 0 | B15: 0 | C15: 0
A16: 25000 | B16: 0 | C16: =B16/A16 -> 0
A17: 50000 | B17: 0 | C17: 0
A18: 75000 | B18: =-50000+$B$13*A18 -> 40000 | C18: 0.5333333333
A19: 100000 | B19: =-50000+$B$13*A19 -> 70000 | C19: 0.7
A20: 125000 | B20: =-50000+$B$13*A20 -> 100000 | C20: 0.8
A21: 150000 | B21: =-50000+$B$13*A21 -> 130000 | C21: 0.8666666667
A22: 200000 | B22: 200000 | C22: 1
C27: 1e-05
A28: income | B28: inherit | C28: %
A29: 0 | B29: 0 | C29: 0 | D29: =IF(A29<100000,0,IF(A29>200000,1,0.00002*A29-1)) -> 0
A30: 25000 | B30: 0 | C30: =B30/A30 -> 0 | D30: 0
A31: 50000 | B31: 0 | C31: =$C$27*A31-0.5 -> 0 | D31: 0
A32: 75000 | B32: =-50000+$B$13*A32 -> 40000 | C32: =$C$27*A32-0.5 -> 0.25 | D32: 0
A33: 100000 | B33: =-50000+$B$13*A33 -> 70000 | C33: =$C$27*A33-0.5 -> 0.5 | D33: 1
A34: 125000 | B34: =-50000+$B$13*A34 -> 100000 | C34: =$C$27*A34-0.5 -> 0.75 | D34: 1.5
A35: 150000 | B35: =-50000+$B$13*A35 -> 130000 | C35: =$C$27*A35-0.5 -> 1 | D35: 2
A36: 200000 | B36: 200000 | C36: =B36/A36 -> 1 | D36: 3

Sheet SchumpyHotels (hidden)
A1: This is Schumpeter "hotels" quotation citation:
I4: Source:
I5: https://archive.org/details/imperialismandso00schu/page/126/mode/2up?q=hotel
I7: This is 1955 edition.
I9: There is a 1951 edition which has this passage on p. 165.
I11: The amazing part is how many people quote this and it is just one sentence.
I13: Actually, he also used it in TED (see below). Again, one sentence.
A27: This is TED quotation (see below for link)
A65: https://archive.org/details/theoryofeconomic0000schu/page/156/mode/2up?q=hotels

Sheet OneVarMCSim (hidden)
A1: Results of Monte Carlo Simulation | AK1: 0 | AL1: 0
A2: Sample Number | F2: Simulation Stats | AH2: 0 | AK2: 0 | AL2: 0
A3: 1 | G3: repetitions | AH3: 0.1290322542 | AI3: 0 | AK3: 0.1290322542 | AL3: 0
A4: 2 | G4: seconds | I4: Summary Statistics | L4: Notes | AH4: 0.2580645084 | AI4: 3 | AK4: 0.1290322542 | AL4: 3
A5: 3 | I5: Average | J5: 1.16710423 | AH5: 0.3870967627 | AI5: 4 | AK5: 0.2580645084 | AL5: 3
A6: 4 | I6: SD | J6: 0.5760398821 | AH6: 0.5161290169 | AI6: 8 | AK6: 0.2580645084 | AL6: 4
A7: 5 | I7: Max | J7: 2.5793023 | AH7: 0.6451612711 | AI7: 4 | AK7: 0.3870967627 | AL7: 4
A8: 6 | I8: Min | J8: 0.2134278418 | AH8: 0.7741935253 | AI8: 9 | AK8: 0.3870967627 | AL8: 8
A9: 7 | AH9: 0.9032257795 | AI9: 9 | AK9: 0.5161290169 | AL9: 8
A10: 8 | AH10: 1.032258034 | AI10: 12 | AK10: 0.5161290169 | AL10: 4
A11: 9 | AH11: 1.161290288 | AI11: 8 | AK11: 0.6451612711 | AL11: 4
A12: 10 | AH12: 1.290322542 | AI12: 3 | AK12: 0.6451612711 | AL12: 9
A13: 11 | AH13: 1.419354796 | AI13: 6 | AK13: 0.7741935253 | AL13: 9
A14: 12 | AH14: 1.548387051 | AI14: 7 | AK14: 0.7741935253 | AL14: 9
A15: 13 | AH15: 1.677419305 | AI15: 6 | AK15: 0.9032257795 | AL15: 9
A16: 14 | AH16: 1.806451559 | AI16: 6 | AK16: 0.9032257795 | AL16: 12
A17: 15 | AH17: 1.935483813 | AI17: 2 | AK17: 1.032258034 | AL17: 12
A18: 16 | AH18: 2.064516068 | AI18: 5 | AK18: 1.032258034 | AL18: 8
A19: 17 | AH19: 2.193548322 | AI19: 2 | AK19: 1.161290288 | AL19: 8
A20: 18 | AH20: 2.322580576 | AI20: 3 | AK20: 1.161290288 | AL20: 3
A21: 19 | AH21: 2.45161283 | AI21: 2 | AK21: 1.290322542 | AL21: 3
A22: 20 | AH22: 2.580645084 | AI22: 1 | AK22: 1.290322542 | AL22: 6
A23: 21 | AH23: 2.709677339 | AI23: 0 | AK23: 1.419354796 | AL23: 6
A24: 22 | AH24: 2.838709593 | AI24: 0 | AK24: 1.419354796 | AL24: 7
A25: 23 | AH25: 2.967741847 | AI25: 0 | AK25: 1.548387051 | AL25: 7
A26: 24 | AH26: 3.096774101 | AI26: 0 | AK26: 1.548387051 | AL26: 6
A27: 25 | AH27: 3.225806355 | AI27: 0 | AK27: 1.677419305 | AL27: 6
A28: 26 | AH28: 3.35483861 | AI28: 0 | AK28: 1.677419305 | AL28: 6
A29: 27 | AH29: 3.483870864 | AI29: 0 | AK29: 1.806451559 | AL29: 6
A30: 28 | AH30: 3.612903118 | AI30: 0 | AK30: 1.806451559 | AL30: 2
A31: 29 | AH31: 3.741935372 | AI31: 0 | AK31: 1.935483813 | AL31: 2
A32: 30 | AH32: 3.870967627 | AI32: 0 | AK32: 1.935483813 | AL32: 5
A33: 31 | AH33: 3.999999881 | AI33: 0 | AK33: 2.064516068 | AL33: 5
A34: 32 | AK34: 2.064516068 | AL34: 2
A35: 33 | AK35: 2.193548322 | AL35: 2
A36: 34 | AK36: 2.193548322 | AL36: 3
A37: 35 | AK37: 2.322580576 | AL37: 3
A38: 36 | AK38: 2.322580576 | AL38: 2
A39: 37 | AK39: 2.45161283 | AL39: 2
A40: 38 | AK40: 2.45161283 | AL40: 1
A41: 39 | AK41: 2.580645084 | AL41: 1
A42: 40 | AK42: 2.580645084 | AL42: 0
A43: 41 | AK43: 2.709677339 | AL43: 0
A44: 42 | AK44: 2.709677339 | AL44: 0
A45: 43 | AK45: 2.838709593 | AL45: 0
A46: 44 | AK46: 2.838709593 | AL46: 0
A47: 45 | AK47: 2.967741847 | AL47: 0
A48: 46 | AK48: 2.967741847 | AL48: 0
A49: 47 | AK49: 3.096774101 | AL49: 0
A50: 48 | AK50: 3.096774101 | AL50: 0
A51: 49 | AK51: 3.225806355 | AL51: 0
A52: 50 | AK52: 3.225806355 | AL52: 0
A53: 51 | AK53: 3.35483861 | AL53: 0
A54: 52 | AK54: 3.35483861 | AL54: 0
A55: 53 | AK55: 3.483870864 | AL55: 0
A56: 54 | AK56: 3.483870864 | AL56: 0
A57: 55 | AK57: 3.612903118 | AL57: 0
A58: 56 | AK58: 3.612903118 | AL58: 0
A59: 57 | AK59: 3.741935372 | AL59: 0
A60: 58 | AK60: 3.741935372 | AL60: 0
A61: 59 | AK61: 3.870967627 | AL61: 0
A62: 60 | AK62: 3.870967627 | AL62: 0
A63: 61 | AK63: 3.999999881 | AL63: 0
A64: 62 | AK64: 3.999999881 | AL64: 0
A65: 63
A66: 64
A67: 65
A68: 66
A69: 67
A70: 68
A71: 69
A72: 70
A73: 71
A74: 72
A75: 73
A76: 74
A77: 75
A78: 76
A79: 77
A80: 78
A81: 79
A82: 80
A83: 81
A84: 82
A85: 83
A86: 84
A87: 85
A88: 86
A89: 87
A90: 88
A91: 89
A92: 90
A93: 91
A94: 92
A95: 93
A96: 94
A97: 95
A98: 96
A99: 97
A100: 98
A101: 99
A102: 100
A103: Only the first 100 repetitions are displayed on this worksheet.

Sheet TwoVarMCSim (hidden)
A1: Results of Monte Carlo Simulation
A2: Sample Number | B2: Var1 | C2: Var2 | F2: Simulation Stats
A3: 1 | G3: repetitions
A4: 2 | G4: secs | I4: Var1 | K4: Var2 | M4: Notes
A5: 3 | I5: Average | J5: 0.003891987077 | K5: Average | L5: 0.003355620617
A6: 4 | I6: SD | J6: 0.1659865299 | K6: SD | L6: 0.1488266145
A7: 5 | I7: Max | J7: 0.5008107016 | K7: Max | L7: 0.4001902531
A8: 6 | I8: Min | J8: -0.5496349566 | K8: Min | L8: -0.4673416415
A9: 7
A10: 8
A11: 9
A12: 10
A13: 11
A14: 12
A15: 13
A16: 14
A17: 15
A18: 16
A19: 17 | F19: 1
A20: 18
A21: 19
A22: 20
A23: 21
A24: 22
A25: 23
A26: 24
A27: 25
A28: 26
A29: 27
A30: 28
A31: 29
A32: 30
A33: 31
A34: 32
A35: 33
A36: 34
A37: 35
A38: 36
A39: 37
A40: 38
A41: 39
A42: 40
A43: 41
A44: 42
A45: 43
A46: 44
A47: 45
A48: 46
A49: 47
A50: 48
A51: 49
A52: 50
A53: 51
A54: 52
A55: 53
A56: 54
A57: 55
A58: 56
A59: 57
A60: 58
A61: 59
A62: 60
A63: 61
A64: 62
A65: 63
A66: 64
A67: 65
A68: 66
A69: 67
A70: 68
A71: 69
A72: 70
A73: 71
A74: 72
A75: 73
A76: 74
A77: 75
A78: 76
A79: 77
A80: 78
A81: 79
A82: 80
A83: 81
A84: 82
A85: 83
A86: 84
A87: 85
A88: 86
A89: 87
A90: 88
A91: 89
A92: 90
A93: 91
A94: 92
A95: 93
A96: 94
A97: 95
A98: 96
A99: 97
A100: 98
A101: 99
A102: 100
A103: Only the first 100 repetitions are displayed on this worksheet.
